Workbook

Sheet Dt (hidden)
B1: No eliminar Hoja … :))) | H1: Cronograma | K1: Integrante | AA1: No | AB1: Campo | AC1: 1_Opcion | AD1: 2_Opcion | AF1: Avaya1719 | AO1: =MAX(AN:AN) -> 77 | AP1: 2022-02-15 | AQ1: http://scienti.minciencias.gov.co:8080/gruplac/jsp/visualiza/visualizagr.jsp?nro= | CV1: =Productos!H5 -> INV | CZ1: Validaciones y reglas de la convocatoria | DA1: =MAX(DB3:DB200) -> 31 | DE1: =IF(DA1=0," ","Error "&TEXT(DA1,"000")&".- en : ["&VLOOKUP($DA$1,$CX$2:$DE$109,2,0)&"] "&VLOOKUP($DA$1,$CX$2:$DE$109,4,0)) -> Error 031.- en : [General] Pendiente seleccionar Programa del lider del proyecto | DL1: =MIN(IF(DB3:DB200>0,DB3:DB200,MAX(DB3:DB200))) -> 1
F2: Tipo | G2: Objetivo | H2: Actividad | I2: Mes Inicio | J2: Duracion | K2: CC | L2: Nombre | M2: Apellidos | N2: Nivel | O2: Mes | P2: Horas | Q2: Rol | R2: Vin | S2: NBC | T2: Cvlac | U2: Nombre Completo | AA2: 1 | AB2: Sedes | AC2: Bogotá | AT2: BB | AV2: =MIN(BD3:BD286) -> 4 | AW2: =MAX(BD3:BD286) -> 286 | CB2: Variables aplicadas a la Hoja de impactos | CM2: Id | CN2: IDFinal | CO2: Clase | CP2: Subclase | CQ2: Producto | CR2: Indicador | CS2: INV | CT2: IMP | CU2: CLAS | CX2: No | CY2: Hoja | CZ2: Regla | DA2: Mensaje Error | DB2: Validacion | DC2: Parametro1 | DD2: Parametro2 | DE2: Parametro3 | DG2: No | DH2: Hojas | DI2: No error | DJ2: Error | DK2: Hojas
C3: Dato | F3: =ROW()-3 -> 0 | G3: =CLEAN(TRIM(Objetivos!C8)) ->  | H3: NA | I3: NA | J3: NA | K3: NA | L3: NA | M3: NA | N3: NA | O3: NA | P3: NA | Q3: NA | R3: NA | S3: NA | T3: NA | U3: NA | AA3: 2 | AB3: Sedes | AC3: Campus Nueva Granada | AK3: Hoja | AN3: Hoja | AO3: FAC | AP3: Grupo | AQ3: COD | AR3: Clas | AS3: Link | AT3: Lineas | AU3: Fila Grupo | AV3: Min | AW3: Max | AX3: FAC | BA3: COD | BB3: Linea | BC3: Cel | BD3: Fila | BE3: E:Gp | BH3: Hora | BI3: Agente | BJ3: Agente | BN3: Areas Grupos UMN | BT3: No | BU3: Areas | BV3: Area1 | BW3: Area2 | CB3: No | CC3: Tipo | CD3: Duración | CE3: Tipo | CF3: Alcance | CG3: Linea | CH3: SRL | CM3: =ROW()-2 -> 1 | CN3: 101 | CO3: Productos de Generación de Nuevo Conocimiento (GNC) | CP3: Artículos en Revistas Científicas no incluidas en las listas de revistas depredadoras (ejemplo Beall-list) | CQ3: Artículo en revista en Cuartil 1 (Q1) del SJR (Scimago) o del JCR (Clarivate). | CR3: Copia del sometimiento y copia del artículo enviado a la revista | CS3: 40 | CT3: 0 | CX3: =ROW()-3 -> 0 | CY3: Nada | CZ3: Sin error | DB3: 0 | DG3: =ROW()-2 -> 1 | DH3: =IFERROR(NbHoja(ROW()-2),DK3) -> Dt | DI3: 0 | DJ3: =IF(DI3=0," ","Error : "&TEXT($DI3,"000")&".- "&VLOOKUP($DI$5,$CX$2:$DE$109,4,0)) ->  | DK3: Dt
C4: Titulo | D4: =TRIM(CLEAN(General!B9)) -> Formato: actualizado a 08 Abr 2022 | F4: =ROW()-3 -> 1 | G4: =CLEAN(TRIM(Objetivos!C9)) ->  | H4: =CLEAN(TRIM(Cronograma!C8)) -> zdsak | I4: =Cronograma!D8 -> 0 | J4: =Cronograma!E8 -> 0 | K4: =INDEX(Dt_Integ,2+($F4-1)*3,(COLUMN()-9)) -> 0 | L4: Luis Alexander | M4: Chirivi | N4: 0 | O4: 12 | P4: 0 | Q4: =INDEX(Dt_Integ,3+($F4-1)*3,(COLUMN()-14)) -> Investigador Principal | R4: =INDEX(Dt_Integ,3+($F4-1)*3,(COLUMN()-14)) -> 0 | S4: =INDEX(Dt_Integ,3+($F4-1)*3,(COLUMN()-14)) -> 0 | T4: =INDEX(Dt_Integ,4+($F4-1)*3,(COLUMN()-17)) -> 0 | U4: =(TRIM(L4&" "&M4)) -> Luis Alexander Chirivi | AA4: 3 | AB4: Sedes | AC4: Medicina | AD4: No habilitada 2018 | AI4: No Reconocido | AK4: 3 | AL4: 1 | AM4: =COUNTIF($AN$4:$AN$816,AL4) -> 1 | AN4: 1 | AO4: CIAS | AP4: Fitoplasmas y Virus | AQ4: COL0028687 | AR4: B | AS4: https://scienti.minciencias.gov.co/gruplac/jsp/visualiza/visualizagr.jsp?nro=00000000008436 | AT4: =$AT$2&AV4&":"&$AT$2&AW4 -> BB308:BB309 | AU4: =ROW() -> 4 | AV4: =MINA(IF(AQ4=$BA$4:$BA$394,$BD$4:$BD$394)) -> 308 | AW4: =MAXA(IF(AQ4=$BA$4:$BA$394,$BD$4:$BD$394)) -> 309 | AX4: =AO4 -> CIAS | BA4: COL0002896 | BB4: Modelos de simulación | BC4: =COUNTIF(BA$4:BA4,BA4) -> 1 | BD4: =ROW() -> 4 | BE4: =COUNTIF($AQ$3:$AQ$95,BA4) -> 1 | BH4: 19:54:00 | BI4: a | BJ4: a | BK4: =DMIN(BH3:BI12,"hora",BJ3:BJ4) -> 0.4548611111 | BL4: | | BN4: Biotecnología | BT4: 1 | BU4: =BV4&"-"&BW4 -> Ciencias Naturales-Matemática | BV4: Ciencias Naturales | BW4: Matemática | BX4: =BT4 -> 1 | CB4: 1 | CC4: Fin de la pobreza | CD4: Corto (1 año) | CE4: Político | CF4: Regional | CG4: Transferencia e intercambio de conocimiento | CH4: SRL 0 – Identificación del problema. | CM4: =ROW()-2 -> 2 | CN4: 102 | CO4: Productos de Generación de Nuevo Conocimiento (GNC) | CP4: Artículos en Revistas Científicas no incluidas en las listas de revistas depredadoras (ejemplo Beall-list) | CQ4: Artículo en revista en Cuartil 2 (Q2) del SJR (Scimago) o del JCR (Clarivate). | CR4: Copia del sometimiento y copia del artículo enviado a la revista | CS4: 30 | CT4: 0 | CX4: =ROW()-3 -> 1 | CY4: Resumen | CZ4: Tiene Planteamiento | DA4: No tiene datos de resumen (Planteamiento diligenciados) | DB4: =IF(DC4<10,CX4,0) -> 1 | DC4: =Resumen!$G$23 -> 0 | DG4: =ROW()-2 -> 2 | DH4: =IFERROR(NbHoja(ROW()-2),DK4) -> General | DI4: =MAX(IF($CY$2:$CY$400=$DH4,$DB$2:$DB$400,0)) -> 31 | DJ4: =IF(DI4=0," ","Error : "&TEXT($DI4,"000")&".- "&VLOOKUP($DI4,$CX$2:$DE$109,4,0)) -> Error : 031.- Pendiente seleccionar Programa del lider del proyecto | DK4: General
C5: Lider | D5: =TRIM(CLEAN(General!C10)) -> Luis Alexander Chirivi | F5: =ROW()-3 -> 2 | G5: =CLEAN(TRIM(Objetivos!C10)) ->  | H5: =CLEAN(TRIM(Cronograma!C9)) -> sadsa | I5: =Cronograma!D9 -> 0 | J5: =Cronograma!E9 -> 0 | K5: Contribuciones | M5: 0 | N5: 0 | O5: 0 | P5: 0 | Q5: =INDEX(Dt_Integ,3+($F5-1)*3,(COLUMN()-14)) -> 0 | R5: 0 | T5: 0 | U5: =TRIM(L5&" "&M5) -> 0 | AA5: 4 | AB5: Sedes | AC5: Otros | AD5: No habilitada 2018 | AI5: Categoría B | AK5: 4 | AL5: 2 | AM5: 1 | AN5: 2 | AO5: CIAS | AP5: Grupo de investigación en Biodiversidad y ecología de abejas silvestres | AQ5: COL0031959 | AR5: B | AS5: https://scienti.minciencias.gov.co/gruplac/jsp/visualiza/visualizagr.jsp?nro=00000000001366 | AT5: =$AT$2&AV5&":"&$AT$2&AW5 -> BB231:BB235 | AU5: =ROW() -> 5 | AV5: =MINA(IF(AQ5=$BA$4:$BA$394,$BD$4:$BD$394)) -> 231 | AW5: =MAXA(IF(AQ5=$BA$4:$BA$394,$BD$4:$BD$394)) -> 235 | AX5: =AO5 -> CIAS | BA5: COL0002896 | BB5: Educación y Sociedad | BC5: =COUNTIF(BA$4:BA5,BA5) -> 2 | BD5: =ROW() -> 5 | BE5: 1 | BH5: 09:54:00 | BI5: b | BJ5: B | BT5: 2 | BU5: =BV5&"-"&BW5 -> Ciencias Naturales-Ciencias Físicas | BV5: Ciencias Naturales | BW5: Ciencias Físicas | BX5: =BT5 -> 2 | CB5: =CB4+1 -> 2 | CC5: Hambre Cero | CD5: Medio (2 años) | CE5: Salud | CF5: Nacional | CG5: Gestión del conocimiento para la apropiación | CH5: SRL 1 – Identificación del problema y el grado de madurez social. | CM5: 3 | CN5: 103 | CO5: Productos de Generación de Nuevo Conocimiento (GNC) | CP5: Artículos en Revistas Científicas no incluidas en las listas de revistas depredadoras (ejemplo Beall-list) | CQ5: Artículo en revista en Cuartil 3 (Q3) del SJR (Scimago) o del JCR (Clarivate) o clasificada en B en Publindex. | CR5: Copia del sometimiento y copia del artículo enviado a la revista | CS5: 20 | CT5: 0 | CX5: 2 | CY5: Resumen | CZ5: Tiene Resumen | DA5: No tiene datos de resumen diligenciados | DB5: =IF(DC5<10,CX5,0) -> 2 | DC5: =Resumen!$H$5 -> 0 | DG5: 3 | DH5: =IFERROR(NbHoja(ROW()-2),DK5) -> Resumen | DI5: =MAX(IF($CY$2:$CY$400=$DH5,$DB$2:$DB$400,0)) -> 2 | DJ5: Error : 002.- No tiene datos de resumen diligenciados | DK5: Resumen
C6: Sede | D6: =General!H12 -> 0 | F6: 3 | G6: =CLEAN(TRIM(Objetivos!C11)) ->  | H6: =CLEAN(TRIM(Cronograma!C10)) -> sadsad dsada | I6: =Cronograma!D10 -> 0 | J6: =Cronograma!E10 -> 0 | K6: CvLac: | L6: 0 | M6: 0 | N6: 0 | O6: 0 | P6: 0 | Q6: 0 | R6: 0 | T6: 0 | U6: 0 0 | AA6: 1 | AB6: Facultad | AC6: Ciencias Básicas y Aplicadas | AD6: CIAS | AI6: Categoría B | AK6: 12 | AL6: 3 | AM6: 1 | AN6: 3 | AO6: CIAS | AP6: MATRIX | AQ6: COL0039321 | AR6: B | AS6: https://scienti.minciencias.gov.co/gruplac/jsp/visualiza/visualizagr.jsp?nro=00000000002208 | AT6: BB147:BB151 | AU6: =ROW() -> 6 | AV6: =MINA(IF(AQ6=$BA$4:$BA$394,$BD$4:$BD$394)) -> 147 | AW6: =MAXA(IF(AQ6=$BA$4:$BA$394,$BD$4:$BD$394)) -> 151 | AX6: CIAS | BA6: COL0002896 | BB6: Educación y cultura | BC6: =COUNTIF(BA$4:BA6,BA6) -> 3 | BD6: =ROW() -> 6 | BE6: 1 | BH6: 17:54:00 | BI6: c | BJ6: c | BT6: 3 | BU6: Ciencias Naturales-Ciencias Biológicas | BV6: Ciencias Naturales | BW6: Ciencias Biológicas | BX6: 3 | CB6: 3 | CC6: Salud y bienestar | CD6: Largo (3 años) | CE6: Tecnológico | CF6: Internacional | CG6: Participación ciudadana en CTeI | CH6: SRL 2 – Formulación del problema, soluciones propuestas e impacto potencial, grado de madurez social esperado; identificación de partes interesadas relevantes para el proyecto | CM6: 4 | CN6: 104 | CO6: Productos de Generación de Nuevo Conocimiento (GNC) | CP6: Artículos en Revistas Científicas no incluidas en las listas de revistas depredadoras (ejemplo Beall-list) | CQ6: Artículo en revista en Cuartil 4 (Q4) del SJR (Scopus) o del JCR (Web of Science) o clasificada en C en Publindex. | CR6: Copia del sometimiento y copia del artículo enviado a la revista | CS6: 10 | CT6: 0 | CX6: 3 | CY6: Objetivos | CZ6: Tiene Objetivos | DA6: No tiene datos de objetivos diligenciados | DB6: =IF(DC6<2,CX6,0) -> 3 | DC6: =Objetivos!$G$3 -> 0 | DG6: 4 | DH6: =IFERROR(NbHoja(ROW()-2),DK6) -> Estado_del_arte | DI6: =MAX(IF($CY$2:$CY$400=$DH6,$DB$2:$DB$400,0)) -> 0 | DK6: Estado_del_arte
C7: Facultad | D7: =General!C13 -> 0 | F7: 4 | G7: =CLEAN(TRIM(Objetivos!C12)) ->  | H7: =CLEAN(TRIM(Cronograma!C11)) ->  | I7: =Cronograma!D11 -> 0 | J7: =Cronograma!E11 -> 0 | K7: Funcion : | L7: 0 | M7: 0 | N7: 0 | O7: 0 | P7: 0 | Q7: 0 | R7: 0 | T7: 0 | U7: 0 0 | AA7: 2 | AB7: Facultad | AC7: Ciencias Económicas | AD7: ECO | AI7: Categoría A | AK7: 18 | AL7: 4 | AM7: 1 | AN7: 4 | AO7: CIAS | AP7: Control Biológico UMNG | AQ7: COL0032278 | AR7: A | AS7: https://scienti.minciencias.gov.co/gruplac/jsp/visualiza/visualizagr.jsp?nro=00000000001399 | AT7: BB228:BB230 | AU7: =ROW() -> 7 | AV7: =MINA(IF(AQ7=$BA$4:$BA$394,$BD$4:$BD$394)) -> 228 | AW7: =MAXA(IF(AQ7=$BA$4:$BA$394,$BD$4:$BD$394)) -> 230 | AX7: CIAS | BA7: COL0065804 | BB7: Desarrollos mecatrónicos | BC7: =COUNTIF(BA$4:BA7,BA7) -> 1 | BD7: =ROW() -> 7 | BE7: 1 | BH7: 10:55:00 | BI7: a | BT7: 4 | BU7: Ciencias Naturales-Computación y Ciencias de la Información | BV7: Ciencias Naturales | BW7: Computación y Ciencias de la Información | BX7: 4 | CB7: 4 | CC7: Educación de calidad | CE7: Económico | CG7: Comunicación del conocimiento | CH7: SRL 3 – Pruebas iniciales de las soluciones propuestas junto con partes interesadas relevantes. | CM7: 5 | CN7: 105 | CO7: Productos de Generación de Nuevo Conocimiento (GNC) | CP7: Artículos en Revistas Científicas no incluidas en las listas de revistas depredadoras (ejemplo Beall-list) | CQ7: Artículo D de acuerdo con las especificaciones del Documento conceptual de la Convocatoria 833 de 2018 de Minciencias. | CR7: Copia del sometimiento y copia del artículo enviado a la revista | CS7: 7 | CT7: 0 | CX7: 4 | CY7: Presupuesto | CZ7: Limite Minimo para estimulo estudiantes 9% | DA7: ="No cumple mínimo exigido para el rubro de estímulo a estudiantes. Pendiente asignar al rubro "&TEXT(DD7,"$ ##.###.###") -> No cumple mínimo exigido para el rubro de estímulo a estudiantes. Pendiente asignar al rubro $ 1.350.000 | DB7: =IF(DC7<1,CX7,0) -> 4 | DC7: =Presupuesto!$Q$75 -> 0 | DD7: =Presupuesto!$Q$76 -> 1350000 | DG7: 5 | DH7: =IFERROR(NbHoja(ROW()-2),DK7) -> Objetivos | DI7: =MAX(IF($CY$2:$CY$400=$DH7,$DB$2:$DB$400,0)) -> 22 | DJ7: Error : 022.- Objetivo gereral pendiente de diligenciar | DK7: Objetivos
C8: Programa | D8: =CLEAN(General!H13) ->  | F8: 5 | G8: =CLEAN(TRIM(Objetivos!C13)) ->  | H8: =CLEAN(TRIM(Cronograma!C12)) ->  | I8: =Cronograma!D12 -> 0 | J8: =Cronograma!E12 -> 0 | K8: 0 | L8: 0 | M8: 0 | N8: 0 | O8: 0 | P8: 0 | Q8: 0 | R8: 0 | T8: 0 | U8: 0 0 | AA8: 3 | AB8: Facultad | AC8: Derecho | AD8: DER | AI8: Categoría A1 | AK8: 26 | AL8: 5 | AM8: 1 | AN8: 5 | AO8: CIAS | AP8: Grupo de Micología y Fitopatologia | AQ8: COL0013719 | AR8: A1 | AS8: https://scienti.minciencias.gov.co/gruplac/jsp/visualiza/visualizagr.jsp?nro=00000000001127 | AT8: BB101:BB105 | AU8: =ROW() -> 8 | AV8: =MINA(IF(AQ8=$BA$4:$BA$394,$BD$4:$BD$394)) -> 101 | AW8: =MAXA(IF(AQ8=$BA$4:$BA$394,$BD$4:$BD$394)) -> 105 | AX8: CIAS | BA8: COL0065804 | BB8: Energías Renovables | BC8: =COUNTIF(BA$4:BA8,BA8) -> 2 | BD8: =ROW() -> 8 | BE8: 1 | BH8: 11:45:00 | BI8: a | BT8: 5 | BU8: Ciencias Naturales-Ciencias Químicas | BV8: Ciencias Naturales | BW8: Ciencias Químicas | BX8: 5 | CB8: 5 | CC8: Igualdad de genero | CE8: Legal | CH8: SRL 4 – Problema validado por medio de pruebas piloto en un entorno relevantes para justificar el impacto propuesto y el grado de madurez social | CM8: 6 | CN8: 109 | CO8: Productos de Generación de Nuevo Conocimiento (GNC) | CP8: Libro de Investigación | CQ8: Libro resultado de investigación en colección indexada en Scopus Books o indizado en el Book Citation Index (Clarivate) | CR8: Copia del sometimiento ante editorial y copia completa del proyecto del libro. | CS8: 60 | CT8: 0 | CX8: 5 | CY8: Presupuesto | CZ8: Meter estudiantes de postgrado a presgrado | DA8: Debe diligencia el valor en el rubro correcto de Auxiliar de Pregrado o "Posgrado (MG y DOC)" | DB8: =IF(AND(DC8<>DD8,DD8>0),CX8,0) -> 0 | DC8: =Presupuesto!$P$82 -> 0 | DD8: =Presupuesto!$Q$82 -> 0 | DG8: 6 | DH8: =IFERROR(NbHoja(ROW()-2),DK8) -> Metodología | DI8: =MAX(IF($CY$2:$CY$400=$DH8,$DB$2:$DB$400,0)) -> 0 | DK8: Metodología
C9: Correo | D9: =TRIM(CLEAN(General!C11)) ->  | F9: 6 | G9: =CLEAN(TRIM(Objetivos!C14)) ->  | H9: =CLEAN(TRIM(Cronograma!C13)) ->  | I9: =Cronograma!D13 -> 0 | J9: =Cronograma!E13 -> 0 | K9: Contribuciones | L9: 0 | M9: 0 | N9: 0 | O9: 0 | P9: 0 | Q9: 0 | R9: 0 | T9: 0 | U9: 0 0 | AA9: 4 | AB9: Facultad | AC9: Educación y Humanidades | AD9: HUM | AI9: Categoría C | AK9: 28 | AL9: 6 | AM9: 1 | AN9: 6 | AO9: CIAS | AP9: Fitopatologia molecular | AQ9: COL0086179 | AR9: C | AS9: https://scienti.minciencias.gov.co/gruplac/jsp/visualiza/visualizagr.jsp?nro=00000000007907 | AT9: BB18:BB20 | AU9: =ROW() -> 9 | AV9: =MINA(IF(AQ9=$BA$4:$BA$394,$BD$4:$BD$394)) -> 18 | AW9: =MAXA(IF(AQ9=$BA$4:$BA$394,$BD$4:$BD$394)) -> 20 | AX9: CIAS | BA9: COL0065804 | BB9: Materiales y Procesos de Manufactura | BC9: =COUNTIF(BA$4:BA9,BA9) -> 3 | BD9: =ROW() -> 9 | BE9: 1 | BH9: 15:12:00 | BI9: b | BT9: 6 | BU9: Ciencias Naturales-Otras Ciencias Naturales | BV9: Ciencias Naturales | BW9: Otras Ciencias Naturales | BX9: 6 | CB9: 6 | CC9: Agua limpia y saneamiento | CE9: Cultural | CH9: SRL 5 – Soluciones propuestas validadas, ahora por las partes interesadas importantes en el área. | CM9: 7 | CN9: 110 | CO9: Productos de Generación de Nuevo Conocimiento (GNC) | CP9: Libro de Investigación | CQ9: Libro resultado de investigación sometido por la Editorial Neogranadina o libro resultado de investigación que cumpla con lo especificado por Minciencias en el Documento Conceptual de la Convocatoria 833 de 2018. | CR9: Copia del sometimiento ante editorial y copia completa del proyecto del libro. | CS9: 30 | CT9: 0 | CX9: 6 | CY9: Presupuesto | CZ9: Diferencias personal OPS y Plan | DA9: ="No están los valores acordes entre la tabla (OPS y Estimulo a estudiantes) y el plan de compras, diferencia "&TEXT(DC9,"$ ##.###.###") -> No están los valores acordes entre la tabla (OPS y Estimulo a estudiantes) y el plan de compras, diferencia $ | DB9: =IF(DC9=0,0,CX9) -> 0 | DC9: =Presupuesto!$R$77 -> 0 | DG9: 7 | DH9: =IFERROR(NbHoja(ROW()-2),DK9) -> Etica | DI9: =MAX(IF($CY$2:$CY$400=$DH9,$DB$2:$DB$400,0)) -> 0 | DK9: Etica
C10: Fase | D10: =General!F12 -> No | F10: 7 | G10: =CLEAN(TRIM(Objetivos!C15)) ->  | H10: =CLEAN(TRIM(Cronograma!C14)) ->  | I10: =Cronograma!D14 -> 0 | J10: =Cronograma!E14 -> 0 | K10: CvLac: | L10: 0 | M10: 0 | N10: 0 | O10: 0 | P10: 0 | Q10: 0 | R10: 0 | T10: 0 | U10: 0 0 | AA10: 5 | AB10: Facultad | AC10: Estudios a Distancia | AD10: DIS | AI10: Categoría B | AK10: 30 | AL10: 7 | AM10: 1 | AN10: 7 | AO10: CIAS | AP10: Estadística, Control y Optimización | AQ10: COL0136423 | AR10: A | AS10: https://scienti.minciencias.gov.co/gruplac/jsp/visualiza/visualizagr.jsp?nro=00000000013845 | AT10: BB179:BB183 | AU10: =ROW() -> 10 | AV10: =MINA(IF(AQ10=$BA$4:$BA$394,$BD$4:$BD$394)) -> 179 | AW10: =MAXA(IF(AQ10=$BA$4:$BA$394,$BD$4:$BD$394)) -> 183 | AX10: CIAS | BA10: COL0036025 | BB10: Biomecatronica | BC10: =COUNTIF(BA$4:BA10,BA10) -> 1 | BD10: =ROW() -> 10 | BE10: 1 | BH10: 23:12:00 | BI10: b | BT10: 7 | BU10: Ciencias Naturales-Ciencias de la Tierra y Medioambientales | BV10: Ciencias Naturales | BW10: Ciencias de la Tierra y Medioambientales | BX10: 7 | CB10: 7 | CC10: Energía asequible y no contaminante | CE10: Social | CH10: SRL 6 – Soluciones demostradas en un entorno relevante, en cooperación con las partes interasadas relevantes para obtener retroalimentación inicial subre impactos potenciales | CM10: 8 | CN10: 111 | CO10: Productos de Generación de Nuevo Conocimiento (GNC) | CP10: Capítulo de Libro de Investigación | CQ10: Capítulo incluido en libro resultado de investigación dentro de una colección indexada Scopus Books o indizado en el Book Citation Index (Clarivate) | CR10: Copia del sometimiento ante editorial Neogranadina o editorial externa (copia del proyecto editorial de libro en el que se incluiría el capítulo y del aval de la Editorial sobre ese proyecto) y copia del capítulo de libro enviado a la editorial | CS10: 20 | CT10: 0 | CX10: 7 | CY10: Presupuesto | CZ10: Máximo en equipos | DA10: ="Supera el máximo de presupuesto rubro de [Equipos] disponible en "&TEXT(DC10,"$ ##.###.###") -> Supera el máximo de presupuesto rubro de [Equipos] disponible en -$ 2.250.000 | DB10: =IF(DD10>0.15,CX10,0) -> 0 | DC10: =Presupuesto!$P$78 -> -2250000 | DD10: =IFERROR(Presupuesto!$Q$78,0) -> 0 | DG10: 8 | DH10: =IFERROR(NbHoja(ROW()-2),DK10) -> Cronograma | DI10: =MAX(IF($CY$2:$CY$400=$DH10,$DB$2:$DB$400,0)) -> 0 | DK10: Cronograma
C11: Finan Antes | D11: =General!I12 -> No | F11: 8 | G11: =CLEAN(TRIM(Objetivos!C16)) ->  | H11: =CLEAN(TRIM(Cronograma!C15)) ->  | I11: =Cronograma!D15 -> 0 | J11: =Cronograma!E15 -> 0 | K11: Funcion : | L11: 0 | M11: 0 | N11: 0 | O11: 0 | P11: 0 | Q11: 0 | R11: 0 | T11: 0 | U11: 0 0 | AA11: 6 | AB11: Facultad | AC11: Ingeniería | AD11: ING | AI11: Categoría C | AK11: 32 | AL11: 8 | AM11: 1 | AN11: 8 | AO11: CIAS | AP11: Grupo de Ecotoxicología, Evolución, Medio ambiente y conservación (E = mc2) | AQ11: COL0038084 | AR11: C | AS11: https://scienti.minciencias.gov.co/gruplac/jsp/visualiza/visualizagr.jsp?nro=00000000002068 | AT11: BB251:BB255 | AU11: =ROW() -> 11 | AV11: =MINA(IF(AQ11=$BA$4:$BA$394,$BD$4:$BD$394)) -> 251 | AW11: =MAXA(IF(AQ11=$BA$4:$BA$394,$BD$4:$BD$394)) -> 255 | AX11: CIAS | BA11: COL0036025 | BB11: Optimización y Control de sistemas dinámicos | BC11: =COUNTIF(BA$4:BA11,BA11) -> 2 | BD11: =ROW() -> 11 | BE11: 1 | BH11: 06:20:00 | BI11: c | BT11: 8 | BU11: Ciencias Médicas y de la Salud-Medicina Clínica | BV11: Ciencias Médicas y de la Salud | BW11: Medicina Clínica | BX11: 8 | CB11: 8 | CC11: Trabajo decente y crecimiento económico | CE11: Ambiental | CH11: SRL 7 – Refinamiento del proyecto y/o solución y, de ser necesario, aplicación de nuevas pruebas en el entorno relevante, con partes interesadas relevantes. | CM11: 9 | CN11: 112 | CO11: Productos de Generación de Nuevo Conocimiento (GNC) | CP11: Capítulo de Libro de Investigación | CQ11: Capítulo en libro de la Editorial Neogranadina o un capítulo en libro resultado de investigación que cumpla con lo especificado por Minciencias en el Documento Conceptual de la Convocatoria 833 de 2018. | CR11: Copia del sometimiento ante editorial Neogranadina o editorial externa (copia del proyecto editorial de libro en el que se incluiría el capítulo y del aval de la Editorial sobre ese proyecto) y copia del capítulo de libro enviado a la editorial | CS11: 20 | CT11: 0 | CX11: 8 | CY11: Presupuesto | CZ11: Máximo en Materiales[papelería] | DA11: ="Supera el máximo de presupuesto rubro de [Materiales Papelería] disponible en "&TEXT(DC11,"$ ##.###.###") -> Supera el máximo de presupuesto rubro de [Materiales Papelería] disponible en -$ 150.000 | DB11: =IF(DD11>0.01,CX11,0) -> 0 | DC11: =Presupuesto!$P$79 -> -150000 | DD11: =IFERROR(Presupuesto!$Q$79,0) -> 0 | DG11: 9 | DH11: =IFERROR(NbHoja(ROW()-2),DK11) -> Integrantes | DI11: =MAX(IF($CY$2:$CY$400=$DH11,$DB$2:$DB$400,0)) -> 0 | DK11: Integrantes
C12: Resumen | D12: =CLEAN(TRIM(Resumen!C7&" "&Resumen!C8&" "&Resumen!#REF!&" "&Resumen!C15&" "&Resumen!C16&" "&Resumen!C17&" "&Resumen!C18&" "&Resumen!C19)) ->  | F12: 9 | G12: =CLEAN(TRIM(Objetivos!C17)) ->  | H12: =CLEAN(TRIM(Cronograma!C16)) ->  | I12: =Cronograma!D16 -> 0 | J12: =Cronograma!E16 -> 0 | K12: 0 | L12: 0 | M12: 0 | N12: 0 | O12: 0 | P12: 0 | Q12: 0 | R12: 0 | T12: 0 | U12: 0 0 | AA12: 7 | AB12: Facultad | AC12: Medicina y Ciencias de la Salud | AD12: MED | AI12: Categoría C | AK12: 41 | AL12: 9 | AM12: 1 | AN12: 9 | AO12: CIAS | AP12: Grupo de Investigación en Hidrobiología Aplicada (HIDROBIA) | AQ12: COL0048492 | AR12: C | AS12: https://scienti.minciencias.gov.co/gruplac/jsp/visualiza/visualizagr.jsp?nro=00000000005664 | AT12: BB124:BB128 | AU12: =ROW() -> 12 | AV12: =MINA(IF(AQ12=$BA$4:$BA$394,$BD$4:$BD$394)) -> 124 | AW12: =MAXA(IF(AQ12=$BA$4:$BA$394,$BD$4:$BD$394)) -> 128 | AX12: CIAS | BA12: COL0036025 | BB12: Robótica híbrida | BC12: =COUNTIF(BA$4:BA12,BA12) -> 3 | BD12: =ROW() -> 12 | BE12: 1 | BH12: 12:30:00 | BI12: a | BT12: 9 | BU12: Ciencias Médicas y de la Salud-Biotecnología en Salud | BV12: Ciencias Médicas y de la Salud | BW12: Biotecnología en Salud | BX12: 9 | CB12: 9 | CC12: Industria, innovación e infraestructura | CH12: SRL 8 – Soluciones propuestas, así como un plan para la adaptación social completo y certificado. | CM12: 10 | CN12: 113 | CO12: Productos de Generación de Nuevo Conocimiento (GNC) | CP12: Variedad vegetal o nueva raza animal | CQ12: Publicación en gaceta de variedades vegetales protegidas o equivalente con estado de admisión respaldada por un concepto favorable de potencial de mercado o con valor real o potencial de contribución a la seguridad alimentaria. | CR12: Documento en el que se describa la variedad vegetal obtenida con nombre, tipo de ciclo (corto o largo), fecha, cód. de trazabilidad y autores debidamente registrados según Res. De vinculación vigente. Publicación en gaceta o equivalente, con estado de admisión de la solicitud de certificado de obtentor del ICA | CS12: 60 | CT12: 0 | CX12: 9 | CY12: Presupuesto | CZ12: Máximo en salidas de campo | DA12: ="Supera el máximo de presupuesto rubro de [Salidas de Campo] disponible en "&TEXT(DC12,"$ ##.###.###") -> Supera el máximo de presupuesto rubro de [Salidas de Campo] disponible en -$ 1.500.000 | DB12: =IF(DD12>0.1,CX12,0) -> 0 | DC12: =Presupuesto!$P$80 -> -1500000 | DD12: =Presupuesto!$Q$80 -> 0 | DG12: 10 | DH12: =IFERROR(NbHoja(ROW()-2),DK12) -> Productos | DI12: =MAX(IF($CY$2:$CY$400=$DH12,$DB$2:$DB$400,0)) -> 15 | DJ12: Error : 015.- No tiene la productividad mínima requerida para la convcocatoria INV de 20 Puntos. | DK12: Productos
C13: Total Vicen | D13: =General!G52 -> 0 | F13: 10 | G13: =CLEAN(TRIM(Objetivos!C18)) ->  | H13: =CLEAN(TRIM(Cronograma!C17)) ->  | I13: =Cronograma!D17 -> 0 | J13: =Cronograma!E17 -> 0 | K13: Contribuciones | L13: 0 | M13: 0 | N13: 0 | O13: 0 | P13: 0 | Q13: 0 | R13: 0 | T13: 0 | U13: 0 0 | AA13: 8 | AB13: Facultad | AC13: Relaciones Internacionales, Estrategia y Seguridad | AD13: EES | AI13: No Reconocido | AK13: 42 | AL13: 10 | AM13: 1 | AN13: 10 | AO13: CIAS | AP13: Agrobiología de especies vegetales promisorias de clima frío | AQ13: COL0077814 | AR13: NR | AS13: https://scienti.minciencias.gov.co/gruplac/jsp/visualiza/visualizagr.jsp?nro=00000000006560 | AT13: BB307:BB307 | AU13: =ROW() -> 13 | AV13: =MINA(IF(AQ13=$BA$4:$BA$394,$BD$4:$BD$394)) -> 307 | AW13: =MAXA(IF(AQ13=$BA$4:$BA$394,$BD$4:$BD$394)) -> 307 | AX13: CIAS | BA13: COL0036025 | BB13: Simulacion y Realidad Virtual | BC13: =COUNTIF(BA$4:BA13,BA13) -> 4 | BD13: =ROW() -> 13 | BE13: 1 | BT13: 10 | BU13: Ciencias Médicas y de la Salud-Otras Ciencias Médicas | BV13: Ciencias Médicas y de la Salud | BW13: Otras Ciencias Médicas | BX13: 10 | CB13: 10 | CC13: Reducción de las desigualdades | CH13: SRL 9 – Soluciones reales del proyecto, probadas en un entorno relevante | CM13: 11 | CN13: 114 | CO13: Productos de Generación de Nuevo Conocimiento (GNC) | CP13: Nota científica | CQ13: Nota Científica Impresa o electrónica sometida en revista indexada del SJR (Scimago) o del JCR (Clarivate) que cumpla con lo especificado por Minciencias en el Documento Conceptual de la Convocatoria 833 de 2018 | CR13: Copia del sometimiento y copia de la nota científica enviada a la revista | CS13: 10 | CT13: 0 | CX13: 10 | CY13: Presupuesto | CZ13: Máximo en salidas de campo | DA13: ="Supera el máximo de presupuesto rubro de [Movilidad] disponible en "&TEXT(DC13,"$ ##.###.###") -> Supera el máximo de presupuesto rubro de [Movilidad] disponible en -$ 750.000 | DB13: =IF(DD13>0.05,CX13,0) -> 0 | DC13: =Presupuesto!$P$81 -> -750000 | DD13: =IFERROR(Presupuesto!$Q$81,0) -> 0 | DG13: 11 | DH13: =IFERROR(NbHoja(ROW()-2),DK13) -> Presupuesto | DI13: =MAX(IF($CY$2:$CY$400=$DH13,$DB$2:$DB$400,0)) -> 4 | DJ13: Error : 004.- No cumple mínimo exigido para el rubro de estímulo a estudiantes. Pendiente asignar al rubro $ 1.350.000 | DK13: Presupuesto
C14: Total Pts | D14: =General!D52 -> 0 | F14: 11 | G14: =CLEAN(TRIM(Objetivos!C19)) ->  | H14: =CLEAN(TRIM(Cronograma!C18)) ->  | I14: =Cronograma!D18 -> 0 | J14: =Cronograma!E18 -> 0 | AA14: 1 | AB14: Programa | AC14: CIAS | AD14: Biología Aplicada | AE14: 2 | AI14: Categoría A1 | AK14: 43 | AL14: 11 | AM14: 1 | AN14: 11 | AO14: CIAS | AP14: Grupo Integrado de Investigaciones en Química Bioorgánica (InQuiBio) | AQ14: COL0077707 | AR14: A1 | AS14: https://scienti.minciencias.gov.co/gruplac/jsp/visualiza/visualizagr.jsp?nro=00000000008358 | AT14: BB261:BB269 | AU14: =ROW() -> 14 | AV14: =MINA(IF(AQ14=$BA$4:$BA$394,$BD$4:$BD$394)) -> 261 | AW14: =MAXA(IF(AQ14=$BA$4:$BA$394,$BD$4:$BD$394)) -> 269 | AX14: CIAS | BA14: COL0031824 | BB14: Bioética Global y Complejidad | BC14: =COUNTIF(BA$4:BA14,BA14) -> 1 | BD14: =ROW() -> 14 | BE14: 1 | BT14: 11 | BU14: Ciencias Médicas y de la Salud-Medicina Básica | BV14: Ciencias Médicas y de la Salud | BW14: Medicina Básica | BX14: 11 | CB14: 11 | CC14: Ciudades y comunidades sostenibles | CM14: 12 | CN14: 115 | CO14: Productos de Generación de Nuevo Conocimiento (GNC) | CP14: Patente Solitud Nacional Invencion | CQ14: Publicación de la solicitud, por la Oficina Nacional Competente, de patente de invención vía fase nacional respaldada por un concepto favorable de vigilancia tecnológica efectuado por la División de Desarrollo Tecnológico e Innovación y soportada por un prototipo validado que se encuentre en un nivel igual o superior a TRL 4 | CR14: Concepto favorable de vigilancia tecnológica de la DDTI, y publicación en la gaceta de la Superintendencia de Industria Comercio. | CS14: 0 | CT14: 0 | CU14: 30 | CX14: 11 | CY14: Presupuesto | CZ14: Maximo habilitado | DA14: ="Supera el máximo de presupuesto disponible en "&TEXT(DE14,"$ ##.###.###") -> Supera el máximo de presupuesto disponible en -$ 15.000.000 | DB14: =IF(DC14<DD14,CX14,0) -> 0 | DC14: =Presupuesto!$N$2 -> 15000000 | DD14: =Presupuesto!$G$87 -> 0 | DE14: =DD14-DC14 -> -15000000 | DG14: 12 | DH14: =IFERROR(NbHoja(ROW()-2),DK14) -> Bibliografía | DI14: =MAX(IF($CY$2:$CY$400=$DH14,$DB$2:$DB$400,0)) -> 0 | DK14: Bibliografía
F15: 12 | G15: =CLEAN(TRIM(Objetivos!C20)) ->  | H15: =CLEAN(TRIM(Cronograma!C19)) ->  | I15: =Cronograma!D19 -> 0 | J15: =Cronograma!E19 -> 0 | L15: Datos de Grupos de Investigación Integrantes | AA15: 2 | AB15: Programa | AC15: CIAS | AD15: Tecnologia en Gestion y Produccion horticola | AE15: 3 | AI15: Categoría C | AK15: 44 | AL15: 12 | AM15: 1 | AN15: 12 | AO15: CIAS | AP15: Grupo de investigación en química ambiental y tecnologías limpias - QUATELI | AQ15: COL0110436 | AR15: C | AS15: https://scienti.minciencias.gov.co/gruplac/jsp/visualiza/visualizagr.jsp?nro=00000000011141 | AT15: BB87:BB90 | AU15: =ROW() -> 15 | AV15: =MINA(IF(AQ15=$BA$4:$BA$394,$BD$4:$BD$394)) -> 87 | AW15: =MAXA(IF(AQ15=$BA$4:$BA$394,$BD$4:$BD$394)) -> 90 | AX15: CIAS | BA15: COL0031824 | BB15: Bioética Médica y salud pública | BC15: =COUNTIF(BA$4:BA15,BA15) -> 2 | BD15: =ROW() -> 15 | BE15: 1 | BT15: 12 | BU15: Ciencias Médicas y de la Salud-Ciencias de la Salud | BV15: Ciencias Médicas y de la Salud | BW15: Ciencias de la Salud | BX15: 12 | CB15: 12 | CC15: Producción y consumo responsables | CM15: 13 | CN15: 116 | CO15: Productos de Generación de Nuevo Conocimiento (GNC) | CP15: Patente Solitud PCT Invencion | CQ15: Publicación de la solicitud, por la Oficina Nacional Competente, de patente de invención vía PCT respaldada por un concepto favorable de vigilancia tecnológica efectuado por la División de Desarrollo Tecnológico e Innovación y soportada por un prototipo validado que se encuentre en un nivel igual o superior a TRL 4 | CR15: Concepto favorable de vigilancia tecnológica de la DDTI, y publicación en la gaceta de la Superintendencia de Industria Comercio. | CS15: 0 | CT15: 0 | CU15: 20 | CX15: 12 | CY15: Productos | CZ15: 20 Pts : Clas (GNC) mayor que 1 | DA15: No tiene producto de Generación de Nuevo Conocimiento (GNC) | DB15: =IF(DC15<1,CX15,0) -> 12 | DC15: =Productos!$H$33 -> 0 | DD15: =V_Max -> 0 | DG15: 13 | DH15: =IFERROR(NbHoja(ROW()-2),DK15) -> Impactos | DI15: =MAX(IF($CY$2:$CY$400=$DH15,$DB$2:$DB$400,0)) -> 21 | DJ15: Error : 021.- No se a diligenciado la hoja [Impactos] | DK15: Impactos
F16: 13 | G16: =CLEAN(TRIM(Objetivos!C21)) ->  | H16: =CLEAN(TRIM(Cronograma!C20)) ->  | I16: =Cronograma!D20 -> 0 | J16: =Cronograma!E20 -> 0 | L16: Fila\ Columna | M16: D | AA16: 3 | AB16: Programa | AC16: CIAS | AD16: Maestría en Biología Aplicada | AE16: 33 | AI16: Categoría C | AK16: 56 | AL16: 13 | AM16: 1 | AN16: 13 | AO16: CIAS | AP16: ECMU (Evaluacion en Competencias y Matemáticas Universitarias) | AQ16: COL0110329 | AR16: C | AS16: https://scienti.minciencias.gov.co/gruplac/jsp/visualiza/visualizagr.jsp?nro=00000000011130 | AT16: BB248:BB250 | AU16: =ROW() -> 16 | AV16: =MINA(IF(AQ16=$BA$4:$BA$394,$BD$4:$BD$394)) -> 248 | AW16: =MAXA(IF(AQ16=$BA$4:$BA$394,$BD$4:$BD$394)) -> 250 | AX16: CIAS | BA16: COL0031824 | BB16: Bioética, Biopolítica y Biojurídica | BC16: =COUNTIF(BA$4:BA16,BA16) -> 3 | BD16: =ROW() -> 16 | BE16: 1 | BT16: 13 | BU16: Ciencias Sociales-Otras Ciencias Sociales | BV16: Ciencias Sociales | BW16: Otras Ciencias Sociales | BX16: 13 | CB16: 13 | CC16: Acción por el clima | CM16: 14 | CN16: 117 | CO16: Productos de Generación de Nuevo Conocimiento (GNC) | CP16: Patente Solitud Nacional Utilidad | CQ16: Publicación de la solicitud, por la Oficina Nacional Competente, de modelo de utilidad vía fase nacional respaldada por un concepto favorable de vigilancia tecnológica efectuado por la División de Desarrollo Tecnológico e Innovación y soportada por un prototipo validado que se encuentre en un nivel igual o superior a TRL 4 | CR16: Concepto favorable de vigilancia tecnológica de la DDTI, y publicación en la gaceta de la Superintendencia de Industria Comercio. | CS16: 0 | CT16: 0 | CU16: 15 | CX16: 13 | CY16: Productos | CZ16: 20 Pts : Clas (FRH) mayor que 1 | DA16: No tiene producto de Formación de Recurso Humano (FRH) | DB16: =IF(DC16<1,CX16,0) -> 13 | DC16: =Productos!$H$34 -> 0 | DD16: =V_Max -> 0 | DG16: 14 | DH16: =IFERROR(NbHoja(ROW()-2),DK16) -> Declaración | DI16: =MAX(IF($CY$2:$CY$400=$DH16,$DB$2:$DB$400,0)) -> 0 | DK16: Declaración
F17: 14 | G17: =CLEAN(TRIM(Objetivos!C22)) ->  | H17: =CLEAN(TRIM(Cronograma!C21)) ->  | I17: =Cronograma!D21 -> 0 | J17: =Cronograma!E21 -> 0 | L17: General | M17: Nombre | N17: Cod | O17: Clas | P17: Fac | Q17: Linea | R17: Cvlac | S17: Ref | AA17: 3 | AB17: Programa | AC17: CIAS | AD17: Departamento de Matemáticas | AE17: 34 | AI17: Categoría C | AK17: 58 | AL17: 14 | AM17: 1 | AN17: 14 | AO17: CIAS | AP17: Grupo de Docencia e Investigación en Física | AQ17: COL0138796 | AR17: NR | AS17: https://scienti.minciencias.gov.co/gruplac/jsp/visualiza/visualizagr.jsp?nro=00000000014082 | AT17: =$AT$2&AV17&":"&$AT$2&AW17 -> BB223:BB227 | AU17: =ROW() -> 17 | AV17: =MINA(IF(AQ17=$BA$4:$BA$394,$BD$4:$BD$394)) -> 223 | AW17: =MAXA(IF(AQ17=$BA$4:$BA$394,$BD$4:$BD$394)) -> 227 | AX17: =AO17 -> CIAS | BA17: COL0031824 | BB17: Bioética, educación y cultura | BC17: =COUNTIF(BA$4:BA17,BA17) -> 4 | BD17: =ROW() -> 17 | BE17: 1 | BT17: 14 | BU17: Ciencias Sociales-Psicología | BV17: Ciencias Sociales | BW17: Psicología | BX17: 14 | CB17: 14 | CC17: Vida submarina | CM17: 15 | CN17: 118 | CO17: Productos de Generación de Nuevo Conocimiento (GNC) | CP17: Patente Solitud PCT Utilidad | CQ17: Publicación de la solicitud, por la Oficina Nacional Competente, de modelo de utilidad vía PCT respaldada por un concepto favorable de vigilancia tecnológica efectuado por la División de Desarrollo Tecnológico e Innovación y soportada por un prototipo validado que se encuentre en un nivel igual o superior a TRL 4 | CR17: Concepto favorable de vigilancia tecnológica de la DDTI, y publicación en la gaceta de la Superintendencia de Industria Comercio. | CS17: 0 | CT17: 0 | CU17: 15 | CX17: 14 | CY17: Productos | CZ17: 40 Pts : Clas (SAC) mayor que 1 | DA17: No tiene producto de Socialización y Apropiación social del Conocimiento (SAC) | DB17: =IF(AND(DC17<1,DD17>40),CX17,0) -> 0 | DC17: =Productos!$H$35 -> 0 | DD17: =V_Max -> 0 | DG17: 15 | DH17: =IFERROR(NbHoja(ROW()-2),"-") -> - | DI17: =MAX(IF($CY$2:$CY$400=$DH17,$DB$2:$DB$400,0)) -> 0
F18: 15 | G18: =CLEAN(TRIM(Objetivos!C23)) ->  | H18: =CLEAN(TRIM(Cronograma!C22)) ->  | I18: =Cronograma!D22 -> 0 | J18: =Cronograma!E22 -> 0 | L18: 1 | M18: =General!C18 -> 0 | N18: =General!L18 -> 0 | O18: =General!I19 ->  | P18: =General!#REF! ->  | Q18: =General!C20 -> 0 | R18: =General!C19 ->  | S18: =General!L20 -> 0 | AA18: 3 | AB18: Programa | AC18: CIAS | AD18: Departamento de Física | AE18: 35 | AI18: Categoría C | AK18: 71 | AL18: 71 | AM18: 1 | AN18: 71 | AO18: CIAS | AP18: DIVERSITAS | AQ18: COL0178619 | AR18: C | AS18: https://scienti.minciencias.gov.co/gruplac/jsp/visualiza/visualizagr.jsp?nro=00000000018063 | AT18: =$AT$2&AV18&":"&$AT$2&AW18 -> BB282:BB287 | AU18: =ROW() -> 18 | AV18: =MINA(IF(AQ18=$BA$4:$BA$394,$BD$4:$BD$394)) -> 282 | AW18: =MAXA(IF(AQ18=$BA$4:$BA$394,$BD$4:$BD$394)) -> 287 | AX18: =AO18 -> CIAS | BA18: COL0086179 | BB18: Búsqueda de marcadores genéticos y estudio de genes ligados a la resistencia a Fusarium en clavel. | BC18: =COUNTIF(BA$4:BA18,BA18) -> 1 | BD18: =ROW() -> 18 | BE18: 1 | BT18: 15 | BU18: Ciencias Sociales-Economía y Negocios | BV18: Ciencias Sociales | BW18: Economía y Negocios | BX18: 15 | CB18: 15 | CC18: Vida de ecosistemas terrestres | CM18: 16 | CN18: 201 | CO18: Productos resultado de actividades de desarrollo tecnológico e innovación (DTI) | CP18: Software | CQ18: Software aprobado para registro ante la DNDA, de acuerdo con procedimientos establecidos por la UMNG. | CR18: Soporte logico registre el aval para el software que incluya : Manual técnico, Manual de usuario todos con la inclucion código de trazabilidad, | CS18: 10 | CT18: 0 | CX18: 15 | CY18: Productos | CZ18: sin el minimo de productos | DA18: No tiene la productividad mínima requerida para la convcocatoria INV de 20 Puntos. | DB18: =IF(DC18<20,CX18,0) -> 15 | DC18: =V_Max -> 0
F19: 16 | H19: =CLEAN(TRIM(Cronograma!C23)) ->  | I19: =Cronograma!D23 -> 0 | J19: =Cronograma!E23 -> 0 | L19: 2 | M19: =General!D22 -> 0 | N19: =General!L22 -> 0 | O19: =General!I23 ->  | P19: =General!C22 -> 0 | Q19: =General!C24 -> 0 | R19: =General!C23 ->  | S19: =General!L24 -> 0 | AA19: 3 | AB19: Programa | AC19: CIAS | AD19: Departamento de Química | AE19: 36 | AI19: Categoría B | AK19: 72 | AL19: 72 | AM19: 1 | AN19: 72 | AO19: CIAS | AP19: Nanofab | AQ19: COL0179618 | AR19: C | AS19: https://scienti.minciencias.gov.co/gruplac/jsp/visualiza/visualizagr.jsp?nro=00000000018163 | AT19: =$AT$2&AV19&":"&$AT$2&AW19 -> BB118:BB123 | AU19: =ROW() -> 19 | AV19: =MINA(IF(AQ19=$BA$4:$BA$394,$BD$4:$BD$394)) -> 118 | AW19: =MAXA(IF(AQ19=$BA$4:$BA$394,$BD$4:$BD$394)) -> 123 | AX19: =AO19 -> CIAS | BA19: COL0086179 | BB19: Producción de nuevas variedades de clavel resistentes a parasitos vasculares. | BC19: =COUNTIF(BA$4:BA19,BA19) -> 2 | BD19: =ROW() -> 19 | BE19: 1 | BT19: 16 | BU19: Ciencias Sociales-Derecho | BV19: Ciencias Sociales | BW19: Derecho | BX19: 16 | CB19: 16 | CC19: Paz, justicia e instituciones sólidas | CM19: 17 | CN19: 202 | CO19: Productos resultado de actividades de desarrollo tecnológico e innovación (DTI) | CP19: Esquema trazado | CQ19: Esquema de trazado de circuito integrado registrado ante la SIC a través de acto administrativo que resuelva la concesión favorable. | CR19: Documento en el que se describa el esquema de trazado de circuito integrado obtenido con nombre, autor, fecha, cód. de trazabilidad y autores debidamente registrados según Res. vigente, Acto administrativo de la Superintendencia de Industria y Comercio que resuelva la concesión favorable. | CS19: 10 | CT19: 0 | CX19: 16 | CY19: Integrantes | CZ19: Mas de un coinvestigador Interno | DA19: La convocatoria limita a un solo coinvestigador UMNG en el proyecto. | DB19: =IF(DC19>1,CX19,0) -> 0 | DC19: =Integrantes!$AB$24 -> 0
F20: 17 | H20: =CLEAN(TRIM(Cronograma!C24)) ->  | I20: =Cronograma!D24 -> 0 | J20: =Cronograma!E24 -> 0 | L20: 3 | M20: =General!D26 -> 0 | N20: =General!L26 -> 0 | O20: =General!I27 ->  | P20: =General!C26 -> 0 | Q20: =General!C28 -> 0 | R20: =General!C27 ->  | S20: =General!L28 -> 0 | AA20: 3 | AB20: Programa | AC20: CIAS | AD20: Doctorado en Ciencias Aplicadas | AE20: 33 | AI20: Categoría B | AK20: 11 | AL20: 15 | AM20: 1 | AN20: 77 | AO20: CIAS | AP20: ICAAO: Inteligencia Computacional, Aprendizaje Automático y Optimización | AQ20: COL0169362 | AR20: C | AS20: https://scienti.minciencias.gov.co/gruplac/jsp/visualiza/visualizagr.jsp?nro=00000000017140 | AT20: =$AT$2&AV20&":"&$AT$2&AW20 -> BB330:BB333 | AU20: =ROW() -> 20 | AV20: =MINA(IF(AQ20=$BA$4:$BA$394,$BD$4:$BD$394)) -> 330 | AW20: =MAXA(IF(AQ20=$BA$4:$BA$394,$BD$4:$BD$394)) -> 333 | AX20: =AO20 -> CIAS | BA20: COL0086179 | BB20: Taxonomia y filogenia molecular: desarrollo de intrumentos de analsis | BC20: =COUNTIF(BA$4:BA20,BA20) -> 3 | BD20: =ROW() -> 20 | BE20: 1 | BT20: 17 | BU20: Ciencias Sociales-Ciencias de la Educación | BV20: Ciencias Sociales | BW20: Ciencias de la Educación | BX20: 17 | CB20: 17 | CC20: Alianzas para lograr los objetivos | CM20: 18 | CN20: 203 | CO20: Productos resultado de actividades de desarrollo tecnológico e innovación (DTI) | CP20: Normas Internacionales | CQ20: Regulaciones, normas, reglamentos o legislaciones implementadas internacionalmente, acorde con parámetros de Minciencias. | CR20: "Documento en el que se describa la regulación, norma, reglamento o legislación+CR10 obtenido con nombre, autor, fecha, cód. de trazabilidad y autores debidamente registrados según Res. vigente" ,"Certificado de la entidad o institución que emitió el producto, indicando la participación en su construcción de todos o de alguno de los integrantes del proyecto, título, país, ciudad, fecha de publicación / implementación, tipo de regulación, ámbito. | CS20: 20 | CT20: 0 | CX20: 17 | CY20: Integrantes | CZ20: Mas de 3 coinvestigadores Ext. 2 Ins | DA20: No se pueden incluir mas de 3 coinvestigadores externos | DB20: =IF(DC20>3,CX20,0) -> 0 | DC20: =Integrantes!$AB$14 -> 0
F21: 18 | H21: =CLEAN(TRIM(Cronograma!C25)) ->  | I21: =Cronograma!D25 -> 0 | J21: =Cronograma!E25 -> 0 | AA21: 4 | AB21: Programa | AC21: DER | AD21: Derecho | AE21: 16 | AI21: Categoría C | AK21: 47 | AL21: 16 | AM21: 1 | AN21: 15 | AO21: DER | AP21: Grupo de derecho público | AQ21: COL0028918 | AR21: B | AS21: https://scienti.minciencias.gov.co/gruplac/jsp/visualiza/visualizagr.jsp?nro=00000000001079 | AT21: BB293:BB297 | AU21: =ROW() -> 21 | AV21: =MINA(IF(AQ21=$BA$4:$BA$394,$BD$4:$BD$394)) -> 293 | AW21: =MAXA(IF(AQ21=$BA$4:$BA$394,$BD$4:$BD$394)) -> 297 | AX21: DER | BA21: COL0028767 | BB21: Estrategia y control de gestión | BC21: =COUNTIF(BA$4:BA21,BA21) -> 1 | BD21: =ROW() -> 21 | BE21: 1 | BT21: 18 | BU21: Ciencias Sociales-Sociología | BV21: Ciencias Sociales | BW21: Sociología | BX21: 18 | CM21: 19 | CN21: 204 | CO21: Productos resultado de actividades de desarrollo tecnológico e innovación (DTI) | CP21: Normas Nacionales | CQ21: Regulaciones, normas, reglamentos o legislaciones implementadas nacionalmente (no institucional), acorde con parámetros de Minciencias. | CR21: "Documento en el que se describa la regulación, norma, reglamento o legislación+CR10 obtenido con nombre, autor, fecha, cód. de trazabilidad y autores debidamente registrados según Res. vigente" ,"Certificado de la entidad o institución que emitió el producto, indicando la participación en su construcción de todos o de alguno de los integrantes del proyecto, título, país, ciudad, fecha de publicación / implementación, tipo de regulación, ámbito. | CS21: 10 | CT21: 0 | CX21: 18 | CY21: Integrantes | CZ21: Mas de 2 Coinvestigadores Ext. 1 Inst | DA21: ="No se pueden incluir mas de 2 coinvestigadores externos"&IF(DD21>1," de una de ("&DE21 &")","") -> No se pueden incluir mas de 2 coinvestigadores externos | DB21: =IF(AND(DC21>2,DD21>3),CX21,0) -> 0 | DC21: =Integrantes!$AB$14 -> 0 | DD21: =General!I30 -> 0 | DE21: =CLEAN(General!C32) -> 
F22: 19 | H22: =CLEAN(TRIM(Cronograma!C26)) ->  | I22: =Cronograma!D26 -> 0 | J22: =Cronograma!E26 -> 0 | AA22: 5 | AB22: Programa | AC22: DER | AD22: Maestría en Derecho Procesal Penal | AE22: 47 | AI22: Categoría C | AK22: 68 | AL22: 17 | AM22: 1 | AN22: 16 | AO22: DER | AP22: Grupo de Derecho Privado | AQ22: COL0128047 | AR22: C | AS22: https://scienti.minciencias.gov.co/gruplac/jsp/visualiza/visualizagr.jsp?nro=00000000012964 | AT22: BB132:BB133 | AU22: =ROW() -> 22 | AV22: =MINA(IF(AQ22=$BA$4:$BA$394,$BD$4:$BD$394)) -> 132 | AW22: =MAXA(IF(AQ22=$BA$4:$BA$394,$BD$4:$BD$394)) -> 133 | AX22: DER | BA22: COL0028767 | BB22: Estudios Organizacionales (EO) y responsabilidad social (RS) | BC22: =COUNTIF(BA$4:BA22,BA22) -> 2 | BD22: =ROW() -> 22 | BE22: 1 | BT22: 19 | BU22: Ciencias Sociales-Ciencias Políticas | BV22: Ciencias Sociales | BW22: Ciencias Políticas | BX22: 19 | CM22: 20 | CN22: 205 | CO22: Productos resultado de actividades de desarrollo tecnológico e innovación (DTI) | CP22: Nuevo registro cientifico | CQ22: Nuevo registro científico - Incluido en sistemas de información científica con las especificaciones del Documento conceptual de la Convocatoria 833 de 2018 de Minciencias. | CR22: Copia de la Inclusión del nuevo registro científico en el sistema de información científico, matriz con la relación de conjunto de metadatos publicado, y URL de acceso. | CS22: 15 | CT22: 0 | CX22: 19 | CY22: Integrantes | CZ22: Externos con 5 hras min o $$$ | DA22: Se debe aportar mínimo 5 hrs semanal por investigador externo o el aporte en recurso efectivo | DB22: =IF(AND(DC22>0,$DE$22=0),CX22,0) -> 0 | DC22: =Integrantes!$Y$29 -> 0 | DE22: =Presupuesto!$H$141 -> 0 | DF22: =General!$I$30 -> 0
F23: 20 | H23: =CLEAN(TRIM(Cronograma!C27)) ->  | I23: =Cronograma!D27 -> 0 | J23: =Cronograma!E27 -> 0 | AA23: 6 | AB23: Programa | AC23: DER | AD23: Maestría en Derecho Administrativo | AE23: 48 | AI23: No Reconocido | AK23: 2 | AL23: 18 | AM23: 1 | AN23: 17 | AO23: DER | AP23: Red de estudios sociojurídicos comparados y políticas públicas | AQ23: COL0142449 | AR23: A | AS23: https://scienti.minciencias.gov.co/gruplac/jsp/visualiza/visualizagr.jsp?nro=00000000014449 | AT23: BB270:BB275 | AU23: =ROW() -> 23 | AV23: =MINA(IF(AQ23=$BA$4:$BA$394,$BD$4:$BD$394)) -> 270 | AW23: =MAXA(IF(AQ23=$BA$4:$BA$394,$BD$4:$BD$394)) -> 275 | AX23: DER | BA23: COL0028767 | BB23: Estudios en Ciencia, Tecnología, Innovación y Emprendimiento (desde la gestión, economía y política pública) | BC23: =COUNTIF(BA$4:BA23,BA23) -> 3 | BD23: =ROW() -> 23 | BE23: 1 | BT23: 20 | BU23: Ciencias Sociales-Geografía Social y Económica | BV23: Ciencias Sociales | BW23: Geografía Social y Económica | BX23: 20 | CM23: 21 | CN23: 207 | CO23: Productos resultado de actividades de desarrollo tecnológico e innovación (DTI) | CP23: Prototipo TRL4 | CQ23: Productos o procesos tecnológicos usualmente no patentables (Prototipo) - Estado de desarrollo TRL4 - Validación a nivel de laboratorio. | CR23: Prototipo madurado en mínimo TRL 4 Validado por DDTI o Ente externo especializado y acompañado de: 1. Manual de funcionamiento según el formato establecido por VICEIN. 2.Registro fotográfico de los componentes del prototipo. 3.Registro fílmico sobre funcionamiento del prototipo.4.Soportes de pruebas y validación (según aplique) | CS23: 10 | CT23: 0 | CX23: 20 | CY23: Impactos | CZ23: Datos de impactos pendientes | DA23: ="No se a diligenciado en la hoja [Impactos]: "&DD23 -> No se a diligenciado en la hoja [Impactos]: Impacto principal | DB23: =IF(DC23>0,CX23,0) -> 20 | DC23: =Impactos!$O$16 -> 10 | DD23: =Impactos!$N$16 -> Impacto principal
F24: Col | G24: 1 | H24: =G24+1 -> 2 | I24: =H24+1 -> 3 | J24: 4 | K24: 5 | L24: 6 | M24: 7 | N24: 8 | O24: 9 | P24: 10 | Q24: 11 | R24: 12 | S24: 13 | T24: 14 | U24: 15 | V24: 16 | AA24: 7 | AB24: Programa | AC24: DER | AD24: Maestría en Instituciones Jurídicas de la Fuerza Pública | AE24: 49 | AI24: No Reconocido | AK24: 8 | AL24: 19 | AM24: 1 | AN24: 18 | AO24: DIS | AP24: PROPPIO: Procesos organizacionales, programaticos y políticos para la promoción del desarrollo | AQ24: COL0062704 | AR24: NR | AS24: https://scienti.minciencias.gov.co/gruplac/jsp/visualiza/visualizagr.jsp?nro=00000000006477 | AT24: BB303:BB306 | AU24: =ROW() -> 24 | AV24: =MINA(IF(AQ24=$BA$4:$BA$394,$BD$4:$BD$394)) -> 303 | AW24: =MAXA(IF(AQ24=$BA$4:$BA$394,$BD$4:$BD$394)) -> 306 | AX24: DIS | BA24: COL0045848 | BB24: Epidemiología Clínica de Diabetes e Insulino resistencia | BC24: =COUNTIF(BA$4:BA24,BA24) -> 1 | BD24: =ROW() -> 24 | BE24: 1 | BT24: 21 | BU24: Ciencias Sociales-Periodismo y Comunicaciones | BV24: Ciencias Sociales | BW24: Periodismo y Comunicaciones | BX24: 21 | CM24: 22 | CN24: 208 | CO24: Productos resultado de actividades de desarrollo tecnológico e innovación (DTI) | CP24: Prototipo TRL5 | CQ24: Productos o procesos tecnológicos (Prototipo) - Estado de desarrollo TRL5 - validación de componentes en entorno relevante. | CR24: Prototipo madurado en mínimo un nivel en la escala TRL comprometida o esperada, Validado por DDTI o Ente externo especializado y acompañado de: 1. Manual de funcionamiento según el formato establecido por VICEIN. 2.Registro fotográfico de los componentes del prototipo. 3.Registro fílmico sobre funcionamiento del prototipo. 4.Soportes de pruebas y validación (según aplique). | CS24: 13 | CT24: 0 | CX24: 21 | CY24: Impactos | CZ24: Impactos sin diligenciar | DA24: No se a diligenciado la hoja [Impactos] | DB24: =IF(DC24=9,CX24,0) -> 21 | DC24: =Impactos!$O$3 -> 9
AA25: 8 | AB25: Programa | AC25: DER | AD25: Especialización en Derecho Administrativo | AE25: 50 | AI25: Categoría B | AK25: 20 | AL25: 20 | AM25: 1 | AN25: 19 | AO25: DIS | AP25: INCONDIS | AQ25: COL0127649 | AR25: C | AS25: https://scienti.minciencias.gov.co/gruplac/jsp/visualiza/visualizagr.jsp?nro=00000000012918 | AT25: BB315:BB315 | AU25: =ROW() -> 25 | AV25: =MINA(IF(AQ25=$BA$4:$BA$394,$BD$4:$BD$394)) -> 315 | AW25: =MAXA(IF(AQ25=$BA$4:$BA$394,$BD$4:$BD$394)) -> 315 | AX25: DIS | BA25: COL0045848 | BB25: Genética de diabetes mellitus e insulino resistencia | BC25: =COUNTIF(BA$4:BA25,BA25) -> 2 | BD25: =ROW() -> 25 | BE25: 1 | BT25: 22 | BU25: Ingeniería y Tecnología-Ingeniería Mecánica | BV25: Ingeniería y Tecnología | BW25: Ingeniería Mecánica | BX25: 22 | CM25: 23 | CN25: 209 | CO25: Productos resultado de actividades de desarrollo tecnológico e innovación (DTI) | CP25: Prototipo TRL6 | CQ25: Productos o procesos tecnológicos (Prototipo) - Estado de desarrollo TRL6 - Validación de sistema o subsistema en entorno relevante | CR25: Prototipo madurado en mínimo un nivel en la escala TRL comprometida o esperada, Validado por DDTI o Ente externo especializado y acompañado de: 1. Manual de funcionamiento según el formato establecido por VICEIN. 2.Registro fotográfico de los componentes del prototipo. 3.Registro fílmico sobre funcionamiento del prototipo. 4.Soportes de pruebas y validación (según aplique). | CS25: 16 | CT25: 0 | CX25: 22 | CY25: Objetivos | CZ25: Obj General pendiente | DA25: Objetivo gereral pendiente de diligenciar | DB25: =IF(DC25=0,CX25,0) -> 22 | DC25: =Objetivos!$G$8 -> 0
AA26: 9 | AB26: Programa | AC26: DER | AD26: Especialización en Procedimiento Penal, Constitucional y Justicia Militar | AE26: 51 | AI26: Categoría C | AK26: 22 | AL26: 21 | AM26: 1 | AN26: 20 | AO26: DIS | AP26: "PYDES" Pedagogía y didáctica en la educación superior | AQ26: COL0018448 | AR26: C | AS26: https://scienti.minciencias.gov.co/gruplac/jsp/visualiza/visualizagr.jsp?nro=00000000000929 | AT26: BB236:BB238 | AU26: =ROW() -> 26 | AV26: =MINA(IF(AQ26=$BA$4:$BA$394,$BD$4:$BD$394)) -> 236 | AW26: =MAXA(IF(AQ26=$BA$4:$BA$394,$BD$4:$BD$394)) -> 238 | AX26: DIS | BA26: COL0045848 | BB26: Prevención Cardiovascular | BC26: =COUNTIF(BA$4:BA26,BA26) -> 3 | BD26: =ROW() -> 26 | BE26: 1 | BT26: 23 | BU26: Ingeniería y Tecnología-Otras Ingenierías y Tecnologías | BV26: Ingeniería y Tecnología | BW26: Otras Ingenierías y Tecnologías | BX26: 23 | CM26: 24 | CN26: 210 | CO26: Productos resultado de actividades de desarrollo tecnológico e innovación (DTI) | CP26: Prototipo TRL7 | CQ26: Productos o procesos tecnológicos (Prototipo) - Estado de desarrollo TRL7 - Validación en entorno real. | CR26: Prototipo madurado en mínimo un nivel en la escala TRL comprometida o esperada, Validado por DDTI o Ente externo especializado y acompañado de: 1. Manual de funcionamiento según el formato establecido por VICEIN. 2.Registro fotográfico de los componentes del prototipo. 3.Registro fílmico sobre funcionamiento del prototipo. 4.Soportes de pruebas y validación (según aplique). | CS26: 19 | CT26: 0 | CX26: 23 | CY26: Objetivos | CZ26: Obj especificos pendientes | DA26: Pendientes incluir objetivos especificos. | DB26: =IF(DC26=0,CX26,0) -> 0 | DC26: =SUM(Cronograma!$I$8:$I$26) -> 4
I27: Totales | K27: =SUM(K31:K52) -> 0 | Q27: =SUM(Q30:Q52) -> 0 | V27: =SUM(V30:V52) -> 0 | W27: =SUM(W30:W52) -> 0 | X27: =SUM(X30:X52) -> 0 | AA27: 10 | AB27: Programa | AC27: DER | AD27: Especialización en Derecho Sancionatorio | AE27: 52 | AI27: Categoría C | AK27: 39 | AL27: 22 | AM27: 1 | AN27: 21 | AO27: DIS | AP27: Medios, Mediaciones y Procesos en Educación a Distancia | AQ27: COL0067504 | AR27: C | AS27: https://scienti.minciencias.gov.co/gruplac/jsp/visualiza/visualizagr.jsp?nro=00000000004308 | AT27: BB184:BB189 | AU27: =ROW() -> 27 | AV27: =MINA(IF(AQ27=$BA$4:$BA$394,$BD$4:$BD$394)) -> 184 | AW27: =MAXA(IF(AQ27=$BA$4:$BA$394,$BD$4:$BD$394)) -> 189 | AX27: DIS | BA27: COL0152319 | BB27: Epidemiología Clínica | BC27: =COUNTIF(BA$4:BA27,BA27) -> 1 | BD27: =ROW() -> 27 | BE27: 1 | BT27: 24 | BU27: Ingeniería y Tecnología-Ingeniería Química | BV27: Ingeniería y Tecnología | BW27: Ingeniería Química | BX27: 24 | CM27: 25 | CN27: 211 | CO27: Productos resultado de actividades de desarrollo tecnológico e innovación (DTI) | CP27: Prototipo TRL8 | CQ27: Productos o procesos tecnológicos (Prototipo) - Estado de desarrollo TRL8 - Validación completa y certificacion en entorno real. | CR27: Prototipo madurado en mínimo un nivel en la escala TRL comprometida o esperada, Validado por DDTI o Ente externo especializado y acompañado de: 1. Manual de funcionamiento según el formato establecido por VICEIN. 2.Registro fotográfico de los componentes del prototipo. 3.Registro fílmico sobre funcionamiento del prototipo. 4.Soportes de pruebas y validación (según aplique). | CS27: 22 | CT27: 0 | CX27: 24 | CY27: General | CZ27: Instituciones Externas | DA27: Pendiente incluir presupuesto de instituciones Externas | DB27: =IF(AND(DC27>0,DD27<1),CX27,0) -> 0 | DC27: =General!$I$30 -> 0 | DD27: =Presupuesto!$I$87 -> 0
F28: Valores Presupuestales | AA28: 11 | AB28: Programa | AC28: DER | AD28: Especialización en Derechos Humanos y Sistemas de Protección | AE28: 53 | AI28: Categoría C | AK28: 61 | AL28: 23 | AM28: 1 | AN28: 22 | AO28: DIS | AP28: PIREO "Procesos de Integración, Regionalización y Estructuras Organizacionales" | AQ28: COL0066229 | AR28: B | AS28: https://scienti.minciencias.gov.co/gruplac/jsp/visualiza/visualizagr.jsp?nro=00000000004242 | AT28: BB140:BB142 | AU28: =ROW() -> 28 | AV28: =MINA(IF(AQ28=$BA$4:$BA$394,$BD$4:$BD$394)) -> 140 | AW28: =MAXA(IF(AQ28=$BA$4:$BA$394,$BD$4:$BD$394)) -> 142 | AX28: DIS | BA28: COL0152319 | BB28: Epidemiología General. | BC28: =COUNTIF(BA$4:BA28,BA28) -> 2 | BD28: =ROW() -> 28 | BE28: 1 | BT28: 25 | BU28: Ingeniería y Tecnología-Ingenierías Eléctrica, Electrónica e Informática | BV28: Ingeniería y Tecnología | BW28: Ingenierías Eléctrica, Electrónica e Informática | BX28: 25 | CB28: =CB20+1 -> 18 | CC28: Ciencias básicas | CM28: 26 | CN28: 212 | CO28: Productos resultado de actividades de desarrollo tecnológico e innovación (DTI) | CP28: Prototipo TRL9 | CQ28: Productos o procesos tecnológicos (Prototipo) - Estado de desarrollo TRL9 - Prueba exitosa en entorno real. | CR28: Prototipo madurado en mínimo un nivel en la escala TRL comprometida o esperada, Validado por DDTI o Ente externo especializado y acompañado de: 1. Manual de funcionamiento según el formato establecido por VICEIN. 2.Registro fotográfico de los componentes del prototipo. 3.Registro fílmico sobre funcionamiento del prototipo. 4.Soportes de pruebas y validación (según aplique). | CS28: 25 | CT28: 0 | CX28: 25 | CY28: General | CZ28: Lider Igual | DA28: El nombre completo del lider debe ser igual al incluido en la hoja integrantes | DB28: =IF(DE28=0,0,CX28) -> 0 | DC28: =General!$C$10 -> Luis Alexander Chirivi | DD28: =CLEAN(TRIM(Integrantes!$D$9&" "&Integrantes!$E$9)) -> Luis Alexander Chirivi | DE28: =LEN(DC28)-LEN(DD28) -> 0
G29: Datos de Contrapartida | L29: Datos OPS | AA29: 12 | AB29: Programa | AC29: DIS | AD29: Administración de Empresas | AE29: 17 | AI29: Categoría C | AK29: 67 | AL29: 24 | AM29: 1 | AN29: 23 | AO29: DIS | AP29: Modelos de simulación ICDIST | AQ29: COL0069296 | AR29: C | AS29: https://scienti.minciencias.gov.co/gruplac/jsp/visualiza/visualizagr.jsp?nro=00000000004423 | AT29: BB171:BB171 | AU29: =ROW() -> 29 | AV29: =MINA(IF(AQ29=$BA$4:$BA$394,$BD$4:$BD$394)) -> 171 | AW29: =MAXA(IF(AQ29=$BA$4:$BA$394,$BD$4:$BD$394)) -> 171 | AX29: DIS | BA29: COL0152319 | BB29: Formación del Recurso Humano en Salud en Epidemiología y Salud Colectiva | BC29: =COUNTIF(BA$4:BA29,BA29) -> 3 | BD29: =ROW() -> 29 | BE29: 1 | BT29: 26 | BU29: Ingeniería y Tecnología-Biotecnología Ambiental | BV29: Ingeniería y Tecnología | BW29: Biotecnología Ambiental | BX29: 26 | CB29: 19 | CC29: Otros | CM29: 27 | CN29: 301 | CO29: Producción resultado de actividades de apropiación social del conocimiento (ASC) | CP29: Circulación de conocimiento especializado | CQ29: Ponencia en evento Internacional de acuerdo con los requisitos de la resolución vigente de movilidad. | CR29: Certificado de ponente, trabajo presentado en el evento que será publicado en memorias con ISSN o ISBN, cód. de trazabilidad y autores debidamente registrados según Res. De movilidad Vigente. | CS29: 10 | CT29: 0 | CX29: 26 | CY29: General | CZ29: Grupo Lider sin definir | DA29: Pendiente Seleccionar Grupo de investigaciones Principal | DB29: =IF(DC29=0,CX29,0) -> 26 | DC29: =LEN(General!$C$18) -> 0
F30: No | G30: Identidad | H30: =Presupuesto!E13 -> Tipo de Vinculo UMNG | I30: =Presupuesto!F13 -> Numero de meses | J30: =Presupuesto!G13 -> Número Horas / Semanal | K30: =Presupuesto!H13 -> Valor Final | L30: =Presupuesto!C29 -> Valor mensual | M30: =Presupuesto!D29 -> Factor Salarial | N30: =Presupuesto!E29 -> Tipo de vinculación | O30: mes | P30: Horas | Q30: =Presupuesto!H29 -> Valor total | R30: =Presupuesto!C50 -> Rubro / Destino | S30: =Presupuesto!D50 -> Año de Vigencia | T30: =Presupuesto!E50 -> Descripción (Entidad- | U30: =Presupuesto!F50 -> 0 | V30: =Presupuesto!G50 -> Finaciación Vicein $ | W30: =Presupuesto!H50 -> $ Contrapartida Facultad | X30: =Presupuesto!I50 -> Contrapartida Otros $ | AA30: 12 | AB30: Programa | AC30: DIS | AD30: Administración de seguridad y Salud Ocupacional | AE30: X | AI30: Categoría C | AK30: 13 | AL30: 25 | AM30: 1 | AN30: 24 | AO30: DIS | AP30: INAMPE | AQ30: COL0142331 | AR30: C | AS30: https://scienti.minciencias.gov.co/gruplac/jsp/visualiza/visualizagr.jsp?nro=00000000014438 | AT30: BB58:BB60 | AU30: =ROW() -> 30 | AV30: =MINA(IF(AQ30=$BA$4:$BA$394,$BD$4:$BD$394)) -> 58 | AW30: =MAXA(IF(AQ30=$BA$4:$BA$394,$BD$4:$BD$394)) -> 60 | AX30: DIS | BA30: COL0152319 | BB30: Las Tecnologías de la Información y de la comunicación en Epidemiología y Salud Colectiva | BC30: =COUNTIF(BA$4:BA30,BA30) -> 4 | BD30: =ROW() -> 30 | BE30: 1 | BT30: 27 | BU30: Ingeniería y Tecnología-Nanotecnología | BV30: Ingeniería y Tecnología | BW30: Nanotecnología | BX30: 27 | CM30: 28 | CN30: 302 | CO30: Producción resultado de actividades de apropiación social del conocimiento (ASC) | CP30: Circulación de conocimiento especializado | CQ30: Ponencia en evento nacional de acuerdo con los requisitos de la resolución vigente de movilidad. | CR30: Certificado de ponente, trabajo presentado en el evento que será publicado en memorias con ISSN o ISBN, cód. de trazabilidad y autores debidamente registrados según Res. De movilidad Vigente. | CS30: 5 | CT30: 0 | CX30: 27 | CY30: General | CZ30: Linea del Grupo lider | DA30: Pendiente Seleccionar linea de investacion Grupo de investigaciones Principal | DB30: =IF(AND(DC29>0,DC30<2),CX30,0) -> 0 | DC30: =LEN(General!$C$20) -> 0
F31: =ROW()-30 -> 1 | G31: =Presupuesto!I14 -> 0 | H31: =Presupuesto!E14 -> 0 | I31: =Presupuesto!F14 -> 12 | J31: =Presupuesto!G14 -> 0 | K31: =Presupuesto!H14 -> 0 | L31: =Presupuesto!C30 -> 0 | M31: =Presupuesto!D30 -> 0 | N31: =Presupuesto!E30 -> 0 | O31: =Presupuesto!F30 -> 10 | P31: =Presupuesto!G30 -> No Aplica | Q31: =Presupuesto!H30 -> 0 | R31: =Presupuesto!C51 -> Personal | S31: =Presupuesto!D51 -> 1 | T31: =Presupuesto!E51 -> Contrapartida definida por VICEIN (No Habilitado) | U31: =Presupuesto!F51 -> 0 | V31: =Presupuesto!G51 -> 0 | W31: =Presupuesto!H51 -> 0 | X31: =Presupuesto!I51 -> 0 | AA31: 13 | AB31: Programa | AC31: DIS | AD31: Contaduría Pública | AE31: 18 | AI31: Categoría C | AK31: 17 | AL31: 26 | AM31: 1 | AN31: 25 | AO31: ECO | AP31: Grupo de Estudios en Ciencias Económicas - CIE | AQ31: COL0050294 | AR31: B | AS31: https://scienti.minciencias.gov.co/gruplac/jsp/visualiza/visualizagr.jsp?nro=00000000003322 | AT31: BB32:BB33 | AU31: =ROW() -> 31 | AV31: =MINA(IF(AQ31=$BA$4:$BA$394,$BD$4:$BD$394)) -> 32 | AW31: =MAXA(IF(AQ31=$BA$4:$BA$394,$BD$4:$BD$394)) -> 33 | AX31: ECO | BA31: COL0152319 | BB31: Medicina tradicional complementaria. | BC31: =COUNTIF(BA$4:BA31,BA31) -> 5 | BD31: =ROW() -> 31 | BE31: 1 | BT31: 28 | BU31: Ingeniería y Tecnología-Ingeniería Civil | BV31: Ingeniería y Tecnología | BW31: Ingeniería Civil | BX31: 28 | CM31: 29 | CN31: 303 | CO31: Producción resultado de actividades de apropiación social del conocimiento (ASC) | CP31: Participación ciudadana en CTeI | CQ31: Participación ciudadana en CTeI acorde con parámetros del modelo de medición de grupos de investigación- Minciencias** (Tabla XIV ANEXO 1) | CR31: Constancia de participación emitida por la comunidad o comunidades indicando que fueron incluidos en el proyecto/espacio/evento de CTI, con título del proyecto o nombre del espacio/evento, fecha de inicio, investigadores participantes, cód. de trazabilidad, nombre de la comunidad o comunidades participantes y otras instituciones o entidades vinculadas al proyecto/ espacio/evento de CTI. | CS31: 5 | CT31: 0 | CX31: 28 | CY31: General | CZ31: Linea del Grupo Aliado 1 | DA31: Pendiente Seleccionar linea de investacion Grupo de investigaciones Aliado 1 | DB31: =IF(AND(DC31>0,DD31=0),CX31,0) -> 0 | DC31: =LEN(General!$C$22) -> 0 | DD31: =LEN(General!$C$24) -> 0
F32: =ROW()-30 -> 2 | G32: =Presupuesto!I15 -> 0 | H32: =Presupuesto!E15 -> 0 | I32: =Presupuesto!F15 -> 12 | J32: =Presupuesto!G15 -> 0 | K32: =Presupuesto!H15 -> 0 | L32: =Presupuesto!C31 -> 0 | M32: =Presupuesto!D31 -> 0 | N32: =Presupuesto!E31 -> 0 | O32: =Presupuesto!F31 -> 10 | P32: =Presupuesto!G31 -> No Aplica | Q32: =Presupuesto!H31 -> 0 | R32: =Presupuesto!C52 -> 0 | S32: =Presupuesto!D52 -> 1 | T32: =Presupuesto!E52 -> 0 | U32: =Presupuesto!F52 -> 0 | V32: =Presupuesto!G52 -> 0 | W32: =Presupuesto!H52 -> 0 | X32: =Presupuesto!I52 -> 0 | AA32: 14 | AB32: Programa | AC32: DIS | AD32: Ingeniería Civil | AE32: 19 | AI32: Categoría B | AK32: 40 | AL32: 27 | AM32: 1 | AN32: 26 | AO32: ECO | AP32: GRUPO DE ESTUDIOS SOBRE DESIGUALDADES SOCIALES | AQ32: COL0027367 | AR32: C | AS32: https://scienti.minciencias.gov.co/gruplac/jsp/visualiza/visualizagr.jsp?nro=00000000000855 | AT32: BB288:BB290 | AU32: =ROW() -> 32 | AV32: =MINA(IF(AQ32=$BA$4:$BA$394,$BD$4:$BD$394)) -> 288 | AW32: =MAXA(IF(AQ32=$BA$4:$BA$394,$BD$4:$BD$394)) -> 290 | AX32: ECO | BA32: COL0050294 | BB32: Economía política del conflicto | BC32: =COUNTIF(BA$4:BA32,BA32) -> 1 | BD32: =ROW() -> 32 | BE32: 1 | BT32: 29 | BU32: Ingeniería y Tecnología-Ingeniería de los Materiales | BV32: Ingeniería y Tecnología | BW32: Ingeniería de los Materiales | BX32: 29 | CM32: 30 | CN32: 304 | CO32: Producción resultado de actividades de apropiación social del conocimiento (ASC) | CP32: Nueva secuencia genética | CQ32: Conjunto de información molecular que haya sido publicado en revista científica especializada y en una base de datos o repositorio de acceso público acorde con los parámetros del modelo de medición de grupos de investigación - Minciencias** (Tabla XVII ANEXO 1) | CR32: Nombre de la secuencia genética, fecha, mes y lugar de obtención, base de datos científica en la cual está incluida la nueva secuencia genética (nombre y url), e institución certificadora de la nueva secuencia genética, código de trazabilidad y autores debidamente registrados según la resolución para vinculación de personal vigente. | CS32: 10 | CT32: 0 | CX32: 29 | CY32: General | CZ32: Linea del Grupo Aliado 2 | DA32: Pendiente Seleccionar linea de investacion Grupo de investigaciones Aliado 2 | DB32: =IF(AND(DC32>0,DD32=0),CX32,0) -> 0 | DC32: =LEN(General!$C$26) -> 0 | DD32: =LEN(General!$C$28) -> 0
F33: 3 | G33: =Presupuesto!I16 -> 0 | H33: =Presupuesto!E16 -> 0 | I33: =Presupuesto!F16 -> 0 | J33: =Presupuesto!G16 -> 0 | K33: =Presupuesto!H16 -> 0 | L33: =Presupuesto!C32 -> 0 | M33: =Presupuesto!D32 -> 0 | N33: =Presupuesto!E32 -> 0 | O33: =Presupuesto!F32 -> 10 | P33: =Presupuesto!G32 -> No Aplica | Q33: =Presupuesto!H32 -> 0 | R33: =Presupuesto!C53 -> 0 | S33: =Presupuesto!D53 -> 1 | T33: =Presupuesto!E53 -> 0 | U33: =Presupuesto!F53 -> 0 | V33: =Presupuesto!G53 -> 0 | W33: =Presupuesto!H53 -> 0 | X33: =Presupuesto!I53 -> 0 | AA33: 15 | AB33: Programa | AC33: DIS | AD33: Ingeniería Industrial | AE33: 20 | AI33: Categoría C | AK33: 64 | AL33: 28 | AM33: 1 | AN33: 27 | AO33: ECO | AP33: Grupo de Estudios Contemporáneos en Gestión y Organizaciones GECGO | AQ33: COL0028767 | AR33: A | AS33: https://scienti.minciencias.gov.co/gruplac/jsp/visualiza/visualizagr.jsp?nro=00000000001069 | AT33: BB21:BB23 | AU33: =ROW() -> 33 | AV33: =MINA(IF(AQ33=$BA$4:$BA$394,$BD$4:$BD$394)) -> 21 | AW33: =MAXA(IF(AQ33=$BA$4:$BA$394,$BD$4:$BD$394)) -> 23 | AX33: ECO | BA33: COL0050294 | BB33: Economía, Gestión y Medio Ambiente | BC33: =COUNTIF(BA$4:BA33,BA33) -> 2 | BD33: =ROW() -> 33 | BE33: 1 | BT33: 30 | BU33: Ingeniería y Tecnología-Ingeniería Ambiental | BV33: Ingeniería y Tecnología | BW33: Ingeniería Ambiental | BX33: 30 | CM33: 31 | CN33: 401 | CO33: Formación de Recurso Humano (FRH) | CP33: Dirección o codirección de Tesis de doctorado | CQ33: Dirección de tesis finalizada de Doctorado de estudiantes de programas de Doctorado de la UMNG, con temáticas asociadas a la línea de investigación a la que pertenece el proyecto. | CR33: Acta de designación, anteproyecto con código de trazabilidad y acta de acompañamiento final | CS33: 0 | CT33: 0 | CU33: 25 | CX33: 30 | CY33: General | CZ33: Selecion de Facultad | DA33: Pendiente seleccionar Facultad del lider del proyecto | DB33: =IF(DC33=0,CX33,0) -> 30 | DC33: =LEN(General!$C$13) -> 0
F34: 4 | G34: =Presupuesto!I17 -> 0 | H34: =Presupuesto!E17 -> 0 | I34: =Presupuesto!F17 -> 0 | J34: =Presupuesto!G17 -> 0 | K34: =Presupuesto!H17 -> 0 | L34: =Presupuesto!C33 -> 0 | M34: =Presupuesto!D33 -> 0 | N34: =Presupuesto!E33 -> 0 | O34: =Presupuesto!F33 -> 10 | P34: =Presupuesto!G33 -> No Aplica | Q34: =Presupuesto!H33 -> 0 | R34: =Presupuesto!C54 -> 0 | S34: =Presupuesto!D54 -> 1 | T34: =Presupuesto!E54 -> 0 | U34: =Presupuesto!F54 -> 0 | V34: =Presupuesto!G54 -> 0 | W34: =Presupuesto!H54 -> 0 | X34: =Presupuesto!I54 -> 0 | AA34: 16 | AB34: Programa | AC34: DIS | AD34: Ingeniería Informática | AE34: 21 | AI34: Categoría B | AK34: 21 | AL34: 29 | AM34: 1 | AN34: 28 | AO34: ECO | AP34: GECS (Grupo de Estudios en Educación, Contabilidad y Sociedad) | AQ34: COL0117722 | AR34: B | AS34: https://scienti.minciencias.gov.co/gruplac/jsp/visualiza/visualizagr.jsp?nro=00000000011887 | AT34: BB129:BB131 | AU34: =ROW() -> 34 | AV34: =MINA(IF(AQ34=$BA$4:$BA$394,$BD$4:$BD$394)) -> 129 | AW34: =MAXA(IF(AQ34=$BA$4:$BA$394,$BD$4:$BD$394)) -> 131 | AX34: ECO | BA34: COL0049659 | BB34: Actividad física, promoción de la salud y prevención de la enfermedad. | BC34: =COUNTIF(BA$4:BA34,BA34) -> 1 | BD34: =ROW() -> 34 | BE34: 1 | BT34: 31 | BU34: Ingeniería y Tecnología-Biotecnología Industrial | BV34: Ingeniería y Tecnología | BW34: Biotecnología Industrial | BX34: 31 | CM34: 32 | CN34: 402 | CO34: Formación de Recurso Humano (FRH) | CP34: Dirección o codirección de Trabajo de maestría | CQ34: Dirección de trabajo de grado finalizado de estudiantes de programas de Maestría de la UMNG, con temáticas asociadas a línea de investigación a la que pertenece el proyecto | CR34: Acta de designación, anteproyecto con código de trazabilidad y acta de acompañamiento final | CS34: 0 | CT34: 0 | CU34: 15 | CX34: 31 | CY34: General | CZ34: Selecion de Programa | DA34: Pendiente seleccionar Programa del lider del proyecto | DB34: =IF(DC34=0,CX34,0) -> 31 | DC34: =LEN(General!$H$13) -> 0
F35: 5 | G35: =Presupuesto!I18 -> 0 | H35: =Presupuesto!E18 -> 0 | I35: =Presupuesto!F18 -> 0 | J35: =Presupuesto!G18 -> 0 | K35: =Presupuesto!H18 -> 0 | L35: =Presupuesto!C34 -> 0 | M35: =Presupuesto!D34 -> 0 | N35: =Presupuesto!E34 -> 0 | O35: =Presupuesto!F34 -> 10 | P35: =Presupuesto!G34 -> No Aplica | Q35: =Presupuesto!H34 -> 0 | R35: =Presupuesto!C55 -> 0 | S35: =Presupuesto!D55 -> 1 | T35: =Presupuesto!E55 -> 0 | U35: =Presupuesto!F55 -> 0 | V35: =Presupuesto!G55 -> 0 | W35: =Presupuesto!H55 -> 0 | X35: =Presupuesto!I55 -> 0 | AA35: 16 | AB35: Programa | AC35: DIS | AD35: Relaciones Internacionales y Estudios Políticos | AE35: X | AI35: Categoría C | AK35: 53 | AL35: 30 | AM35: 1 | AN35: 29 | AO35: EES | AP35: Estudios Internacionales y Políticos | AQ35: COL0066768 | AR35: B | AS35: https://scienti.minciencias.gov.co/gruplac/jsp/visualiza/visualizagr.jsp?nro=00000000004270 | AT35: BB68:BB73 | AU35: =ROW() -> 35 | AV35: =MINA(IF(AQ35=$BA$4:$BA$394,$BD$4:$BD$394)) -> 68 | AW35: =MAXA(IF(AQ35=$BA$4:$BA$394,$BD$4:$BD$394)) -> 73 | AX35: EES | BA35: COL0049659 | BB35: Medios de comunicación, educación y salud | BC35: =COUNTIF(BA$4:BA35,BA35) -> 2 | BD35: =ROW() -> 35 | BE35: 1 | BT35: 32 | BU35: Ingeniería y Tecnología-Ingeniería Médica | BV35: Ingeniería y Tecnología | BW35: Ingeniería Médica | BX35: 32 | CM35: 33 | CN35: 403 | CO35: Formación de Recurso Humano (FRH) | CP35: Jóven Investigador | CQ35: Joven investigador vinculado por mínimo ocho meses según los criterios de la Resolución vigente sobre vinculación de personal a los proyectos de investigación financiados o cofinanciados por la UMNG en los programas de CTeI. | CR35: Contrato OPS , informe de actividades final. | CS35: 10 | CT35: 0 | CX35: 32 | CY35: General | CZ35: Titulo No diligenciado | DA35: Título no esta diligenciado | DB35: =IF(OR(DC35=1,DD35<5),CX35,0) -> 0 | DC35: =IF(General!$B$9="Formato: actualizado a 16 Feb 2022",1,0) -> 0 | DD35: =LEN(General!$B$9) -> 34
F36: 6 | G36: =Presupuesto!I19 -> 0 | H36: =Presupuesto!E19 -> 0 | I36: =Presupuesto!F19 -> 0 | J36: =Presupuesto!G19 -> 0 | K36: =Presupuesto!H19 -> 0 | L36: =Presupuesto!C35 -> 0 | M36: =Presupuesto!D35 -> 0 | N36: =Presupuesto!E35 -> 0 | O36: =Presupuesto!F35 -> 10 | P36: =Presupuesto!G35 -> No Aplica | Q36: =Presupuesto!H35 -> 0 | R36: =Presupuesto!C56 -> 0 | S36: =Presupuesto!D56 -> 1 | T36: =Presupuesto!E56 -> 0 | U36: =Presupuesto!F56 -> 0 | V36: =Presupuesto!G56 -> 0 | W36: =Presupuesto!H56 -> 0 | X36: =Presupuesto!I56 -> 0 | AA36: 17 | AB36: Programa | AC36: DIS | AD36: Ingeniería Informática | AE36: X | AI36: Categoría A1 | AK36: 9 | AL36: 31 | AM36: =COUNTIF($AN$4:$AN$816,AL36) -> 1 | AN36: 30 | AO36: EES | AP36: Sociedad, Estrategia y Seguridad | AQ36: COL0066669 | AR36: C | AS36: https://scienti.minciencias.gov.co/gruplac/jsp/visualiza/visualizagr.jsp?nro=00000000004263 | AT36: BB74:BB78 | AU36: =ROW() -> 36 | AV36: =MINA(IF(AQ36=$BA$4:$BA$394,$BD$4:$BD$394)) -> 74 | AW36: =MAXA(IF(AQ36=$BA$4:$BA$394,$BD$4:$BD$394)) -> 78 | AX36: EES | BA36: COL0049659 | BB36: Salud Pública y Nutrición, Prevención de la Enfermedad y Promoción de la Salud | BC36: =COUNTIF(BA$4:BA36,BA36) -> 3 | BD36: =ROW() -> 36 | BE36: 1 | BT36: 33 | BU36: Ciencias Agrícolas-Biotecnología Agrícola | BV36: Ciencias Agrícolas | BW36: Biotecnología Agrícola | BX36: 33 | CM36: 34 | CN36: 404 | CO36: Formación de Recurso Humano (FRH) | CP36: Dirección o codirección de Trabajo de pregrado | CQ36: Dirección de Trabajo de grado de estudiantes en programas de pregrado de la UMNG, con temáticas asociadas a línea de investigación a la que pertenece el proyecto. | CR36: Copia del acta sustentación del proyecto de grado | CS36: 5 | CT36: 0 | CX36: 33
F37: 7 | G37: =Presupuesto!I20 -> 0 | H37: =Presupuesto!E20 -> 0 | I37: =Presupuesto!F20 -> 0 | J37: =Presupuesto!G20 -> 0 | K37: =Presupuesto!H20 -> 0 | L37: =Presupuesto!C36 -> 0 | M37: =Presupuesto!D36 -> 0 | N37: =Presupuesto!E36 -> 0 | O37: =Presupuesto!F36 -> 10 | P37: =Presupuesto!G36 -> No Aplica | Q37: =Presupuesto!H36 -> 0 | R37: =Presupuesto!C57 -> 0 | S37: =Presupuesto!D57 -> 1 | T37: =Presupuesto!E57 -> 0 | U37: =Presupuesto!F57 -> 0 | V37: =Presupuesto!G57 -> 0 | W37: =Presupuesto!H57 -> 0 | X37: =Presupuesto!I57 -> 0 | AA37: 17 | AB37: Programa | AC37: DIS | AD37: Especialización en Alta Gerencia | AE37: 54 | AI37: Categoría C | AK37: 23 | AL37: 32 | AM37: 1 | AN37: 31 | AO37: HUM | AP37: LIDERAZGO | AQ37: COL0015722 | AR37: A1 | AS37: https://scienti.minciencias.gov.co/gruplac/jsp/visualiza/visualizagr.jsp?nro=00000000000744 | AT37: BB161:BB162 | AU37: =ROW() -> 37 | AV37: =MINA(IF(AQ37=$BA$4:$BA$394,$BD$4:$BD$394)) -> 161 | AW37: =MAXA(IF(AQ37=$BA$4:$BA$394,$BD$4:$BD$394)) -> 162 | AX37: HUM | BA37: COL0036749 | BB37: Accesibilidad | BC37: =COUNTIF(BA$4:BA37,BA37) -> 1 | BD37: =ROW() -> 37 | BE37: 1 | BT37: 34 | BU37: Ciencias Agrícolas-Ciencias Veterinarias | BV37: Ciencias Agrícolas | BW37: Ciencias Veterinarias | BX37: 34 | CM37: 35 | CN37: 405 | CO37: Formación de Recurso Humano (FRH) | CP37: Tutoría de un proyecto de iniciación científica | CQ37: Tutoría de un proyecto de iniciación científica de estudiantes de la UMNG, con temáticas asociadas a línea de investigación a la que pertenece el proyecto. | CR37: Informe final y acta del Comité de investigaciones con el aval del cierre del PIC | CS37: 5 | CT37: 0 | CX37: 34
F38: 8 | G38: =Presupuesto!I21 -> 0 | H38: =Presupuesto!E21 -> 0 | I38: =Presupuesto!F21 -> 0 | J38: =Presupuesto!G21 -> 0 | K38: =Presupuesto!H21 -> 0 | L38: =Presupuesto!C37 -> 0 | M38: =Presupuesto!D37 -> 0 | N38: =Presupuesto!E37 -> 0 | O38: =Presupuesto!F37 -> 10 | P38: =Presupuesto!G37 -> No Aplica | Q38: =Presupuesto!H37 -> 0 | R38: =Presupuesto!C58 -> 0 | S38: =Presupuesto!D58 -> 1 | T38: =Presupuesto!E58 -> 0 | U38: =Presupuesto!F58 -> 0 | V38: =Presupuesto!G58 -> 0 | W38: =Presupuesto!H58 -> 0 | X38: =Presupuesto!I58 -> 0 | AA38: 18 | AB38: Programa | AC38: ECO | AD38: Administración de Empresas | AE38: X | AI38: Categoría C | AK38: 38 | AL38: 33 | AM38: 1 | AN38: 32 | AO38: HUM | AP38: HUMANITAS | AQ38: COL0101099 | AR38: A | AS38: https://scienti.minciencias.gov.co/gruplac/jsp/visualiza/visualizagr.jsp?nro=00000000010165 | AT38: BB39:BB42 | AU38: =ROW() -> 38 | AV38: =MINA(IF(AQ38=$BA$4:$BA$394,$BD$4:$BD$394)) -> 39 | AW38: =MAXA(IF(AQ38=$BA$4:$BA$394,$BD$4:$BD$394)) -> 42 | AX38: HUM | BA38: COL0036749 | BB38: Multimedia Analítica | BC38: =COUNTIF(BA$4:BA38,BA38) -> 2 | BD38: =ROW() -> 38 | BE38: 1 | BT38: 35 | BU38: Ciencias Agrícolas-Ciencias Animales y Lechería | BV38: Ciencias Agrícolas | BW38: Ciencias Animales y Lechería | BX38: 35 | CM38: 36 | CN38: 501 | CO38: Gestión de la Investigación (GI) | CP38: Presentación de nuevo proyecto Externo Nacional | CQ38: Nueva propuesta conducente al ingreso de recursos externos en efectivo a la UMNG, superiores a la contrapartida en especie comprometida por la UMNG | CR38: Carta de aval institucional, registro de sometimiento a la convocatoria externa o a la entidad financiadora o coordinadora de la convocatoria y listado de elegibles en el que está incluida la propuesta. | CS38: 30 | CT38: 0 | CX38: 35
F39: 9 | G39: =Presupuesto!I22 -> 0 | H39: =Presupuesto!E22 -> 0 | I39: =Presupuesto!F22 -> 0 | J39: =Presupuesto!G22 -> 0 | K39: =Presupuesto!H22 -> 0 | L39: =Presupuesto!C38 -> 0 | M39: =Presupuesto!D38 -> 0 | N39: =Presupuesto!E38 -> 0 | O39: =Presupuesto!F38 -> 10 | P39: =Presupuesto!G38 -> No Aplica | Q39: =Presupuesto!H38 -> 0 | R39: =Presupuesto!C59 -> 0 | S39: =Presupuesto!D59 -> 1 | T39: =Presupuesto!E59 -> 0 | U39: =Presupuesto!F59 -> 0 | V39: =Presupuesto!G59 -> 0 | W39: =Presupuesto!H59 -> 0 | X39: =Presupuesto!I59 -> 0 | AA39: 18 | AB39: Programa | AC39: ECO | AD39: Contaduría Pública | AE39: X | AI39: Categoría A | AK39: 50 | AL39: 34 | AM39: 1 | AN39: 33 | AO39: HUM | AP39: Cultura y Desarrollo Humano | AQ39: COL0002896 | AR39: A | AS39: https://scienti.minciencias.gov.co/gruplac/jsp/visualiza/visualizagr.jsp?nro=00000000000740 | AT39: BB4:BB6 | AU39: =ROW() -> 39 | AV39: =MINA(IF(AQ39=$BA$4:$BA$394,$BD$4:$BD$394)) -> 4 | AW39: =MAXA(IF(AQ39=$BA$4:$BA$394,$BD$4:$BD$394)) -> 6 | AX39: HUM | BA39: COL0101099 | BB39: Educación y Sociedad | BC39: =COUNTIF(BA$4:BA39,BA39) -> 1 | BD39: =ROW() -> 39 | BE39: 1 | BT39: 36 | BU39: Ciencias Agrícolas-Otras Ciencias Agrícolas | BV39: Ciencias Agrícolas | BW39: Otras Ciencias Agrícolas | BX39: 36 | CM39: 37 | CN39: 502 | CO39: Gestión de la Investigación (GI) | CP39: Presentación de nuevo proyecto Externo Nacional 350 | CQ39: Nueva propuesta conducente a ingreso a la UMNG de recursos externos nacionales en efectivo, superiores a la contrapartida en especie comprometida por la UMNG por un valor mayor o igual a 350 SMMLV. | CR39: Carta de aval institucional, registro de sometimiento a la convocatoria externa o a la entidad financiadora o coordinadora de la convocatoria y listado de elegibles en el que está incluida la propuesta. | CS39: 20 | CT39: 0 | CX39: 36
F40: 10 | G40: =Presupuesto!I23 -> 0 | H40: =Presupuesto!E23 -> 0 | I40: =Presupuesto!F23 -> 0 | J40: =Presupuesto!G23 -> 0 | K40: =Presupuesto!H23 -> 0 | L40: =Presupuesto!C39 -> 0 | M40: =Presupuesto!D39 -> 0 | N40: =Presupuesto!E39 -> 0 | O40: =Presupuesto!F39 -> 10 | P40: =Presupuesto!G39 -> No Aplica | Q40: =Presupuesto!H39 -> 0 | R40: =Presupuesto!C60 -> 0 | S40: =Presupuesto!D60 -> 1 | T40: =Presupuesto!E60 -> 0 | U40: =Presupuesto!F60 -> 0 | V40: =Presupuesto!G60 -> 0 | W40: =Presupuesto!H60 -> 0 | X40: =Presupuesto!I60 -> 0 | AA40: 18 | AB40: Programa | AC40: ECO | AD40: Economía | AE40: X | AI40: Categoría B | AK40: 5 | AL40: 35 | AM40: 1 | AN40: 34 | AO40: HUM | AP40: BioethicsGroup | AQ40: COL0031824 | AR40: A | AS40: https://scienti.minciencias.gov.co/gruplac/jsp/visualiza/visualizagr.jsp?nro=00000000001353 | AT40: BB14:BB17 | AU40: =ROW() -> 40 | AV40: =MINA(IF(AQ40=$BA$4:$BA$394,$BD$4:$BD$394)) -> 14 | AW40: =MAXA(IF(AQ40=$BA$4:$BA$394,$BD$4:$BD$394)) -> 17 | AX40: HUM | BA40: COL0101099 | BB40: FILOSOFIA POLITICA Y REPONSABILIDAD SOCIAL | BC40: =COUNTIF(BA$4:BA40,BA40) -> 2 | BD40: =ROW() -> 40 | BE40: 1 | BT40: 37 | BU40: Ciencias Agrícolas-Agricultura, Silvicultura y Pesca | BV40: Ciencias Agrícolas | BW40: Agricultura, Silvicultura y Pesca | BX40: 37 | CM40: 38 | CN40: 503 | CO40: Gestión de la Investigación (GI) | CP40: Presentación de nuevo proyecto Externo internacional 350 | CQ40: Nueva propuesta conducente a ingreso a la UMNG de recursos externos Internacionales en efectivo, superiores a la contrapartida en especie comprometida por la UMNG por un valor mayor o igual a 350 SMMLV. | CR40: Carta de aval Institucional, registro de sometimiento a la convocatoria externa o a la entidad financiadora o coordinadora de la convocatoria y listado de elegibles en el que está incluida la propuesta. | CS40: 30 | CT40: 0 | CX40: 37
F41: 11 | L41: =Presupuesto!C40 -> 0 | M41: =Presupuesto!D40 -> 0 | N41: =Presupuesto!E40 -> 0 | O41: =Presupuesto!F40 -> 10 | P41: =Presupuesto!G40 -> No Aplica | Q41: =Presupuesto!H40 -> 0 | R41: =Presupuesto!C61 -> 0 | S41: =Presupuesto!D61 -> 1 | T41: =Presupuesto!E61 -> 0 | U41: =Presupuesto!F61 -> 0 | V41: =Presupuesto!G61 -> 0 | W41: =Presupuesto!H61 -> 0 | X41: =Presupuesto!I61 -> 0 | AA41: 18 | AB41: Programa | AC41: ECO | AD41: Tecnología en Contabilidad y Tributaria | AE41: X | AI41: Categoría A | AK41: 10 | AL41: 36 | AM41: 1 | AN41: 35 | AO41: ING | AP41: Grupo de Investigación en Multimedia -GIM- | AQ41: COL0044859 | AR41: A | AS41: https://scienti.minciencias.gov.co/gruplac/jsp/visualiza/visualizagr.jsp?nro=00000000002706 | AT41: BB256:BB260 | AU41: =ROW() -> 41 | AV41: =MINA(IF(AQ41=$BA$4:$BA$394,$BD$4:$BD$394)) -> 256 | AW41: =MAXA(IF(AQ41=$BA$4:$BA$394,$BD$4:$BD$394)) -> 260 | AX41: ING | BA41: COL0101099 | BB41: HUMANIDADES, CULTURA Y UNIVERSIDAD | BC41: =COUNTIF(BA$4:BA41,BA41) -> 3 | BD41: =ROW() -> 41 | BE41: 1 | BT41: 38 | BU41: Humanidades-Arte | BV41: Humanidades | BW41: Arte | BX41: 38 | CM41: 39 | CN41: 504 | CO41: Gestión de la Investigación (GI) | CP41: Proyecto ejecutado con cooperación nacional. | CQ41: Ejecución del proyecto, sometido a la presente convocatoria, en la modalidad de cooperación a través de convenio especial de cooperación o instrumento contractual equivalente, con instituciones de carácter nacional que cumplan con el criterio de evaluación de colaboración externa, enunciado en los presentes términos de referencia. | CR41: Convenio perfeccionado, actas de inicio y presupuestal firmadas. | CS41: 5 | CT41: 0 | CX41: 38
F42: 12 | L42: =Presupuesto!C41 -> 0 | M42: =Presupuesto!D41 -> 0 | N42: =Presupuesto!E41 -> 0 | O42: =Presupuesto!F41 -> 10 | P42: =Presupuesto!G41 -> No Aplica | Q42: =Presupuesto!H41 -> 0 | R42: =Presupuesto!C62 -> 0 | S42: =Presupuesto!D62 -> 1 | T42: =Presupuesto!E62 -> 0 | U42: =Presupuesto!F62 -> 0 | V42: =Presupuesto!G62 -> 0 | W42: =Presupuesto!H62 -> 0 | X42: =Presupuesto!I62 -> 0 | AA42: 18 | AB42: Programa | AC42: ECO | AD42: Maestría en Gestión de Organizaciones | AE42: 24 | AI42: Categoría A | AK42: 14 | AL42: 37 | AM42: 1 | AN42: 36 | AO42: ING | AP42: GEOTECNIA | AQ42: COL0005439 | AR42: A | AS42: https://scienti.minciencias.gov.co/gruplac/jsp/visualiza/visualizagr.jsp?nro=00000000000739 | AT42: BB163:BB167 | AU42: =ROW() -> 42 | AV42: =MINA(IF(AQ42=$BA$4:$BA$394,$BD$4:$BD$394)) -> 163 | AW42: =MAXA(IF(AQ42=$BA$4:$BA$394,$BD$4:$BD$394)) -> 167 | AX42: ING | BA42: COL0101099 | BB42: Liderazgo y gestión en educación. | BC42: =COUNTIF(BA$4:BA42,BA42) -> 4 | BD42: =ROW() -> 42 | BE42: 1 | BT42: 39 | BU42: Humanidades-Otras Humanidades | BV42: Humanidades | BW42: Otras Humanidades | BX42: 39 | CM42: 40 | CN42: 505 | CO42: Gestión de la Investigación (GI) | CP42: Proyecto ejecutado con cooperación internacional | CQ42: Ejecución del proyecto, sometido a la presente convocatoria, en la modalidad de cooperación a través de convenio especial de cooperación o instrumento contractual equivalente, con instituciones de carácter internacional en la que mínimo una de ellas tiene domicilio en el exterior y que cumplan con el criterio de evaluación de colaboración externa, enunciado en los presentes términos de referencia. | CR42: Convenio perfeccionado con todas las instituciones participantes de la alianza, actas de inicio y presupuestal firmadas. | CS42: 20 | CT42: 0 | CX42: 39
F43: 13 | L43: =Presupuesto!C42 -> 0 | M43: =Presupuesto!D42 -> 0 | N43: =Presupuesto!E42 -> 0 | O43: =Presupuesto!F42 -> 10 | P43: =Presupuesto!G42 -> No Aplica | Q43: =Presupuesto!H42 -> 0 | R43: =Presupuesto!C63 -> 0 | S43: =Presupuesto!D63 -> 1 | T43: =Presupuesto!E63 -> 0 | U43: =Presupuesto!F63 -> 0 | V43: =Presupuesto!G63 -> 0 | W43: =Presupuesto!H63 -> 0 | X43: =Presupuesto!I63 -> 0 | AA43: 19 | AB43: Programa | AC43: ECO | AD43: Especialización en Alta Gerencia | AE43: 25 | AI43: Categoría B | AK43: 16 | AL43: 38 | AM43: 1 | AN43: 37 | AO43: ING | AP43: TIGUM: Grupo de Investigacion en Telemedicina Universidad Militar | AQ43: COL0052181 | AR43: A1 | AS43: https://scienti.minciencias.gov.co/gruplac/jsp/visualiza/visualizagr.jsp?nro=00000000003508 | AT43: BB276:BB281 | AU43: =ROW() -> 43 | AV43: =MINA(IF(AQ43=$BA$4:$BA$394,$BD$4:$BD$394)) -> 276 | AW43: =MAXA(IF(AQ43=$BA$4:$BA$394,$BD$4:$BD$394)) -> 281 | AX43: ING | BA43: COL0151789 | BB43: Diseño de Producto | BC43: =COUNTIF(BA$4:BA43,BA43) -> 1 | BD43: =ROW() -> 43 | BE43: 1 | BT43: 40 | BU43: Humanidades-Otras historias | BV43: Humanidades | BW43: Otras historias | BX43: 40 | CM43: 41 | CN43: 506 | CO43: Gestión de la Investigación (GI) | CP43: Nuevo Proyecto cooperación internacional | CQ43: Nuevo proyecto financiado con recursos externos internacionales desembolsados al Fondo Especial de Investigaciones. | CR43: Convenio o contrato perfeccionado, actas de inicio y presupuestal firmadas. | CS43: 40 | CT43: 0 | CX43: 40
F44: 14 | L44: =Presupuesto!C43 -> 0 | M44: =Presupuesto!D43 -> 0 | N44: =Presupuesto!E43 -> 0 | O44: =Presupuesto!F43 -> 0 | P44: =Presupuesto!G43 -> No Aplica | Q44: =Presupuesto!H43 -> 0 | R44: =Presupuesto!C64 -> 0 | S44: =Presupuesto!D64 -> 1 | T44: =Presupuesto!E64 -> 0 | U44: =Presupuesto!F64 -> 0 | V44: =Presupuesto!G64 -> 0 | W44: =Presupuesto!H64 -> 0 | X44: =Presupuesto!I64 -> 0 | AA44: 20 | AB44: Programa | AC44: ECO | AD44: Especialización en Administración Aeronáutica y Aeroespacial | AE44: 26 | AI44: Categoría B | AK44: 27 | AL44: 39 | AM44: 1 | AN44: 38 | AO44: ING | AP44: VOLTA - Grupo de Materiales, Corrosión, Degradación y Protección (GMCDP) | AQ44: COL0065804 | AR44: A1 | AS44: https://scienti.minciencias.gov.co/gruplac/jsp/visualiza/visualizagr.jsp?nro=00000000004193 | AT44: BB7:BB9 | AU44: =ROW() -> 44 | AV44: =MINA(IF(AQ44=$BA$4:$BA$394,$BD$4:$BD$394)) -> 7 | AW44: =MAXA(IF(AQ44=$BA$4:$BA$394,$BD$4:$BD$394)) -> 9 | AX44: ING | BA44: COL0151789 | BB44: Ergonomía y Tecnología Biomédica | BC44: =COUNTIF(BA$4:BA44,BA44) -> 2 | BD44: =ROW() -> 44 | BE44: 1 | BT44: 41 | BU44: Humanidades-Historia y Arqueología | BV44: Humanidades | BW44: Historia y Arqueología | BX44: 41 | CM44: 42 | CN44: 507 | CO44: Gestión de la Investigación (GI) | CP44: Nuevo Proyecto cooperación nacional | CQ44: Nuevo proyecto financiado con recursos externos nacionales desembolsados al Fondo Especial de Investigaciones. | CR44: Convenio o contrato perfeccionado, actas de inicio y presupuestal firmadas. | CS44: 30 | CT44: 0 | CX44: 41
F45: 15 | R45: =Presupuesto!C65 -> 0 | S45: =Presupuesto!D65 -> 1 | T45: =Presupuesto!E65 -> 0 | U45: =Presupuesto!F65 -> 0 | V45: =Presupuesto!G65 -> 0 | W45: =Presupuesto!H65 -> 0 | X45: =Presupuesto!I65 -> 0 | AA45: 21 | AB45: Programa | AC45: ECO | AD45: Especialización en Control Interno | AE45: 27 | AI45: Categoría C | AK45: 29 | AL45: 40 | AM45: 1 | AN45: 39 | AO45: ING | AP45: PRODUCCION, INNOVACION Y TECNOLOGIA | AQ45: COL0049999 | AR45: B | AS45: https://scienti.minciencias.gov.co/gruplac/jsp/visualiza/visualizagr.jsp?nro=00000000003290 | AT45: BB190:BB195 | AU45: =ROW() -> 45 | AV45: =MINA(IF(AQ45=$BA$4:$BA$394,$BD$4:$BD$394)) -> 190 | AW45: =MAXA(IF(AQ45=$BA$4:$BA$394,$BD$4:$BD$394)) -> 195 | AX45: ING | BA45: COL0151789 | BB45: Gestión de Procesos de Planeación y de Construcción. | BC45: =COUNTIF(BA$4:BA45,BA45) -> 3 | BD45: =ROW() -> 45 | BE45: 1 | BT45: 42 | BU45: Humanidades-Idiomas y Literatura | BV45: Humanidades | BW45: Idiomas y Literatura | BX45: 42 | CM45: 43 | CN45: 508 | CO45: Gestión de la Investigación (GI) | CP45: comercialización de propiedad Intelectual | CQ45: Comercialización de activos de propiedad intelectual, generados en proyectos de Investigación, alto impacto, innovación o cofinanciados con recursos externos registrados en la Vicerrectoría de Investigaciones, mediante mecanismos de transferencia tecnológica conforme los parámetros establecidos por la Vicerrectoría de Investigaciones (licenciamiento, spin off, start up, joint venture). | CR45: Instrumento contractual perfeccionado tipo licenciamiento, joint Venture o denominación equivalente. Institución de spin off o startup de acuerdo previa validación de aspectos jurídicos, potencial y validación de mercado y propuesta de valor. | CS45: 70 | CT45: 0 | CX45: 42
F46: 16 | R46: =Presupuesto!C66 -> 0 | S46: =Presupuesto!D66 -> 1 | T46: =Presupuesto!E66 -> 0 | U46: =Presupuesto!F66 -> 0 | V46: =Presupuesto!G66 -> 0 | W46: =Presupuesto!H66 -> 0 | X46: =Presupuesto!I66 -> 0 | AA46: 22 | AB46: Programa | AC46: ECO | AD46: Especialización en Gestión de Desarrollo Administrativo | AE46: 28 | AI46: Categoría A | AK46: 31 | AL46: 41 | AM46: 1 | AN46: 40 | AO46: ING | AP46: GIDAM | AQ46: COL0116636 | AR46: B | AS46: https://scienti.minciencias.gov.co/gruplac/jsp/visualiza/visualizagr.jsp?nro=00000000011773 | AT46: BB91:BB95 | AU46: =ROW() -> 46 | AV46: =MINA(IF(AQ46=$BA$4:$BA$394,$BD$4:$BD$394)) -> 91 | AW46: =MAXA(IF(AQ46=$BA$4:$BA$394,$BD$4:$BD$394)) -> 95 | AX46: ING | BA46: COL0151789 | BB46: Gestión de Procesos, Proyectos, Seguridad y Medio Ambiente | BC46: =COUNTIF(BA$4:BA46,BA46) -> 4 | BD46: =ROW() -> 46 | BE46: 1 | CM46: 44 | CN46: 509 | CO46: Gestión de la Investigación (GI) | CP46: Mejoramiento TRL | CQ46: Mejoramiento del nivel de madurez tecnológica identificada por la División de Desarrollo tecnológico asociado a la valoración de la tecnología (vigilancia tecnológica e inteligencia competitiva, diagnósticos de propiedad intelectual, modelos de negocio u otros) | CR46: prototipo madurado en mínimo un nivel en la escala TRL comprometida o esperada, acompañado de: 1. Manual de funcionamiento según el formato establecido por VICEIN. 2.Registro fotográfico de los componentes del prototipo. 3.Registro fílmico sobre funcionamiento del prototipo.4.Soportes de pruebas y validación (según aplique).Adicionalmente, acompañado de estudio de vigilancia tecnológica e inteligencia competitiva. | CS46: 30 | CT46: 0 | CX46: 43
F47: 17 | R47: =Presupuesto!C67 -> 0 | S47: =Presupuesto!D67 -> 1 | T47: =Presupuesto!E67 -> 0 | U47: =Presupuesto!F67 -> 0 | V47: =Presupuesto!G67 -> 0 | W47: =Presupuesto!H67 -> 0 | X47: =Presupuesto!I67 -> 0 | AA47: 23 | AB47: Programa | AC47: ECO | AD47: Especialización en Gerencia en Comercio Internacional | AE47: 29 | AI47: Categoría A1 | AK47: 33 | AL47: 42 | AM47: 1 | AN47: 41 | AO47: ING | AP47: DAVINCI | AQ47: COL0036025 | AR47: A1 | AS47: https://scienti.minciencias.gov.co/gruplac/jsp/visualiza/visualizagr.jsp?nro=00000000001843 | AT47: BB10:BB13 | AU47: =ROW() -> 47 | AV47: =MINA(IF(AQ47=$BA$4:$BA$394,$BD$4:$BD$394)) -> 10 | AW47: =MAXA(IF(AQ47=$BA$4:$BA$394,$BD$4:$BD$394)) -> 13 | AX47: ING | BA47: COL0151789 | BB47: Procesos y Contaminación Ambiental | BC47: =COUNTIF(BA$4:BA47,BA47) -> 5 | BD47: =ROW() -> 47 | BE47: 1 | CM47: 45 | CN47: 510 | CO47: Gestión de la Investigación (GI) | CP47: Transferencia de conocimiento | CQ47: Transferencia de conocimiento científico especializado y novedoso, no disponible en el estado del arte, a actores externos de la Universidad mediada por acuerdos cesión o licenciamiento, las cuales pueden tener por objeto la formación de personas para incrementar sus capacidades investigadoras, innovadoras o de producción; actividades de innovación, generación de resultados económicos o; valor social. | CR47: Contrato de licenciamiento o cesión perfeccionado, así como el acta de implementación u hoja de ruta de las actividades de transferencia. | CS47: 50 | CT47: 0 | CX47: 44
F48: 18 | R48: =Presupuesto!C68 -> 0 | S48: =Presupuesto!D68 -> 1 | T48: =Presupuesto!E68 -> 0 | U48: =Presupuesto!F68 -> 0 | V48: =Presupuesto!G68 -> 0 | W48: =Presupuesto!H68 -> 0 | X48: =Presupuesto!I68 -> 0 | AA48: 24 | AB48: Programa | AC48: ECO | AD48: Especialización en Finanzas y Administración Pública | AE48: 30 | AI48: Categoría C | AK48: 34 | AL48: 43 | AM48: 1 | AN48: 42 | AO48: ING | AP48: Estructuras y sísmica | AQ48: COL0016999 | AR48: A1 | AS48: https://scienti.minciencias.gov.co/gruplac/jsp/visualiza/visualizagr.jsp?nro=00000000000737 | AT48: BB113:BB117 | AU48: =ROW() -> 48 | AV48: =MINA(IF(AQ48=$BA$4:$BA$394,$BD$4:$BD$394)) -> 113 | AW48: =MAXA(IF(AQ48=$BA$4:$BA$394,$BD$4:$BD$394)) -> 117 | AX48: ING | BA48: COL0151789 | BB48: Sistemas Información e Interacción | BC48: =COUNTIF(BA$4:BA48,BA48) -> 6 | BD48: =ROW() -> 48 | BE48: 1 | CM48: 46 | CX48: 45
F49: 19 | R49: =Presupuesto!C69 -> 0 | S49: =Presupuesto!D69 -> 1 | T49: =Presupuesto!E69 -> 0 | U49: =Presupuesto!F69 -> 0 | V49: =Presupuesto!G69 -> 0 | W49: =Presupuesto!H69 -> 0 | X49: =Presupuesto!I69 -> 0 | AA49: 25 | AB49: Programa | AC49: ECO | AD49: Especialización en Mercadeo de Servicios | AE49: 31 | AI49: Categoría C | AK49: 37 | AL49: 44 | AM49: 1 | AN49: 43 | AO49: ING | AP49: INGENIERÍA, GEOMÁTICA Y EDUCACIÓN (IGE) | AQ49: COL0047566 | AR49: B | AS49: https://scienti.minciencias.gov.co/gruplac/jsp/visualiza/visualizagr.jsp?nro=00000000003044 | AT49: BB134:BB139 | AU49: =ROW() -> 49 | AV49: =MINA(IF(AQ49=$BA$4:$BA$394,$BD$4:$BD$394)) -> 134 | AW49: =MAXA(IF(AQ49=$BA$4:$BA$394,$BD$4:$BD$394)) -> 139 | AX49: ING | BA49: COL0116538 | BB49: Andrologia y Salud sexual | BC49: =COUNTIF(BA$4:BA49,BA49) -> 1 | BD49: =ROW() -> 49 | BE49: 1 | CM49: 47 | CX49: 46
F50: 20 | R50: =Presupuesto!C70 -> 0 | S50: =Presupuesto!D70 -> 1 | T50: =Presupuesto!E70 -> 0 | U50: =Presupuesto!F70 -> 0 | V50: =Presupuesto!G70 -> 0 | W50: =Presupuesto!H70 -> 0 | X50: =Presupuesto!I70 -> 0 | AA50: 26 | AB50: Programa | AC50: ECO | AD50: Especialización en Revisoría Fiscal y Auditoría Internacional | AE50: 32 | AI50: Categoría C | AK50: 49 | AL50: 45 | AM50: 1 | AN50: 44 | AO50: ING | AP50: ACCEDER | AQ50: COL0036749 | AR50: C | AS50: https://scienti.minciencias.gov.co/gruplac/jsp/visualiza/visualizagr.jsp?nro=00000000012996 | AT50: BB37:BB38 | AU50: =ROW() -> 50 | AV50: =MINA(IF(AQ50=$BA$4:$BA$394,$BD$4:$BD$394)) -> 37 | AW50: =MAXA(IF(AQ50=$BA$4:$BA$394,$BD$4:$BD$394)) -> 38 | AX50: ING | BA50: COL0116538 | BB50: Hiperplasia Prostatica | BC50: =COUNTIF(BA$4:BA50,BA50) -> 2 | BD50: =ROW() -> 50 | BE50: 1 | CM50: 48 | CX50: 47
F51: 21 | R51: =Presupuesto!C86 -> 0 | S51: =Presupuesto!D86 -> 0 | T51: =Presupuesto!E86 -> 0 | U51: =Presupuesto!F86 -> 0 | V51: =Presupuesto!G86 -> 0 | W51: =Presupuesto!H86 -> 0 | X51: =Presupuesto!I86 -> 0 | AA51: 27 | AB51: Programa | AC51: EES | AD51: Relaciones Internacionales y Estudios Políticos | AE51: 12 | AI51: Categoría A | AK51: 52 | AL51: 46 | AM51: 1 | AN51: 45 | AO51: ING | AP51: Agua y Energía - AyE | AQ51: COL0026486 | AR51: A | AS51: https://scienti.minciencias.gov.co/gruplac/jsp/visualiza/visualizagr.jsp?nro=00000000000767 | AT51: BB79:BB83 | AU51: =ROW() -> 51 | AV51: =MINA(IF(AQ51=$BA$4:$BA$394,$BD$4:$BD$394)) -> 79 | AW51: =MAXA(IF(AQ51=$BA$4:$BA$394,$BD$4:$BD$394)) -> 83 | AX51: ING | BA51: COL0116538 | BB51: Incontinencia Urinaria | BC51: =COUNTIF(BA$4:BA51,BA51) -> 3 | BD51: =ROW() -> 51 | BE51: 1 | CM51: 49 | CX51: 48
F52: 22 | AA52: 28 | AB52: Programa | AC52: EES | AD52: Administración de la Seguridad y Salud Ocupacional | AE52: 13 | AI52: Categoría A | AK52: 54 | AL52: 47 | AM52: 1 | AN52: 46 | AO52: ING | AP52: GISSIC: Grupo de Investigacion en Seguridad y Sistemas de Comunicaciones | AQ52: COL0052163 | AR52: A | AS52: https://scienti.minciencias.gov.co/gruplac/jsp/visualiza/visualizagr.jsp?nro=00000000003506 | AT52: BB96:BB100 | AU52: =ROW() -> 52 | AV52: =MINA(IF(AQ52=$BA$4:$BA$394,$BD$4:$BD$394)) -> 96 | AW52: =MAXA(IF(AQ52=$BA$4:$BA$394,$BD$4:$BD$394)) -> 100 | AX52: ING | BA52: COL0116538 | BB52: Litiasis y endourologia | BC52: =COUNTIF(BA$4:BA52,BA52) -> 4 | BD52: =ROW() -> 52 | BE52: 1 | CM52: 50 | CX52: 49
AA53: 31 | AB53: Programa | AC53: EES | AD53: Maestría en Relaciones y Negocios Internacionales | AE53: 44 | AI53: No Reconocido | AK53: 57 | AL53: 48 | AM53: 1 | AN53: 47 | AO53: ING | AP53: GAV | AQ53: COL0068762 | AR53: A | AS53: https://scienti.minciencias.gov.co/gruplac/jsp/visualiza/visualizagr.jsp?nro=00000000004391 | AT53: BB239:BB241 | AU53: =ROW() -> 53 | AV53: =MINA(IF(AQ53=$BA$4:$BA$394,$BD$4:$BD$394)) -> 239 | AW53: =MAXA(IF(AQ53=$BA$4:$BA$394,$BD$4:$BD$394)) -> 241 | AX53: ING | BA53: COL0116538 | BB53: Oncologia Urologica | BC53: =COUNTIF(BA$4:BA53,BA53) -> 5 | BD53: =ROW() -> 53 | BE53: 1 | CX53: 50
M54: Recopilación deTextos | AA54: 32 | AB54: Programa | AC54: EES | AD54: Especialización en Administración de la Seguridad | AE54: 45 | AI54: Categoría C | AK54: 60 | AL54: 49 | AM54: 1 | AN54: 48 | AO54: ING | AP54: Energia alternativa, Centro Multidisciplinario de Investigación | AQ54: COL0117052 | AR54: C | AS54: https://scienti.minciencias.gov.co/gruplac/jsp/visualiza/visualizagr.jsp?nro=00000000011817 | AT54: BB310:BB314 | AU54: =ROW() -> 54 | AV54: =MINA(IF(AQ54=$BA$4:$BA$394,$BD$4:$BD$394)) -> 310 | AW54: =MAXA(IF(AQ54=$BA$4:$BA$394,$BD$4:$BD$394)) -> 314 | AX54: ING | BA54: COL0116538 | BB54: Urologia Pediatrica | BC54: =COUNTIF(BA$4:BA54,BA54) -> 6 | BD54: =ROW() -> 54 | BE54: 1 | CX54: 51
F55: No | G55: Impacto | H55: Categoria | I55: Plazo | L55: No | M55: No. Hoja | N55: Hoja | O55: Letra | P55: No | Q55: Texto | R55: Diferencia | AA55: 33 | AB55: Programa | AC55: EES | AD55: Especialización en Alta Gerencia de la Seguridad y Defensa | AE55: 46 | AI55: Categoría C | AK55: 66 | AL55: 50 | AM55: 1 | AN55: 49 | AO55: ING | AP55: GI-iTEC - Grupo de Investigación e innovación Tecnológica en Electrónica y Comunicaciones | AQ55: COL0143731 | AR55: C | AS55: https://scienti.minciencias.gov.co/gruplac/jsp/visualiza/visualizagr.jsp?nro=00000000014576 | AT55: BB84:BB86 | AU55: =ROW() -> 55 | AV55: =MINA(IF(AQ55=$BA$4:$BA$394,$BD$4:$BD$394)) -> 84 | AW55: =MAXA(IF(AQ55=$BA$4:$BA$394,$BD$4:$BD$394)) -> 86 | AX55: ING | BA55: COL0149359 | BB55: GESTION DE LA EDUCACION Y LA ACADEMIA | BC55: =COUNTIF(BA$4:BA55,BA55) -> 1 | BD55: =ROW() -> 55 | BE55: 1 | CX55: 52
F56: =ROW()-55 -> 1 | G56: =CLEAN(TRIM(Impactos!C8)) -> Impacto principal | H56: =Impactos!F8 -> 0 | I56: =Impactos!#REF! ->  | L56: =COUNTIF(N$56:N56,N56) -> 1 | M56: 3 | N56: =NbHoja(M56) -> Resumen | O56: C | P56: 1 | Q56: =CLEAN(TRIM(INDIRECT($N56&"!"&$O56&(P56+R56),1))) ->  | R56: 6 | AA56: 34 | AB56: Programa | AC56: HUM | AD56: Especialización en Docencia Universitaria | AE56: 55 | AI56: Categoría C | AK56: 70 | AL56: 51 | AM56: 1 | AN56: 50 | AO56: ING | AP56: LA TRAMOYA | AQ56: COL0126777 | AR56: NR | AS56: https://scienti.minciencias.gov.co/gruplac/jsp/visualiza/visualizagr.jsp?nro=00000000012813 | AT56: BB242:BB247 | AU56: =ROW() -> 56 | AV56: =MINA(IF(AQ56=$BA$4:$BA$394,$BD$4:$BD$394)) -> 242 | AW56: =MAXA(IF(AQ56=$BA$4:$BA$394,$BD$4:$BD$394)) -> 247 | AX56: ING | BA56: COL0149359 | BB56: GESTION DE LA SALUD PUBLICA | BC56: =COUNTIF(BA$4:BA56,BA56) -> 2 | BD56: =ROW() -> 56 | BE56: 1 | CX56: 53
F57: =ROW()-55 -> 2 | G57: =CLEAN(TRIM(Impactos!E9)) -> Lineas de apropiación social | H57: =Impactos!D9 -> 0 | I57: =Impactos!#REF! ->  | L57: =COUNTIF(N$56:N57,N57) -> 2 | M57: 3 | N57: =NbHoja(M57) -> Resumen | O57: =O56 -> C | P57: =P56+1 -> 2 | Q57: =CLEAN(TRIM(INDIRECT($N57&"!"&$O57&(P57+R57),1))) ->  | R57: =R56 -> 6 | AA57: 34 | AB57: Programa | AC57: HUM | AD57: Maestría en Educación | AE57: 55 | AI57: Categoría C | AK57: 1 | AL57: 52 | AM57: 1 | AN57: 51 | AO57: ING | AP57: GREST | AQ57: COL0151789 | AR57: A | AS57: https://scienti.minciencias.gov.co/gruplac/jsp/visualiza/visualizagr.jsp?nro=00000000015386 | AT57: BB43:BB48 | AU57: =ROW() -> 57 | AV57: =MINA(IF(AQ57=$BA$4:$BA$394,$BD$4:$BD$394)) -> 43 | AW57: =MAXA(IF(AQ57=$BA$4:$BA$394,$BD$4:$BD$394)) -> 48 | AX57: ING | BA57: COL0149359 | BB57: GESTIÓN DE LA ÉTICA Y EL CONOCIMIENTO | BC57: =COUNTIF(BA$4:BA57,BA57) -> 3 | BD57: =ROW() -> 57 | BE57: 1 | CX57: 54
F58: 3 | G58: =CLEAN(TRIM(Impactos!C13)) -> Estado actual del SRL | H58: =Impactos!F13 -> 0 | I58: =Impactos!G13 -> 0 | L58: =COUNTIF(N$56:N58,N58) -> 3 | M58: 3 | N58: Resumen | O58: =O57 -> C | P58: =P57+1 -> 3 | R58: =R57 -> 6 | AA58: 35 | AB58: Programa | AC58: HUM | AD58: Doctorado de Bioética | AE58: 55 | AI58: No Reconocido | AK58: 6 | AL58: 53 | AM58: 1 | AN58: 75 | AO58: ING | AP58: PROCESOS, OPERACIONES Y LOGISTICA (PROPYLOG) | AQ58: COL0196753 | AR58: C | AS58: https://scienti.minciencias.gov.co/gruplac/jsp/visualiza/visualizagr.jsp?nro=00000000019879 | AT58: =$AT$2&AV58&":"&$AT$2&AW58 -> BB321:BB325 | AU58: =ROW() -> 58 | AV58: =MINA(IF(AQ58=$BA$4:$BA$394,$BD$4:$BD$394)) -> 321 | AW58: =MAXA(IF(AQ58=$BA$4:$BA$394,$BD$4:$BD$394)) -> 325 | AX58: =AO58 -> ING | BA58: COL0142331 | BB58: Competitividad industrial | BC58: =COUNTIF(BA$4:BA58,BA58) -> 1 | BD58: =ROW() -> 58 | BE58: 1 | CX58: 55
F59: 4 | G59: =CLEAN(TRIM(Impactos!C10)) -> . | H59: =Impactos!F10 -> 0 | I59: =Impactos!G10 -> 0 | L59: =COUNTIF(N$56:N59,N59) -> 4 | M59: 3 | N59: Resumen | O59: C | P59: 4 | R59: 6 | AA59: 36 | AB59: Programa | AC59: ING | AD59: Ingeniería Ambiental | AE59: 4 | AI59: Categoría C | AK59: 7 | AL59: 54 | AM59: 1 | AN59: 76 | AO59: ING | AP59: Sistemas de Infraestructura de Ingeniería Civil | AQ59: COL0196799 | AR59: C | AS59: https://scienti.minciencias.gov.co/gruplac/jsp/visualiza/visualizagr.jsp?nro=00000000019883 | AT59: =$AT$2&AV59&":"&$AT$2&AW59 -> BB326:BB329 | AU59: =ROW() -> 59 | AV59: =MINA(IF(AQ59=$BA$4:$BA$394,$BD$4:$BD$394)) -> 326 | AW59: =MAXA(IF(AQ59=$BA$4:$BA$394,$BD$4:$BD$394)) -> 329 | AX59: =AO59 -> ING | BA59: COL0142331 | BB59: Innovación y educación en Ingenierìa | BC59: =COUNTIF(BA$4:BA59,BA59) -> 2 | BD59: =ROW() -> 59 | BE59: 1 | CX59: 56
F60: 5 | G60: =CLEAN(TRIM(Impactos!C14)) -> SRL Comprometido al finalizar el proyecto | H60: =Impactos!F14 -> 0 | I60: =Impactos!G14 -> 0 | L60: =COUNTIF(N$56:N60,N60) -> 5 | M60: 3 | N60: Resumen | O60: C | P60: 5 | R60: 6 | AA60: 37 | AB60: Programa | AC60: ING | AD60: Ingeniería Biomédica | AE60: 5 | AI60: Categoría C | AK60: 15 | AL60: 55 | AM60: 1 | AN60: 65 | AO60: MED | AP60: Ingeniería de Procesos y Tecnologías Sostenibles | AQ60: COL0194866 | AR60: C | AS60: https://scienti.minciencias.gov.co/gruplac/jsp/visualiza/visualizagr.jsp?nro=00000000019690 | AT60: =$AT$2&AV60&":"&$AT$2&AW60 -> BB318:BB320 | AU60: =ROW() -> 60 | AV60: =MINA(IF(AQ60=$BA$4:$BA$394,$BD$4:$BD$394)) -> 318 | AW60: =MAXA(IF(AQ60=$BA$4:$BA$394,$BD$4:$BD$394)) -> 320 | AX60: ING | BA60: COL0142331 | BB60: Productividad industrial | BC60: =COUNTIF(BA$4:BA60,BA60) -> 3 | BD60: =ROW() -> 60 | BE60: 1 | CX60: 57
F61: 6 | G61: =CLEAN(TRIM(Impactos!C15)) ->  | H61: =Impactos!F15 -> 0 | I61: =Impactos!G15 -> 0 | L61: =COUNTIF(N$56:N61,N61) -> 6 | M61: 3 | N61: Resumen | O61: C | P61: 6 | R61: 6 | AA61: 38 | AB61: Programa | AC61: ING | AD61: Ingeniería Civil | AE61: 6 | AI61: No Reconocido | AK61: 19 | AL61: 56 | AM61: 1 | AN61: 52 | AO61: MED | AP61: CATCH | AQ61: COL0049659 | AR61: NR | AS61: https://scienti.minciencias.gov.co/gruplac/jsp/visualiza/visualizagr.jsp?nro=00000000003253 | AT61: BB34:BB36 | AU61: =ROW() -> 61 | AV61: =MINA(IF(AQ61=$BA$4:$BA$394,$BD$4:$BD$394)) -> 34 | AW61: =MAXA(IF(AQ61=$BA$4:$BA$394,$BD$4:$BD$394)) -> 36 | AX61: MED | BA61: COL0134044 | BB61: ORTOPEDIA INFANTIL | BC61: =COUNTIF(BA$4:BA61,BA61) -> 1 | BD61: =ROW() -> 61 | BE61: 1 | CX61: 58
F62: 7 | G62: =CLEAN(TRIM(Impactos!C18)) -> Descripción de los Beneficiario(s) del impacto del proyecto | H62: =Impactos!F18 -> 0 | I62: =Impactos!G18 -> 0 | L62: =COUNTIF(N$56:N62,N62) -> 7 | M62: 3 | N62: Resumen | O62: C | P62: 7 | R62: 6 | AA62: 39 | AB62: Programa | AC62: ING | AD62: Ingeniería Industrial | AE62: 7 | AI62: Categoría B | AK62: 24 | AL62: 57 | AM62: 1 | AN62: 53 | AO62: MED | AP62: BONE | AQ62: COL0047762 | AR62: NR | AS62: https://scienti.minciencias.gov.co/gruplac/jsp/visualiza/visualizagr.jsp?nro=00000000003064 | AT62: BB301:BB302 | AU62: =ROW() -> 62 | AV62: =MINA(IF(AQ62=$BA$4:$BA$394,$BD$4:$BD$394)) -> 301 | AW62: =MAXA(IF(AQ62=$BA$4:$BA$394,$BD$4:$BD$394)) -> 302 | AX62: MED | BA62: COL0134044 | BB62: PATOLOGIA DE CADERA | BC62: =COUNTIF(BA$4:BA62,BA62) -> 2 | BD62: =ROW() -> 62 | BE62: 1 | CX62: 59
F63: 8 | G63: =CLEAN(TRIM(Impactos!C19)) ->  | H63: =Impactos!F19 -> 0 | I63: =Impactos!G19 -> 0 | L63: =COUNTIF(N$56:N63,N63) -> 8 | M63: 3 | N63: Resumen | O63: C | P63: 8 | R63: 6 | AA63: 40 | AB63: Programa | AC63: ING | AD63: Ingeniería en Mecatrónica | AE63: 8 | AI63: Categoría C | AK63: 25 | AL63: 58 | AM63: 1 | AN63: 54 | AO63: MED | AP63: Grupo de Psoriasis e Inmunodermatologia | AQ63: COL0126015 | AR63: C | AS63: https://scienti.minciencias.gov.co/gruplac/jsp/visualiza/visualizagr.jsp?nro=00000000012737 | AT63: BB196:BB197 | AU63: =ROW() -> 63 | AV63: =MINA(IF(AQ63=$BA$4:$BA$394,$BD$4:$BD$394)) -> 196 | AW63: =MAXA(IF(AQ63=$BA$4:$BA$394,$BD$4:$BD$394)) -> 197 | AX63: MED | BA63: COL0134044 | BB63: PATOLOGIA DE COLUMNA, PELVIS Y ACETABULO | BC63: =COUNTIF(BA$4:BA63,BA63) -> 3 | BD63: =ROW() -> 63 | BE63: 1
F64: 9 | G64: =CLEAN(TRIM(Impactos!C20)) -> Descripción del impacto esperado. | H64: =Impactos!F20 -> 0 | I64: =Impactos!G20 -> 0 | L64: =COUNTIF(N$56:N64,N64) -> 9 | M64: 3 | N64: Resumen | O64: C | P64: 9 | R64: 6 | AA64: 41 | AB64: Programa | AC64: ING | AD64: Ingeniería en Multimedia | AE64: 9 | AI64: Categoría C | AK64: 35 | AL64: 59 | AM64: 1 | AN64: 55 | AO64: MED | AP64: ORTOPEDIA Y TRAUMATOLOGIA HMC UMNG | AQ64: COL0134044 | AR64: C | AS64: https://scienti.minciencias.gov.co/gruplac/jsp/visualiza/visualizagr.jsp?nro=00000000013608 | AT64: BB61:BB67 | AU64: =ROW() -> 64 | AV64: =MINA(IF(AQ64=$BA$4:$BA$394,$BD$4:$BD$394)) -> 61 | AW64: =MAXA(IF(AQ64=$BA$4:$BA$394,$BD$4:$BD$394)) -> 67 | AX64: =AO64 -> MED | BA64: COL0134044 | BB64: PATOLOGIA DE MANO Y MIEMBRO SUPERIOR | BC64: =COUNTIF(BA$4:BA64,BA64) -> 4 | BD64: =ROW() -> 64 | BE64: 1
F65: 10 | G65: =CLEAN(TRIM(Impactos!C21)) ->  | H65: =Impactos!F21 -> 0 | I65: =Impactos!G21 -> 0 | L65: =COUNTIF(N$56:N65,N65) -> 10 | M65: 3 | N65: Resumen | O65: =O64 -> C | P65: 10 | R65: =R64 -> 6 | AA65: 42 | AB65: Programa | AC65: ING | AD65: Ingenieria en Telecomunicaciones | AE65: 10 | AI65: Categoría C | AK65: 36 | AL65: 60 | AM65: 1 | AN65: 56 | AO65: MED | AP65: Salud y Comportamiento | AQ65: COL0033239 | AR65: NR | AS65: https://scienti.minciencias.gov.co/gruplac/jsp/visualiza/visualizagr.jsp?nro=00000000001536 | AT65: BB298:BB300 | AU65: =ROW() -> 65 | AV65: =MINA(IF(AQ65=$BA$4:$BA$394,$BD$4:$BD$394)) -> 298 | AW65: =MAXA(IF(AQ65=$BA$4:$BA$394,$BD$4:$BD$394)) -> 300 | AX65: MED | BA65: COL0134044 | BB65: PATOLOGIA DE PIE Y TOBILLO | BC65: =COUNTIF(BA$4:BA65,BA65) -> 5 | BD65: =ROW() -> 65 | BE65: 1
F66: 11 | G66: =CLEAN(TRIM(Impactos!C16)) -> Evolución del impacto alcanzado como resultado de proyectos anteriores | H66: =Impactos!F16 -> 0 | I66: =Impactos!G16 -> 0 | L66: =COUNTIF(N$56:N66,N66) -> 11 | M66: 3 | N66: Resumen | O66: C | P66: 11 | R66: 6 | AA66: 43 | AB66: Programa | AC66: ING | AD66: Tecnología en Electrónica y Comunicaciones | AE66: 11 | AI66: Categoría C | AK66: 45 | AL66: 61 | AM66: 1 | AN66: 57 | AO66: MED | AP66: GRUPO NEUROCIENCIAS HMC | AQ66: COL0138698 | AR66: C | AS66: https://scienti.minciencias.gov.co/gruplac/jsp/visualiza/visualizagr.jsp?nro=00000000014072 | AT66: BB198:BB216 | AU66: =ROW() -> 66 | AV66: =MINA(IF(AQ66=$BA$4:$BA$394,$BD$4:$BD$394)) -> 198 | AW66: =MAXA(IF(AQ66=$BA$4:$BA$394,$BD$4:$BD$394)) -> 216 | AX66: MED | BA66: COL0134044 | BB66: PATOLOGIA DE RODILLA | BC66: =COUNTIF(BA$4:BA66,BA66) -> 6 | BD66: =ROW() -> 66 | BE66: 1
F67: 12 | G67: =CLEAN(TRIM(Impactos!C17)) ->  | H67: =Impactos!F17 -> 0 | I67: =Impactos!G17 -> 0 | L67: =COUNTIF(N$56:N67,N67) -> 12 | M67: 3 | N67: Resumen | O67: C | P67: 12 | R67: 6 | AA67: 44 | AB67: Programa | AC67: ING | AD67: Maestría en Ingeniería Mecatrónica | AE67: 34 | AI67: Categoría C | AK67: 46 | AL67: 62 | AM67: 1 | AN67: 58 | AO67: MED | AP67: Grupo de Investigacion en Dermatologia HMC | AQ67: COL0116439 | AR67: C | AS67: https://scienti.minciencias.gov.co/gruplac/jsp/visualiza/visualizagr.jsp?nro=00000000011753 | AT67: BB143:BB146 | AU67: =ROW() -> 67 | AV67: =MINA(IF(AQ67=$BA$4:$BA$394,$BD$4:$BD$394)) -> 143 | AW67: =MAXA(IF(AQ67=$BA$4:$BA$394,$BD$4:$BD$394)) -> 146 | AX67: MED | BA67: COL0134044 | BB67: TRAUMA Y FIJACION EXTERNA | BC67: =COUNTIF(BA$4:BA67,BA67) -> 7 | BD67: =ROW() -> 67 | BE67: 1
F68: 13 | G68: =CLEAN(TRIM(Impactos!C22)) ->  | H68: =Impactos!F22 -> 0 | I68: =Impactos!G22 -> 0 | L68: =COUNTIF(N$56:N68,N68) -> 13 | M68: 3 | N68: Resumen | O68: C | P68: 13 | R68: 6 | AA68: 45 | AB68: Programa | AC68: ING | AD68: Maestría en Ingeniería Civil | AE68: 35 | AI68: Categoría C | AK68: 48 | AL68: 63 | AM68: =COUNTIF($AN$4:$AN$816,AL68) -> 1 | AN68: 59 | AO68: MED | AP68: Grupo de Investigación en Cirugía pediátrica y especialidades CIPEMIL | AQ68: COL0194721 | AR68: C | AS68: https://scienti.minciencias.gov.co/gruplac/jsp/visualiza/visualizagr.jsp?nro=00000000019676 | AT68: BB155:BB160 | AU68: =ROW() -> 68 | AV68: =MINA(IF(AQ68=$BA$4:$BA$394,$BD$4:$BD$394)) -> 155 | AW68: =MAXA(IF(AQ68=$BA$4:$BA$394,$BD$4:$BD$394)) -> 160 | AX68: MED | BA68: COL0066768 | BB68: DERECHO DE LAS RELACIONES INTERNACIONALES | BC68: =COUNTIF(BA$4:BA68,BA68) -> 1 | BD68: =ROW() -> 68 | BE68: =COUNTIF($AQ$3:$AQ$95,BA68) -> 1
F69: 14 | G69: =CLEAN(TRIM(Impactos!C23)) ->  | H69: =Impactos!F23 -> 0 | I69: =Impactos!G23 -> 0 | L69: =COUNTIF(N$56:N69,N69) -> 14 | M69: 3 | N69: Resumen | O69: C | P69: 14 | R69: 6 | AA69: 46 | AB69: Programa | AC69: ING | AD69: Maestría en Logística Integral | AE69: 36 | AI69: Categoría C | AK69: 51 | AL69: 64 | AM69: 1 | AN69: 60 | AO69: MED | AP69: Grupo de Salud Oral y Cirugia Maxilofacial | AQ69: COL0129689 | AR69: C | AS69: https://scienti.minciencias.gov.co/gruplac/jsp/visualiza/visualizagr.jsp?nro=00000000013172 | AT69: BB152:BB154 | AU69: =ROW() -> 69 | AV69: =MINA(IF(AQ69=$BA$4:$BA$394,$BD$4:$BD$394)) -> 152 | AW69: =MAXA(IF(AQ69=$BA$4:$BA$394,$BD$4:$BD$394)) -> 154 | AX69: MED | BA69: COL0066768 | BB69: ECONOMIA Y NEGOCIOS INTERNACIONALES | BC69: =COUNTIF(BA$4:BA69,BA69) -> 2 | BD69: =ROW() -> 69 | BE69: 1
F70: 15 | G70: =CLEAN(TRIM(Impactos!C24)) ->  | H70: =Impactos!F24 -> 0 | I70: =Impactos!G24 -> 0 | L70: =COUNTIF(N$56:N70,N70) -> 15 | M70: 3 | N70: Resumen | O70: C | P70: 15 | R70: 6 | AA70: 47 | AB70: Programa | AC70: ING | AD70: Maestría en Gerencia de Proyectos | AE70: 37 | AI70: No Reconocido | AK70: 55 | AL70: 65 | AM70: 1 | AN70: 61 | AO70: MED | AP70: Kokhlias. | AQ70: COL0125134 | AR70: C | AS70: https://scienti.minciencias.gov.co/gruplac/jsp/visualiza/visualizagr.jsp?nro=00000000012649 | AT70: BB106:BB112 | AU70: =ROW() -> 70 | AV70: =MINA(IF(AQ70=$BA$4:$BA$394,$BD$4:$BD$394)) -> 106 | AW70: =MAXA(IF(AQ70=$BA$4:$BA$394,$BD$4:$BD$394)) -> 112 | AX70: MED | BA70: COL0066768 | BB70: ESTUDIOS POLÍTICOS | BC70: =COUNTIF(BA$4:BA70,BA70) -> 3 | BD70: =ROW() -> 70 | BE70: 1
F71: 16 | G71: =CLEAN(TRIM(Impactos!C25)) ->  | H71: =Impactos!F25 -> 0 | I71: =Impactos!G25 -> 0 | L71: =COUNTIF(N$56:N71,N71) -> 16 | M71: 3 | N71: Resumen | O71: C | P71: 16 | R71: 6 | AA71: 47 | AB71: Programa | AC71: ING | AD71: Maestría en Ingeniería Mecatrónica | AE71: x | AI71: Categoría C | AK71: 59 | AL71: 66 | AM71: 1 | AN71: 62 | AO71: MED | AP71: Grupo de Rehabilitacion HOMIC-UMNG | AQ71: COL0120281 | AR71: C | AS71: https://scienti.minciencias.gov.co/gruplac/jsp/visualiza/visualizagr.jsp?nro=00000000012152 | AT71: BB217:BB222 | AU71: =ROW() -> 71 | AV71: =MINA(IF(AQ71=$BA$4:$BA$394,$BD$4:$BD$394)) -> 217 | AW71: =MAXA(IF(AQ71=$BA$4:$BA$394,$BD$4:$BD$394)) -> 222 | AX71: MED | BA71: COL0066768 | BB71: ESTUDIOS REGIONALES | BC71: =COUNTIF(BA$4:BA71,BA71) -> 4 | BD71: =ROW() -> 71 | BE71: 1
F72: 17 | G72: =CLEAN(TRIM(Impactos!C26)) ->  | H72: =Impactos!F26 -> 0 | I72: =Impactos!G26 -> 0 | L72: =COUNTIF(N$56:N72,N72) -> 17 | M72: 3 | N72: Resumen | O72: C | P72: 17 | Q72: Planteamiento y justificación de la propuesta. | R72: 6 | AA72: 48 | AB72: Programa | AC72: ING | AD72: Especialización en Geomática | AE72: 38 | AI72: Categoría C | AK72: 62 | AL72: 67 | AM72: 1 | AN72: 63 | AO72: MED | AP72: Grupo de Investigacion en Urologia HMC | AQ72: COL0116538 | AR72: C | AS72: https://scienti.minciencias.gov.co/gruplac/jsp/visualiza/visualizagr.jsp?nro=00000000011763 | AT72: BB49:BB54 | AU72: =ROW() -> 72 | AV72: =MINA(IF(AQ72=$BA$4:$BA$394,$BD$4:$BD$394)) -> 49 | AW72: =MAXA(IF(AQ72=$BA$4:$BA$394,$BD$4:$BD$394)) -> 54 | AX72: MED | BA72: COL0066768 | BB72: HISTORIA INTERNACIONAL | BC72: =COUNTIF(BA$4:BA72,BA72) -> 5 | BD72: =ROW() -> 72 | BE72: 1
F73: 18 | G73: =CLEAN(TRIM(Impactos!C27)) ->  | H73: =Impactos!F27 -> 0 | I73: =Impactos!G27 -> 0 | L73: =COUNTIF(N$56:N73,N73) -> 18 | M73: 3 | N73: Resumen | O73: C | P73: 18 | R73: 6 | AA73: 49 | AB73: Programa | AC73: ING | AD73: Especialización en Gerencia de la Calidad | AE73: 39 | AI73: Categoría C | AK73: 69 | AL73: 70 | AM73: 1 | AN73: 64 | AO73: MED | AP73: Epidemiología molecular de enfermedades endocrinas | AQ73: COL0045848 | AR73: C | AS73: https://scienti.minciencias.gov.co/gruplac/jsp/visualiza/visualizagr.jsp?nro=00000000002874 | AT73: BB24:BB26 | AU73: =ROW() -> 73 | AV73: =MINA(IF(AQ73=$BA$4:$BA$394,$BD$4:$BD$394)) -> 24 | AW73: =MAXA(IF(AQ73=$BA$4:$BA$394,$BD$4:$BD$394)) -> 26 | AX73: MED | BA73: COL0066768 | BB73: RELACIONES INTERNACIONALES | BC73: =COUNTIF(BA$4:BA73,BA73) -> 6 | BD73: =ROW() -> 73 | BE73: 1
F74: 19 | G74: =CLEAN(TRIM(Impactos!C28)) ->  | H74: =Impactos!F28 -> 0 | I74: =Impactos!G28 -> 0 | L74: =COUNTIF(N$56:N74,N74) -> 19 | M74: 3 | N74: Resumen | O74: C | P74: 19 | R74: 6 | AA74: 50 | AB74: Programa | AC74: ING | AD74: Especialización en Gerencia en Logística Integral | AE74: 40 | AI74: Categoría A1 | AK74: 71 | AL74: 71 | AM74: 1 | AN74: 66 | AO74: MED | AP74: EDUMECIS | AQ74: COL0152463 | AR74: C | AS74: https://scienti.minciencias.gov.co/gruplac/jsp/visualiza/visualizagr.jsp?nro=00000000015421 | AT74: =$AT$2&AV74&":"&$AT$2&AW74 -> BB172:BB175 | AU74: =ROW() -> 74 | AV74: =MINA(IF(AQ74=$BA$4:$BA$394,$BD$4:$BD$394)) -> 172 | AW74: =MAXA(IF(AQ74=$BA$4:$BA$394,$BD$4:$BD$394)) -> 175 | AX74: =AO74 -> MED | BA74: COL0066669 | BB74: Estrategia y Seguridad | BC74: =COUNTIF(BA$4:BA74,BA74) -> 1 | BD74: =ROW() -> 74 | BE74: 1
F75: 20 | G75: =CLEAN(TRIM(Impactos!C29)) ->  | H75: =Impactos!F29 -> 0 | I75: =Impactos!G29 -> 0 | L75: =COUNTIF(N$56:N75,N75) -> 20 | M75: 3 | N75: Resumen | O75: C | P75: 20 | R75: 6 | AA75: 51 | AB75: Programa | AC75: ING | AD75: Especialización en Gerencia Integral de Proyectos | AE75: 41 | AI75: Categoría C | AK75: 70 | AL75: 70 | AM75: 1 | AN75: 67 | AO75: MED | AP75: BioGenEtica & BioDerecho | AQ75: COL0096032 | AR75: NR | AS75: https://scienti.minciencias.gov.co/gruplac/jsp/visualiza/visualizagr.jsp?nro=00000000009651 | AT75: BB176:BB178 | AU75: =ROW() -> 75 | AV75: =MINA(IF(AQ75=$BA$4:$BA$394,$BD$4:$BD$394)) -> 176 | AW75: =MAXA(IF(AQ75=$BA$4:$BA$394,$BD$4:$BD$394)) -> 178 | AX75: MED | BA75: COL0066669 | BB75: Paz y Posconflicto | BC75: =COUNTIF(BA$4:BA75,BA75) -> 2 | BD75: =ROW() -> 75 | BE75: 1
L76: =COUNTIF(N$56:N76,N76) -> 21 | M76: 3 | N76: Resumen | O76: C | P76: 21 | R76: 6 | AA76: 52 | AB76: Programa | AC76: ING | AD76: Especialización en Ingeniería de Pavimentos | AE76: 42 | AI76: No Reconocido | AK76: 73 | AL76: 73 | AM76: 1 | AN76: 68 | AO76: MED | AP76: GAFRED | AQ76: COL0149359 | AR76: C | AS76: https://scienti.minciencias.gov.co/gruplac/jsp/visualiza/visualizagr.jsp?nro=00000000015141 | AT76: BB55:BB57 | AU76: =ROW() -> 76 | AV76: =MINA(IF(AQ76=$BA$4:$BA$394,$BD$4:$BD$394)) -> 55 | AW76: =MAXA(IF(AQ76=$BA$4:$BA$394,$BD$4:$BD$394)) -> 57 | AX76: MED | BA76: COL0066669 | BB76: Seguridad Física | BC76: =COUNTIF(BA$4:BA76,BA76) -> 3 | BD76: =ROW() -> 76 | BE76: 1
L77: =COUNTIF(N$56:N77,N77) -> 22 | M77: 3 | N77: Resumen | O77: C | P77: 22 | R77: 6 | AA77: 53 | AB77: Programa | AC77: ING | AD77: Especialización en Planeación Ambiental y Manejo Integral de los Recursos Naturales | AE77: 43 | AI77: Categoría C | AK77: 74 | AL77: 73 | AM77: 1 | AN77: 69 | AO77: MED | AP77: Grupo de inmunología Clínica Aplicada (GICA) | AQ77: COL0152472 | AR77: A1 | AS77: https://scienti.minciencias.gov.co/gruplac/jsp/visualiza/visualizagr.jsp?nro=00000000015414 | AT77: BB291:BB292 | AU77: =ROW() -> 77 | AV77: =MINA(IF(AQ77=$BA$4:$BA$394,$BD$4:$BD$394)) -> 291 | AW77: =MAXA(IF(AQ77=$BA$4:$BA$394,$BD$4:$BD$394)) -> 292 | AX77: MED | BA77: COL0066669 | BB77: Seguridad de Personas | BC77: =COUNTIF(BA$4:BA77,BA77) -> 4 | BD77: =ROW() -> 77 | BE77: 1
C78: No | D78: Nombre Inst | E78: Grupo | F78: Clasif | G78: Investig | H78: Presupuesto | I78: Alcance | J78: Link | L78: =COUNTIF(N$56:N78,N78) -> 23 | M78: 3 | N78: Resumen | O78: C | P78: 23 | R78: 6 | AA78: 53 | AB78: Programa | AC78: ING | AD78: Doctorado en Ciencias Aplicadas | AE78: 43 | AI78: No Reconocido | AK78: 75 | AL78: 75 | AM78: 1 | AN78: 70 | AO78: MED | AP78: Epidemiología y Salud Colectiva | AQ78: COL0152319 | AR78: C | AS78: https://scienti.minciencias.gov.co/gruplac/jsp/visualiza/visualizagr.jsp?nro=00000000015438 | AT78: =$AT$2&AV78&":"&$AT$2&AW78 -> BB27:BB31 | AU78: =ROW() -> 78 | AV78: =MINA(IF(AQ78=$BA$4:$BA$394,$BD$4:$BD$394)) -> 27 | AW78: =MAXA(IF(AQ78=$BA$4:$BA$394,$BD$4:$BD$394)) -> 31 | AX78: =AO78 -> MED | BA78: COL0066669 | BB78: Seguridad y Salud en el Trabajo | BC78: =COUNTIF(BA$4:BA78,BA78) -> 5 | BD78: =ROW() -> 78 | BE78: 1
C79: 1 | D79: =General!C32 -> 0 | E79: =General!C33 -> 0 | F79: =General!I33 -> NA | G79: =General!C34 -> 0 | H79: =General!I34 -> 0 | I79: =General!G35 -> 0 | J79: =General!C36 -> 0 | L79: =COUNTIF(N$56:N79,N79) -> 24 | M79: 3 | N79: Resumen | O79: =O78 -> C | P79: =P78+1 -> 24 | R79: =R78 -> 6 | AA79: 54 | AB79: Programa | AC79: MED | AD79: Medicina | AE79: 14 | AI79: No Reconocido | AK79: 76 | AL79: 76 | AM79: 1 | AN79: 73 | AO79: MED | AP79: Grupo de investigaciones sobre agentes radiológicos, biológicos y químicos | AQ79: COL0191078 | AR79: C | AS79: https://scienti.minciencias.gov.co/gruplac/jsp/visualiza/visualizagr.jsp?nro=00000000019309 | AT79: BB316:BB317 | AU79: =ROW() -> 79 | AV79: =MINA(IF(AQ79=$BA$4:$BA$394,$BD$4:$BD$394)) -> 316 | AW79: =MAXA(IF(AQ79=$BA$4:$BA$394,$BD$4:$BD$394)) -> 317 | AX79: MED | BA79: COL0026486 | BB79: Biorefinerias | BC79: =COUNTIF(BA$4:BA79,BA79) -> 1 | BD79: =ROW() -> 79 | BE79: 1
C80: 2 | D80: =General!C38 -> 0 | E80: =General!C39 -> 0 | F80: =General!I39 -> 0 | G80: =General!C40 -> 0 | H80: =General!I40 -> 0 | I80: =General!G41 -> 0 | J80: =General!C42 -> 0 | L80: =COUNTIF(N$56:N80,N80) -> 25 | M80: 3 | N80: Resumen | O80: C | P80: 25 | R80: 6 | AA80: 55 | AB80: Programa | AC80: MED | AD80: Tecnología en Atención Prehospitalaria | AE80: 15 | AI80: No Reconocido | AK80: 77 | AL80: 77 | AM80: 1 | AN80: 74 | AO80: MED | AP80: Grupo de Investigación en Enfermedades Infecciosas Hospital Militar Central | AQ80: COL0175225 | AR80: A1 | AS80: https://scienti.minciencias.gov.co/gruplac/jsp/visualiza/visualizagr.jsp?nro=00000000017724 | AT80: =$AT$2&AV80&":"&$AT$2&AW80 -> BB168:BB170 | AU80: =ROW() -> 80 | AV80: =MINA(IF(AQ80=$BA$4:$BA$394,$BD$4:$BD$394)) -> 168 | AW80: =MAXA(IF(AQ80=$BA$4:$BA$394,$BD$4:$BD$394)) -> 170 | AX80: MED | BA80: COL0026486 | BB80: Ciudades Sostenibles | BC80: =COUNTIF(BA$4:BA80,BA80) -> 2 | BD80: =ROW() -> 80 | BE80: 1
C81: 3 | D81: =General!C44 -> 0 | E81: =General!C45 -> 0 | F81: =General!I45 -> 0 | G81: =General!C46 -> 0 | H81: =General!I46 -> 0 | I81: =General!G47 -> 0 | J81: =General!C48 -> 0 | L81: =COUNTIF(N$56:N81,N81) -> 26 | M81: 3 | N81: Resumen | O81: C | P81: 26 | R81: 6 | AA81: 1 | AB81: Tipo Proyecto | AC81: INV | AD81: Investigación Científica | AE81: =AC81 -> INV | BA81: COL0026486 | BB81: Ingeniería Offshore. | BC81: =COUNTIF(BA$4:BA81,BA81) -> 3 | BD81: =ROW() -> 81 | BE81: 1
L82: =COUNTIF(N$56:N82,N82) -> 27 | M82: 3 | N82: Resumen | O82: C | P82: 27 | R82: 6 | AA82: 2 | AB82: Tipo Proyecto | AC82: IMP | AD82: Alto Impacto | AE82: IMP | BA82: COL0026486 | BB82: Ingeniería de recursos hídricos y energéticos. | BC82: =COUNTIF(BA$4:BA82,BA82) -> 4 | BD82: =ROW() -> 82 | BE82: 1
L83: =COUNTIF(N$56:N83,N83) -> 28 | M83: 3 | N83: Resumen | O83: C | P83: 28 | R83: 6 | AA83: 1 | AB83: Función | AC83: Investigador Principal | AD83: Investigador Principal o lider del proyecto | AE83: IP | BA83: COL0026486 | BB83: Procesos físico-químicos y de oxidación avanzada | BC83: =COUNTIF(BA$4:BA83,BA83) -> 5 | BD83: =ROW() -> 83 | BE83: 1
L84: =COUNTIF(N$56:N84,N84) -> 29 | M84: 3 | N84: Resumen | O84: C | P84: 29 | R84: 6 | AA84: 2 | AB84: Función | AC84: Coinvestigador | AD84: Investigador que apoya al lider del proyecto | AE84: CO | BA84: COL0143731 | BB84: Electrónica y Telecomunicaciones en Salud | BC84: =COUNTIF(BA$4:BA84,BA84) -> 1 | BD84: =ROW() -> 84 | BE84: 1
L85: =COUNTIF(N$56:N85,N85) -> 1 | M85: 4 | N85: Estado_del_arte | O85: =O84 -> C | P85: =P84+1 -> 30 | Q85: Este es un título Inicial. | R85: -23 | AA85: 3 | AB85: Función | AC85: Asistente OPS | AD85: Asistente de Investigacion contratado OPS | AE85: OPS | BA85: COL0143731 | BB85: Espectro Radioeléctrico | BC85: =COUNTIF(BA$4:BA85,BA85) -> 2 | BD85: =ROW() -> 85 | BE85: 1
L86: =COUNTIF(N$56:N86,N86) -> 2 | M86: 4 | N86: Estado_del_arte | O86: =O85 -> C | P86: =P85+1 -> 31 | R86: -23 | AA86: 4 | AB86: Función | AC86: Joven Investigador | AD86: Joven investigador UMNG o Colciencias | AE86: JV | BA86: COL0143731 | BB86: Sistemas virtuales de comunicación | BC86: =COUNTIF(BA$4:BA86,BA86) -> 3 | BD86: =ROW() -> 86 | BE86: 1
L87: =COUNTIF(N$56:N87,N87) -> 3 | M87: 4 | N87: Estado_del_arte | O87: C | P87: 32 | R87: -23 | AA87: 5 | AB87: Función | AC87: Asistente Graduado | AD87: Asistente Graduado para proyectos de alto impacto | AE87: AG | BA87: COL0110436 | BB87: Bioquímica | BC87: =COUNTIF(BA$4:BA87,BA87) -> 1 | BD87: =ROW() -> 87 | BE87: 1
L88: =COUNTIF(N$56:N88,N88) -> 4 | M88: 4 | N88: Estado_del_arte | O88: C | P88: 33 | R88: -23 | AA88: 6 | AB88: Función | AC88: Auxiliar de Investigación. | AD88: Estudiante apoya el proyecto | AE88: EST | BA88: COL0110436 | BB88: Química Ambiental | BC88: =COUNTIF(BA$4:BA88,BA88) -> 2 | BD88: =ROW() -> 88 | BE88: 1
L89: =COUNTIF(N$56:N89,N89) -> 5 | M89: 4 | N89: Estado_del_arte | O89: C | P89: 34 | R89: -23 | AA89: 7 | AB89: Función | AC89: Asesor | AD89: Asesor externo no vinculado a ninguna entidad | AE89: AR | AP89: Grupo | AQ89: No | BA89: COL0110436 | BB89: Química Inorgánica y Bioinorgánica | BC89: =COUNTIF(BA$4:BA89,BA89) -> 3 | BD89: =ROW() -> 89 | BE89: 1
L90: =COUNTIF(N$56:N90,N90) -> 6 | M90: 4 | N90: Estado_del_arte | O90: C | P90: 35 | R90: -23 | AA90: 1 | AB90: Vinculo | AC90: Doc. Carrera TC | AD90: Docente de Carrera Tiempo Completo | AE90: DTC | AP90: Insight | AQ90: COL0067371 | BA90: COL0110436 | BB90: Química de coordinación y catálisis ambiental. | BC90: =COUNTIF(BA$4:BA90,BA90) -> 4 | BD90: =ROW() -> 90 | BE90: 1
L91: =COUNTIF(N$56:N91,N91) -> 7 | M91: 4 | N91: Estado_del_arte | O91: C | P91: 36 | R91: -23 | AA91: 2 | AB91: Vinculo | AC91: Doc. Carrera MT | AD91: Docente de Carrera Medio Tiempo | AE91: DMT | AP91: Estadística, Control y Optimización | AQ91: COL0136423G | AR91: NA | BA91: COL0116636 | BB91: Desarrollo de software y hardware embarcable | BC91: =COUNTIF(BA$4:BA91,BA91) -> 1 | BD91: =ROW() -> 91 | BE91: 1
L92: =COUNTIF(N$56:N92,N92) -> 8 | M92: 4 | N92: Estado_del_arte | O92: C | P92: 37 | R92: -23 | AA92: 3 | AB92: Vinculo | AC92: Doc. Ocasional | AD92: Docente de Ocasional | AE92: OCA | BA92: COL0116636 | BB92: Procesamiento digital de señales e imágenes | BC92: =COUNTIF(BA$4:BA92,BA92) -> 2 | BD92: =ROW() -> 92 | BE92: 1
L93: =COUNTIF(N$56:N93,N93) -> 9 | M93: 4 | N93: Estado_del_arte | O93: C | P93: 38 | R93: -23 | AA93: 4 | AB93: Vinculo | AC93: OPS - Prestación Servicios | AD93: Asistente de Investigacion contratado OPS | AE93: OPS | AP93: ACCEDER | AQ93: 44 | BA93: COL0116636 | BB93: Producción sostenible | BC93: =COUNTIF(BA$4:BA93,BA93) -> 3 | BD93: =ROW() -> 93 | BE93: 1
L94: =COUNTIF(N$56:N94,N94) -> 10 | M94: 4 | N94: Estado_del_arte | O94: =O93 -> C | P94: =P93+1 -> 39 | R94: -23 | AA94: 5 | AB94: Vinculo | AC94: Estudiante | AD94: Estudiante activo de pregrado o postgrado | AE94: EST | AP94: Agrobiología de especies vegetales promisorias de clima frío | AQ94: 10 | BA94: COL0116636 | BB94: Robótica móvil | BC94: =COUNTIF(BA$4:BA94,BA94) -> 4 | BD94: =ROW() -> 94 | BE94: 1
L95: =COUNTIF(N$56:N95,N95) -> 11 | M95: 4 | N95: Estado_del_arte | O95: C | P95: 40 | R95: -23 | AA95: 6 | AB95: Vinculo | AC95: Externo a la UMNG | AD95: Docentes Investigadores externos sin vinculo lavoral al U. | AE95: EXT | AP95: Agua y Energía - AyE | AQ95: 45 | BA95: COL0116636 | BB95: Sistemas de interacción humano-máquina con actuación convencional y no convencional | BC95: =COUNTIF(BA$4:BA95,BA95) -> 5 | BD95: =ROW() -> 95 | BE95: 1
L96: =COUNTIF(N$56:N96,N96) -> 12 | M96: 4 | N96: Estado_del_arte | O96: C | P96: 41 | R96: -23 | AA96: 1 | AB96: NBC | AC96: 11 | AD96: Programas y certificaciones básicas | AE96: 11 | AP96: BioethicsGroup | AQ96: 34 | BA96: COL0052163 | BB96: Internet de las Cosas | BC96: =COUNTIF(BA$4:BA96,BA96) -> 1 | BD96: =ROW() -> 96 | BE96: 1
L97: =COUNTIF(N$56:N97,N97) -> 13 | M97: 4 | N97: Estado_del_arte | O97: C | P97: 42 | R97: -23 | AA97: 2 | AB97: NBC | AC97: 21 | AD97: Alfabetización y aritmética elemental | AE97: 21 | AP97: BioGenEtica & BioDerecho | AQ97: 67 | BA97: COL0052163 | BB97: Procesamiento de Señales | BC97: =COUNTIF(BA$4:BA97,BA97) -> 2 | BD97: =ROW() -> 97 | BE97: 1
L98: =COUNTIF(N$56:N98,N98) -> 14 | M98: 4 | N98: Estado_del_arte | O98: C | P98: 43 | R98: -23 | AA98: 3 | AB98: NBC | AC98: 31 | AD98: Competencias personales y desarrollo | AE98: 31 | AP98: BONE | AQ98: 53 | BA98: COL0052163 | BB98: Seguridad Informática | BC98: =COUNTIF(BA$4:BA98,BA98) -> 3 | BD98: =ROW() -> 98 | BE98: 1
L99: =COUNTIF(N$56:N99,N99) -> 15 | M99: 4 | N99: Estado_del_arte | O99: C | P99: 44 | R99: -23 | AA99: 4 | AB99: NBC | AC99: 111 | AD99: Ciencias de la educación | AE99: 111 | AP99: CATCH | AQ99: 52 | BA99: COL0052163 | BB99: Sistemas bioinspirados | BC99: =COUNTIF(BA$4:BA99,BA99) -> 4 | BD99: =ROW() -> 99 | BE99: 1
L100: =COUNTIF(N$56:N100,N100) -> 16 | M100: 4 | N100: Estado_del_arte | O100: C | P100: 45 | R100: -23 | AA100: 5 | AB100: NBC | AC100: 112 | AD100: Formación para docentes de educación pre-primaría | AE100: 112 | AP100: Control Biológico UMNG | AQ100: 4 | BA100: COL0052163 | BB100: Sistemas de comunicaciones | BC100: =COUNTIF(BA$4:BA100,BA100) -> 5 | BD100: =ROW() -> 100 | BE100: 1
L101: =COUNTIF(N$56:N101,N101) -> 17 | M101: 4 | N101: Estado_del_arte | O101: C | P101: 46 | R101: -23 | AA101: 6 | AB101: NBC | AC101: 113 | AD101: Formación para docentes sin asignatura de especialización | AE101: 113 | AP101: Cultura y Desarrollo Humano | AQ101: 33 | BA101: COL0013719 | BB101: Biología y Epidemiología de hongos patógenos humanos. | BC101: =COUNTIF(BA$4:BA101,BA101) -> 1 | BD101: =ROW() -> 101 | BE101: 1
L102: =COUNTIF(N$56:N102,N102) -> 18 | M102: 4 | N102: Estado_del_arte | O102: C | P102: 47 | R102: -23 | AA102: 7 | AB102: NBC | AC102: 114 | AD102: Formación para docentes con asignatura de especialización | AE102: 114 | AP102: DAVINCI | AQ102: 41 | BA102: COL0013719 | BB102: Diversidad, Ecología y Bioprospección | BC102: =COUNTIF(BA$4:BA102,BA102) -> 2 | BD102: =ROW() -> 102 | BE102: 1
L103: =COUNTIF(N$56:N103,N103) -> 19 | M103: 4 | N103: Estado_del_arte | O103: C | P103: 48 | R103: -23 | AA103: 8 | AB103: NBC | AC103: 211 | AD103: Técnicas audiovisuales y producción para medios de comunicación | AE103: 211 | AP103: DIVERSITAS | AQ103: 71 | BA103: COL0013719 | BB103: Fitopatología | BC103: =COUNTIF(BA$4:BA103,BA103) -> 3 | BD103: =ROW() -> 103 | BE103: 1
L104: =COUNTIF(N$56:N104,N104) -> 20 | M104: 4 | N104: Estado_del_arte | O104: C | P104: 49 | R104: -23 | AA104: 9 | AB104: NBC | AC104: 212 | AD104: Diseño industrial, de modas e interiores | AE104: 212 | AP104: ECMU (Evaluacion en Competencias y Matemáticas Universitarias) | AQ104: 13 | BA104: COL0013719 | BB104: Genómica y bioinformática | BC104: =COUNTIF(BA$4:BA104,BA104) -> 4 | BD104: =ROW() -> 104 | BE104: 1
L105: =COUNTIF(N$56:N105,N105) -> 21 | M105: 4 | N105: Estado_del_arte | O105: C | P105: 50 | R105: -23 | AA105: 10 | AB105: NBC | AC105: 213 | AD105: Bellas artes | AE105: 213 | AP105: EDUMECIS | AQ105: 66 | BA105: COL0013719 | BB105: Susceptibilidad a Antifungícos | BC105: =COUNTIF(BA$4:BA105,BA105) -> 5 | BD105: =ROW() -> 105 | BE105: 1
L106: =COUNTIF(N$56:N106,N106) -> 22 | M106: 4 | N106: Estado_del_arte | O106: C | P106: 51 | R106: -23 | AA106: 11 | AB106: NBC | AC106: 214 | AD106: Artesanías | AE106: 214 | AP106: Energia alternativa, Centro Multidisciplinario de Investigación | AQ106: 48 | BA106: COL0125134 | BB106: Ayudas Auditivas Implantables | BC106: =COUNTIF(BA$4:BA106,BA106) -> 1 | BD106: =ROW() -> 106 | BE106: 1
L107: =COUNTIF(N$56:N107,N107) -> 23 | M107: 4 | N107: Estado_del_arte | O107: C | P107: 52 | R107: -23 | AA107: 12 | AB107: NBC | AC107: 215 | AD107: Música y artes escénicas | AE107: 215 | AP107: Epidemiología molecular de enfermedades endocrinas | AQ107: 64 | BA107: COL0125134 | BB107: Base de cráneo | BC107: =COUNTIF(BA$4:BA107,BA107) -> 2 | BD107: =ROW() -> 107 | BE107: 1
L108: =COUNTIF(N$56:N108,N108) -> 24 | M108: 4 | N108: Estado_del_arte | O108: C | P108: 53 | R108: -23 | AA108: 13 | AB108: NBC | AC108: 221 | AD108: Religión y Teología | AE108: 221 | AP108: Epidemiología y Salud Colectiva | AQ108: 70 | BA108: COL0125134 | BB108: Cáncer Laríngeo | BC108: =COUNTIF(BA$4:BA108,BA108) -> 3 | BD108: =ROW() -> 108 | BE108: 1
L109: =COUNTIF(N$56:N109,N109) -> 25 | M109: 4 | N109: Estado_del_arte | O109: C | P109: 54 | R109: -23 | AA109: 14 | AB109: NBC | AC109: 222 | AD109: Historia y arqueología | AE109: 222 | AP109: Estadística, Control y Optimización | AQ109: 7 | BA109: COL0125134 | BB109: Enfermedad de Meniere | BC109: =COUNTIF(BA$4:BA109,BA109) -> 4 | BD109: =ROW() -> 109 | BE109: 1
L110: =COUNTIF(N$56:N110,N110) -> 26 | M110: 4 | N110: Estado_del_arte | O110: C | P110: 55 | R110: -23 | AA110: 15 | AB110: NBC | AC110: 223 | AD110: Filosofía y ética | AE110: 223 | AP110: Estructuras y sísmica | AQ110: 42 | BA110: COL0125134 | BB110: Oído Crónico | BC110: =COUNTIF(BA$4:BA110,BA110) -> 5 | BD110: =ROW() -> 110 | BE110: 1
L111: =COUNTIF(N$56:N111,N111) -> 27 | M111: 4 | N111: Estado_del_arte | O111: C | P111: 56 | R111: -23 | AA111: 16 | AB111: NBC | AC111: 231 | AD111: Adquisición del lenguaje | AE111: 231 | AP111: Estudios Internacionales y Políticos | AQ111: 29 | BA111: COL0125134 | BB111: Rinosinusitis Crónica | BC111: =COUNTIF(BA$4:BA111,BA111) -> 6 | BD111: =ROW() -> 111 | BE111: 1
L112: =COUNTIF(N$56:N112,N112) -> 28 | M112: 4 | N112: Estado_del_arte | O112: C | P112: 57 | R112: -23 | AA112: 17 | AB112: NBC | AC112: 232 | AD112: Literatura y lingüística | AE112: 232 | AP112: Fitopatologia molecular | AQ112: 6 | BA112: COL0125134 | BB112: Trauma de guerra en Otorrinolaringología | BC112: =COUNTIF(BA$4:BA112,BA112) -> 7 | BD112: =ROW() -> 112 | BE112: 1
L113: =COUNTIF(N$56:N113,N113) -> 29 | M113: 4 | N113: Estado_del_arte | O113: C | P113: 58 | R113: -23 | AA113: 18 | AB113: NBC | AC113: 311 | AD113: Economía | AE113: 311 | AP113: Fitoplasmas y Virus | AQ113: 1 | BA113: COL0016999 | BB113: Elementos de concreto y de mampostería | BC113: =COUNTIF(BA$4:BA113,BA113) -> 1 | BD113: =ROW() -> 113 | BE113: 1
L114: =COUNTIF(N$56:N114,N114) -> 30 | M114: 4 | N114: Estado_del_arte | O114: C | P114: 59 | R114: -23 | AA114: 19 | AB114: NBC | AC114: 312 | AD114: Ciencias políticas y educación cívica | AE114: 312 | AP114: GAFRED | AQ114: 68 | BA114: COL0016999 | BB114: Instrumentación estructural y sensórica | BC114: =COUNTIF(BA$4:BA114,BA114) -> 2 | BD114: =ROW() -> 114 | BE114: 1
L115: =COUNTIF(N$56:N115,N115) -> 31 | M115: 4 | N115: Estado_del_arte | O115: C | P115: 60 | R115: -23 | AA115: 20 | AB115: NBC | AC115: 313 | AD115: Psicología | AE115: 313 | AP115: GAV | AQ115: 47 | BA115: COL0016999 | BB115: Materiales alternativos para construcción | BC115: =COUNTIF(BA$4:BA115,BA115) -> 3 | BD115: =ROW() -> 115 | BE115: 1
L116: =COUNTIF(N$56:N116,N116) -> 32 | M116: 4 | N116: Estado_del_arte | O116: C | P116: 61 | R116: -23 | AA116: 21 | AB116: NBC | AC116: 314 | AD116: Sociología y estudios culturales | AE116: 314 | AP116: GECS (Grupo de Estudios en Educación, Contabilidad y Sociedad) | AQ116: 28 | BA116: COL0016999 | BB116: Modelación Matemática | BC116: =COUNTIF(BA$4:BA116,BA116) -> 4 | BD116: =ROW() -> 116 | BE116: 1
L117: =COUNTIF(N$56:N117,N117) -> 1 | M117: 6 | N117: Metodología | O117: =O116 -> C | P117: =P116+1 -> 62 | R117: -55 | AA117: 22 | AB117: NBC | AC117: 321 | AD117: Periodismo y reportajes | AE117: 321 | AP117: GEOTECNIA | AQ117: 36 | BA117: COL0016999 | BB117: Vulnerabilidad Sísmica | BC117: =COUNTIF(BA$4:BA117,BA117) -> 5 | BD117: =ROW() -> 117 | BE117: 1
L118: =COUNTIF(N$56:N118,N118) -> 2 | M118: 6 | N118: Metodología | O118: =O117 -> C | P118: =P117+1 -> 63 | R118: -55 | AA118: 23 | AB118: NBC | AC118: 322 | AD118: Bibliotecología, información y archivología | AE118: 322 | AP118: GIDAM | AQ118: 40 | BA118: COL0179618 | BB118: Biochips | BC118: =COUNTIF(BA$4:BA118,BA118) -> 1 | BD118: =ROW() -> 118 | BE118: 1
L119: =COUNTIF(N$56:N119,N119) -> 3 | M119: 6 | N119: Metodología | O119: C | P119: 64 | R119: -55 | AA119: 24 | AB119: NBC | AC119: 411 | AD119: Contabilidad e impuestos | AE119: 411 | AP119: GI-iTEC - Grupo de Investigación e innovación Tecnológica en Electrónica y Comunicaciones | AQ119: 49 | BA119: COL0179618 | BB119: Diseño y fabricación de sistemas para producción de nanomateriales | BC119: =COUNTIF(BA$4:BA119,BA119) -> 2 | BD119: =ROW() -> 119 | BE119: 1
L120: =COUNTIF(N$56:N120,N120) -> 4 | M120: 6 | N120: Metodología | O120: C | P120: 65 | R120: -55 | AA120: 25 | AB120: NBC | AC120: 412 | AD120: Gestión financiera, administración bancaria y seguros | AE120: 412 | AP120: GISSIC: Grupo de Investigacion en Seguridad y Sistemas de Comunicaciones | AQ120: 46 | BA120: COL0179618 | BB120: Holografía digital | BC120: =COUNTIF(BA$4:BA120,BA120) -> 3 | BD120: =ROW() -> 120 | BE120: 1
L121: =COUNTIF(N$56:N121,N121) -> 5 | M121: 6 | N121: =NbHoja(M121) -> Metodología | O121: C | P121: 66 | Q121: =CLEAN(TRIM(INDIRECT($N121&"!"&$O121&(P121+R121),1))) ->  | R121: -55 | AA121: 26 | AB121: NBC | AC121: 413 | AD121: Gestión y administración | AE121: 413 | AP121: GREST | AQ121: 51 | BA121: COL0179618 | BB121: Nanofotónica, sensórica y nanotecnología | BC121: =COUNTIF(BA$4:BA121,BA121) -> 4 | BD121: =ROW() -> 121 | BE121: 1
L122: =COUNTIF(N$56:N122,N122) -> 6 | M122: 6 | N122: Metodología | O122: C | P122: 67 | R122: -55 | AA122: 27 | AB122: NBC | AC122: 414 | AD122: Mercadotecnia y publicidad | AE122: 414 | AP122: Grupo de Derecho Privado | AQ122: 16 | BA122: COL0179618 | BB122: Termo-electrónica | BC122: =COUNTIF(BA$4:BA122,BA122) -> 5 | BD122: =ROW() -> 122 | BE122: 1
L123: =COUNTIF(N$56:N123,N123) -> 7 | M123: 6 | N123: Metodología | O123: C | P123: 68 | R123: -55 | AA123: 28 | AB123: NBC | AC123: 415 | AD123: Secretariado y trabajo de oficina | AE123: 415 | AP123: Grupo de derecho público | AQ123: 15 | BA123: COL0179618 | BB123: Tomografia óptica coherente | BC123: =COUNTIF(BA$4:BA123,BA123) -> 6 | BD123: =ROW() -> 123 | BE123: 1
L124: =COUNTIF(N$56:N124,N124) -> 8 | M124: 6 | N124: Metodología | O124: C | P124: 69 | R124: -55 | AA124: 29 | AB124: NBC | AC124: 416 | AD124: Ventas al por mayor y al por menor | AE124: 416 | AP124: Grupo de Docencia e Investigación en Física | AQ124: 14 | BA124: COL0048492 | BB124: Biología Molecular de organismos acuáticos, con énfasis en especies de interés comercial y amenazadas. | BC124: =COUNTIF(BA$4:BA124,BA124) -> 1 | BD124: =ROW() -> 124 | BE124: 1
L125: =COUNTIF(N$56:N125,N125) -> 9 | M125: 6 | N125: Metodología | O125: C | P125: 70 | R125: -55 | AA125: 30 | AB125: NBC | AC125: 417 | AD125: Competencias laborales | AE125: 417 | AP125: Grupo de Ecotoxicología, Evolución, Medio ambiente y conservación (E = mc2) | AQ125: 8 | BA125: COL0048492 | BB125: DINÁMICA ECOLÓGICA DEL ZOOPLANCTON EN EL OCÉANO PACÍFICO COLOMBIANO. CRUCEROS 2007-2010 DE LA SERIE ERFEN (ESTUDIO REGIONAL DEL FENÓMENO EL NIÑO). | BC125: =COUNTIF(BA$4:BA125,BA125) -> 2 | BD125: =ROW() -> 125 | BE125: 1
L126: =COUNTIF(N$56:N126,N126) -> 10 | M126: 6 | N126: Metodología | O126: C | P126: 71 | R126: -55 | AA126: 31 | AB126: NBC | AC126: 421 | AD126: Derecho | AE126: 421 | AP126: Grupo de estudios contemporáneos en contabilidad, gestión y organizaciones - GECCGO | AQ126: 27 | BA126: COL0048492 | BB126: Estudios Morfológicos, Tróficos, Ecológicos, Bióticos y Abióticos de Humedales Colombianos, con énfasis en la Sabana de Bogotá. | BC126: =COUNTIF(BA$4:BA126,BA126) -> 3 | BD126: =ROW() -> 126 | BE126: 1
L127: =COUNTIF(N$56:N127,N127) -> 11 | M127: 6 | N127: Metodología | O127: C | P127: 72 | R127: -55 | AA127: 32 | AB127: NBC | AC127: 511 | AD127: Biología | AE127: 511 | AP127: Grupo de Estudios en Ciencias Económicas - CIE | AQ127: 25 | BA127: COL0048492 | BB127: Estudios moleculares, ecológicos, morfológicos, nutricionales, ontogénicos y de cultivo de organismos acuáticos. | BC127: =COUNTIF(BA$4:BA127,BA127) -> 4 | BD127: =ROW() -> 127 | BE127: 1
L128: =COUNTIF(N$56:N128,N128) -> 12 | M128: 6 | N128: Metodología | O128: =O127 -> C | P128: =P127+1 -> 73 | R128: -55 | AA128: 33 | AB128: NBC | AC128: 512 | AD128: Bioquímica | AE128: 512 | AP128: Grupo de Estudios Macroeconómicos | AQ128: 26 | BA128: COL0048492 | BB128: Impacto antropogénico en ecosistemas acuáticos. | BC128: =COUNTIF(BA$4:BA128,BA128) -> 5 | BD128: =ROW() -> 128 | BE128: 1
L129: =COUNTIF(N$56:N129,N129) -> 13 | M129: 6 | N129: Metodología | O129: C | P129: 74 | R129: -55 | AA129: 34 | AB129: NBC | AC129: 521 | AD129: Ciencias del medio ambiente | AE129: 521 | AP129: Grupo de inmunología Clínica Aplicada (GICA) | AQ129: 69 | BA129: COL0117722 | BB129: Estudios disciplinares en contabilidad auditoria, contabilidad de gestión y tributación. | BC129: =COUNTIF(BA$4:BA129,BA129) -> 1 | BD129: =ROW() -> 129 | BE129: 1
L130: =COUNTIF(N$56:N130,N130) -> 14 | M130: 6 | N130: Metodología | O130: C | P130: 75 | R130: -55 | AA130: 35 | AB130: NBC | AC130: 522 | AD130: Medio ambiente natural y vida silvestre | AE130: 522 | AP130: Grupo de investigación en Biodiversidad y ecología de abejas silvestres | AQ130: 2 | BA130: COL0117722 | BB130: Estudios en educación en ciencias económicas | BC130: =COUNTIF(BA$4:BA130,BA130) -> 2 | BD130: =ROW() -> 130 | BE130: 1
L131: =COUNTIF(N$56:N131,N131) -> 15 | M131: 6 | N131: Metodología | O131: C | P131: 76 | R131: -55 | AA131: 36 | AB131: NBC | AC131: 531 | AD131: Química | AE131: 531 | AP131: Grupo de Investigación en Cirugía pediátrica y especialidades CIPEMIL | AQ131: 59 | BA131: COL0117722 | BB131: Ética, transparencia y control social | BC131: =COUNTIF(BA$4:BA131,BA131) -> 3 | BD131: =ROW() -> 131 | BE131: 1
L132: =COUNTIF(N$56:N132,N132) -> 16 | M132: 6 | N132: Metodología | O132: C | P132: 77 | R132: -55 | AA132: 37 | AB132: NBC | AC132: 532 | AD132: Ciencias de la tierra | AE132: 532 | AP132: Grupo de Investigacion en Dermatologia HMC | AQ132: 58 | BA132: COL0128047 | BB132: Derecho de la responsabilidad y de seguros | BC132: =COUNTIF(BA$4:BA132,BA132) -> 1 | BD132: =ROW() -> 132 | BE132: =COUNTIF($AQ$3:$AQ$95,BA132) -> 1
L133: =COUNTIF(N$56:N133,N133) -> 17 | M133: 6 | N133: Metodología | O133: C | P133: 78 | R133: -55 | AA133: 38 | AB133: NBC | AC133: 533 | AD133: Física | AE133: 533 | AP133: Grupo de Investigación en Enfermedades Infecciosas Hospital Militar Central | AQ133: 74 | BA133: COL0128047 | BB133: Derecho económico y de los negocios. | BC133: =COUNTIF(BA$4:BA133,BA133) -> 2 | BD133: =ROW() -> 133 | BE133: 1
L134: =COUNTIF(N$56:N134,N134) -> 18 | M134: 6 | N134: Metodología | O134: C | P134: 79 | R134: -55 | AA134: 39 | AB134: NBC | AC134: 541 | AD134: Matemáticas | AE134: 541 | AP134: Grupo de Investigación en Hidrobiología Aplicada (HIDROBIA) | AQ134: 9 | BA134: COL0047566 | BB134: EDUCACIÓN EN INGENIERÍA | BC134: =COUNTIF(BA$4:BA134,BA134) -> 1 | BD134: =ROW() -> 134 | BE134: 1
L135: =COUNTIF(N$56:N135,N135) -> 19 | M135: 6 | N135: Metodología | O135: C | P135: 80 | R135: -55 | AA135: 40 | AB135: NBC | AC135: 542 | AD135: Estadística | AE135: 542 | AP135: Grupo de Investigación en Multimedia -GIM- | AQ135: 35 | BA135: COL0047566 | BB135: GEOMATICA | BC135: =COUNTIF(BA$4:BA135,BA135) -> 2 | BD135: =ROW() -> 135 | BE135: 1
L136: =COUNTIF(N$56:N136,N136) -> 20 | M136: 6 | N136: Metodología | O136: C | P136: 81 | R136: -55 | AA136: 41 | AB136: NBC | AC136: 611 | AD136: Uso de computadores | AE136: 611 | AP136: Grupo de investigación en química ambiental y tecnologías limpias - QUATELI | AQ136: 12 | BA136: COL0047566 | BB136: GERENCIA DE PROYECTOS | BC136: =COUNTIF(BA$4:BA136,BA136) -> 3 | BD136: =ROW() -> 136 | BE136: 1
L137: =COUNTIF(N$56:N137,N137) -> 21 | M137: 6 | N137: Metodología | O137: C | P137: 82 | R137: -55 | AA137: 42 | AB137: NBC | AC137: 612 | AD137: Diseño y administración de redes y bases de datos | AE137: 612 | AP137: Grupo de Investigacion en Urologia HMC | AQ137: 63 | BA137: COL0047566 | BB137: HIDROLOGÍA | BC137: =COUNTIF(BA$4:BA137,BA137) -> 4 | BD137: =ROW() -> 137 | BE137: 1
L138: =COUNTIF(N$56:N138,N138) -> 22 | M138: 6 | N138: Metodología | O138: C | P138: 83 | R138: -55 | AA138: 43 | AB138: NBC | AC138: 613 | AD138: Desarrollo y análisis de software y aplicaciones | AE138: 613 | AP138: Grupo de investigaciones sobre agentes radiológicos, biológicos y químicos | AQ138: 73 | BA138: COL0047566 | BB138: PROCESOS ESTOCÁSTICOS | BC138: =COUNTIF(BA$4:BA138,BA138) -> 5 | BD138: =ROW() -> 138 | BE138: 1
L139: =COUNTIF(N$56:N139,N139) -> 23 | M139: 6 | N139: Metodología | O139: C | P139: 84 | R139: -55 | AA139: 44 | AB139: NBC | AC139: 711 | AD139: Ingeniería y procesos químicos | AE139: 711 | AP139: Grupo de Micología y Fitopatologia | AQ139: 5 | BA139: COL0047566 | BB139: PRODUCTIVIDAD E IMPACTO AMBIENTAL EN PROYECTOS DE INGENIERIA CIVIL (CONSTRUCCIÓN SOSTENIBLE) | BC139: =COUNTIF(BA$4:BA139,BA139) -> 6 | BD139: =ROW() -> 139 | BE139: 1
L140: =COUNTIF(N$56:N140,N140) -> 24 | M140: 6 | N140: Metodología | O140: C | P140: 85 | R140: -55 | AA140: 45 | AB140: NBC | AC140: 712 | AD140: Tecnología de protección del medio ambiente | AE140: 712 | AP140: Grupo de Psoriasis e Inmunodermatologia | AQ140: 54 | BA140: COL0066229 | BB140: (EO) Estructuras Organizacionales | BC140: =COUNTIF(BA$4:BA140,BA140) -> 1 | BD140: =ROW() -> 140 | BE140: 1
L141: =COUNTIF(N$56:N141,N141) -> 25 | M141: 6 | N141: Metodología | O141: C | P141: 86 | R141: -55 | AA141: 46 | AB141: NBC | AC141: 713 | AD141: Electricidad y energía | AE141: 713 | AP141: Grupo de Rehabilitacion HOMIC-UMNG | AQ141: 62 | BA141: COL0066229 | BB141: (PI) Procesos de Integración | BC141: =COUNTIF(BA$4:BA141,BA141) -> 2 | BD141: =ROW() -> 141 | BE141: 1
L142: =COUNTIF(N$56:N142,N142) -> 26 | M142: 6 | N142: Metodología | O142: C | P142: 87 | R142: -55 | AA142: 47 | AB142: NBC | AC142: 714 | AD142: Electrónica y automatización | AE142: 714 | AP142: Grupo de Salud Oral y Cirugia Maxilofacial | AQ142: 60 | BA142: COL0066229 | BB142: (R) Regionalización | BC142: =COUNTIF(BA$4:BA142,BA142) -> 3 | BD142: =ROW() -> 142 | BE142: 1
L143: =COUNTIF(N$56:N143,N143) -> 27 | M143: 6 | N143: Metodología | O143: C | P143: 88 | R143: -55 | AA143: 48 | AB143: NBC | AC143: 715 | AD143: Mecánica y profesiones afines a la metalistería | AE143: 715 | AP143: Grupo Integrado de Investigaciones en Química Bioorgánica (InQuiBio) | AQ143: 11 | BA143: COL0116439 | BB143: Cirugía Dermatologica | BC143: =COUNTIF(BA$4:BA143,BA143) -> 1 | BD143: =ROW() -> 143 | BE143: 1
L144: =COUNTIF(N$56:N144,N144) -> 28 | M144: 6 | N144: Metodología | O144: C | P144: 89 | R144: -55 | AA144: 49 | AB144: NBC | AC144: 716 | AD144: Vehículos, barcos y aeronaves motorizadas | AE144: 716 | AP144: GRUPO NEUROCIENCIAS HMC | AQ144: 57 | BA144: COL0116439 | BB144: Dermatologia Pediatrica | BC144: =COUNTIF(BA$4:BA144,BA144) -> 2 | BD144: =ROW() -> 144 | BE144: 1
L145: =COUNTIF(N$56:N145,N145) -> 29 | M145: 6 | N145: Metodología | O145: C | P145: 90 | R145: -55 | AA145: 50 | AB145: NBC | AC145: 721 | AD145: Procesamiento de alimentos | AE145: 721 | AP145: HUMANITAS | AQ145: 32 | BA145: COL0116439 | BB145: Fotobiologia y Fototerapia | BC145: =COUNTIF(BA$4:BA145,BA145) -> 3 | BD145: =ROW() -> 145 | BE145: 1
L146: =COUNTIF(N$56:N146,N146) -> 30 | M146: 6 | N146: Metodología | O146: C | P146: 91 | R146: -55 | AA146: 51 | AB146: NBC | AC146: 722 | AD146: Materiales (vidrio, papel, plástico y madera) | AE146: 722 | AP146: ICAAO: Inteligencia Computacional, Aprendizaje Automático y Optimización | AQ146: 77 | BA146: COL0116439 | BB146: Leishmaniasis | BC146: =COUNTIF(BA$4:BA146,BA146) -> 4 | BD146: =ROW() -> 146 | BE146: 1
L147: =COUNTIF(N$56:N147,N147) -> 31 | M147: 6 | N147: Metodología | O147: C | P147: 92 | R147: -55 | AA147: 52 | AB147: NBC | AC147: 723 | AD147: Producción textiles (ropa, calzado y artículos de cuero) | AE147: 723 | AP147: INAMPE | AQ147: 24 | BA147: COL0039321 | BB147: Analisis de Matrices | BC147: =COUNTIF(BA$4:BA147,BA147) -> 1 | BD147: =ROW() -> 147 | BE147: 1
L148: =COUNTIF(N$56:N148,N148) -> 32 | M148: 6 | N148: Metodología | O148: C | P148: 93 | R148: -55 | AA148: 53 | AB148: NBC | AC148: 724 | AD148: Minería y extracción | AE148: 724 | AP148: INCONDIS | AQ148: 19 | BA148: COL0039321 | BB148: Filosofía de la Ciencia: Filosofía de la Física | BC148: =COUNTIF(BA$4:BA148,BA148) -> 2 | BD148: =ROW() -> 148 | BE148: 1
L149: =COUNTIF(N$56:N149,N149) -> 33 | M149: 6 | N149: Metodología | O149: C | P149: 94 | R149: -55 | AA149: 54 | AB149: NBC | AC149: 731 | AD149: Arquitectura y urbanismo | AE149: 731 | AP149: Ingeniería de Procesos y Tecnologías Sostenibles | AQ149: 65 | BA149: COL0039321 | BB149: LEYES DE CONSERVACION HIPERBOLICA | BC149: =COUNTIF(BA$4:BA149,BA149) -> 3 | BD149: =ROW() -> 149 | BE149: 1
L150: =COUNTIF(N$56:N150,N150) -> 34 | M150: 6 | N150: Metodología | O150: C | P150: 95 | R150: -55 | AA150: 55 | AB150: NBC | AC150: 732 | AD150: Construcción e ingeniería civil | AE150: 732 | AP150: INGENIERÍA, GEOMÁTICA Y EDUCACIÓN (IGE) | AQ150: 43 | BA150: COL0039321 | BB150: Matematicas aplicadas | BC150: =COUNTIF(BA$4:BA150,BA150) -> 4 | BD150: =ROW() -> 150 | BE150: 1
L151: =COUNTIF(N$56:N151,N151) -> 1 | M151: 12 | N151: Bibliografía | O151: =O150 -> C | P151: =P150+1 -> 96 | R151: -89 | AA151: 56 | AB151: NBC | AC151: 811 | AD151: Producción agrícola y ganadera | AE151: 811 | AP151: Kokhlias. | AQ151: 61 | BA151: COL0039321 | BB151: Solución numérica de ecuaciones diferenciales parciales | BC151: =COUNTIF(BA$4:BA151,BA151) -> 5 | BD151: =ROW() -> 151 | BE151: 1
L152: =COUNTIF(N$56:N152,N152) -> 2 | M152: 12 | N152: Bibliografía | O152: =O151 -> C | P152: =P151+1 -> 97 | R152: -89 | AA152: 57 | AB152: NBC | AC152: 812 | AD152: Horticultura | AE152: 812 | AP152: LA TRAMOYA | AQ152: 50 | BA152: COL0129689 | BB152: Cirugía Ortognática y Distracción Osteogénica | BC152: =COUNTIF(BA$4:BA152,BA152) -> 1 | BD152: =ROW() -> 152 | BE152: 1
L153: =COUNTIF(N$56:N153,N153) -> 3 | M153: 12 | N153: Bibliografía | O153: C | P153: 98 | R153: -89 | AA153: 58 | AB153: NBC | AC153: 821 | AD153: Silvicultura | AE153: 821 | AP153: LIDERAZGO | AQ153: 31 | BA153: COL0129689 | BB153: Implantología y Cirugía Reconstructiva | BC153: =COUNTIF(BA$4:BA153,BA153) -> 2 | BD153: =ROW() -> 153 | BE153: 1
L154: =COUNTIF(N$56:N154,N154) -> 4 | M154: 12 | N154: Bibliografía | O154: C | P154: 99 | R154: -89 | AA154: 59 | AB154: NBC | AC154: 831 | AD154: Pesca | AE154: 831 | AP154: MATRIX | AQ154: 3 | BA154: COL0129689 | BB154: Infecciones, Patología y Cirugía Dentoalveolar | BC154: =COUNTIF(BA$4:BA154,BA154) -> 3 | BD154: =ROW() -> 154 | BE154: 1
L155: =COUNTIF(N$56:N155,N155) -> 5 | M155: 12 | N155: Bibliografía | O155: C | P155: 100 | R155: -89 | AA155: 60 | AB155: NBC | AC155: 841 | AD155: Veterinaria | AE155: 841 | AP155: Medios, Mediaciones y Procesos en Educación a Distancia | AQ155: 21 | BA155: COL0194721 | BB155: Cirugía Abdominal, Tórax y Mínimamente Invasiva | BC155: =COUNTIF(BA$4:BA155,BA155) -> 1 | BD155: =ROW() -> 155 | BE155: 1
L156: =COUNTIF(N$56:N156,N156) -> 6 | M156: 12 | N156: Bibliografía | O156: C | P156: 101 | R156: -89 | AA156: 61 | AB156: NBC | AC156: 911 | AD156: Odontología | AE156: 911 | AP156: Modelos de simulación ICDIST | AQ156: 23 | BA156: COL0194721 | BB156: Cirugía Vascular | BC156: =COUNTIF(BA$4:BA156,BA156) -> 2 | BD156: =ROW() -> 156 | BE156: 1
L157: =COUNTIF(N$56:N157,N157) -> 7 | M157: 12 | N157: Bibliografía | O157: C | P157: 102 | R157: -89 | AA157: 62 | AB157: NBC | AC157: 912 | AD157: Medicina | AE157: 912 | AP157: Nanofab | AQ157: 72 | BA157: COL0194721 | BB157: Congénitas | BC157: =COUNTIF(BA$4:BA157,BA157) -> 3 | BD157: =ROW() -> 157 | BE157: 1
L158: =COUNTIF(N$56:N158,N158) -> 8 | M158: 12 | N158: Bibliografía | O158: C | P158: 103 | R158: -89 | AA158: 63 | AB158: NBC | AC158: 913 | AD158: Enfermería y partería | AE158: 913 | AP158: ORTOPEDIA Y TRAUMATOLOGIA HMC UMNG | AQ158: 55 | BA158: COL0194721 | BB158: Educación | BC158: =COUNTIF(BA$4:BA158,BA158) -> 4 | BD158: =ROW() -> 158 | BE158: 1
L159: =COUNTIF(N$56:N159,N159) -> 9 | M159: 12 | N159: Bibliografía | O159: C | P159: 104 | R159: -89 | AA159: 64 | AB159: NBC | AC159: 914 | AD159: Tecnología de diagnóstico y tratamiento médico | AE159: 914 | AP159: "PYDES" Pedagogía y didáctica en la educación superior | AQ159: 20 | BA159: COL0194721 | BB159: Oncología | BC159: =COUNTIF(BA$4:BA159,BA159) -> 5 | BD159: =ROW() -> 159 | BE159: 1
L160: =COUNTIF(N$56:N160,N160) -> 10 | M160: 12 | N160: Bibliografía | O160: C | P160: 105 | R160: -89 | AA160: 65 | AB160: NBC | AC160: 915 | AD160: Terapia y rehabilitación | AE160: 915 | AP160: PIREO "Procesos de Integración, Regionalización y Estructuras Organizacionales" | AQ160: 22 | BA160: COL0194721 | BB160: Trauma | BC160: =COUNTIF(BA$4:BA160,BA160) -> 6 | BD160: =ROW() -> 160 | BE160: 1
L161: =COUNTIF(N$56:N161,N161) -> 11 | M161: 12 | N161: Bibliografía | O161: C | P161: 106 | R161: -89 | AA161: 66 | AB161: NBC | AC161: 916 | AD161: Farmacia | AE161: 916 | AP161: PROCESOS, OPERACIONES Y LOGISTICA (PROPYLOG) | AQ161: 75 | BA161: COL0015722 | BB161: Bioética | BC161: =COUNTIF(BA$4:BA161,BA161) -> 1 | BD161: =ROW() -> 161 | BE161: 1
L162: =COUNTIF(N$56:N162,N162) -> 12 | M162: 12 | N162: Bibliografía | O162: C | P162: 107 | R162: -89 | AA162: 67 | AB162: NBC | AC162: 917 | AD162: Medicina y terapia tradicional y complementaria | AE162: 917 | AP162: PRODUCCION, INNOVACION Y TECNOLOGIA | AQ162: 39 | BA162: COL0015722 | BB162: Educación y tecnologías | BC162: =COUNTIF(BA$4:BA162,BA162) -> 2 | BD162: =ROW() -> 162 | BE162: 1
L163: =COUNTIF(N$56:N163,N163) -> 13 | M163: 12 | N163: Bibliografía | O163: C | P163: 108 | R163: -89 | AA163: 68 | AB163: NBC | AC163: 921 | AD163: Asistencia a adultos mayores y discapacitados | AE163: 921 | AP163: PROPPIO: Procesos organizacionales, programaticos y políticos para la promoción del desarrollo | AQ163: 18 | BA163: COL0005439 | BB163: MODELACIÓN NUMÉRICA | BC163: =COUNTIF(BA$4:BA163,BA163) -> 1 | BD163: =ROW() -> 163 | BE163: 1
L164: =COUNTIF(N$56:N164,N164) -> 14 | M164: 12 | N164: Bibliografía | O164: C | P164: 109 | R164: -89 | AA164: 69 | AB164: NBC | AC164: 922 | AD164: Asistencia a la infancia y servicios para jóvenes | AE164: 922 | AP164: Red de estudios sociojurídicos comparados y políticas públicas | AQ164: 17 | BA164: COL0005439 | BB164: ORDENACIÓN DEL TERRITORIO | BC164: =COUNTIF(BA$4:BA164,BA164) -> 2 | BD164: =ROW() -> 164 | BE164: 1
L165: =COUNTIF(N$56:N165,N165) -> 15 | M165: 12 | N165: Bibliografía | O165: C | P165: 110 | R165: -89 | AA165: 70 | AB165: NBC | AC165: 923 | AD165: Trabajo social y orientación | AE165: 923 | AP165: Salud y Comportamiento | AQ165: 56 | BA165: COL0005439 | BB165: PAVIMENTOS | BC165: =COUNTIF(BA$4:BA165,BA165) -> 3 | BD165: =ROW() -> 165 | BE165: 1
L166: =COUNTIF(N$56:N166,N166) -> 16 | M166: 12 | N166: Bibliografía | O166: C | P166: 111 | R166: -89 | AA166: 71 | AB166: NBC | AC166: 1011 | AD166: Servicios domésticos | AE166: 1011 | AP166: Sistemas de Infraestructura de Ingeniería Civil | AQ166: 76 | BA166: COL0005439 | BB166: SUELOS | BC166: =COUNTIF(BA$4:BA166,BA166) -> 4 | BD166: =ROW() -> 166 | BE166: 1
L167: =COUNTIF(N$56:N167,N167) -> 17 | M167: 12 | N167: Bibliografía | O167: C | P167: 112 | R167: -89 | AA167: 72 | AB167: NBC | AC167: 1012 | AD167: Peluquería y tratamientos de belleza | AE167: 1012 | AP167: Sociedad, Estrategia y Seguridad | AQ167: 30 | BA167: COL0005439 | BB167: TRANSPORTES | BC167: =COUNTIF(BA$4:BA167,BA167) -> 5 | BD167: =ROW() -> 167 | BE167: 1
L168: =COUNTIF(N$56:N168,N168) -> 18 | M168: 12 | N168: Bibliografía | O168: C | P168: 113 | R168: -89 | AA168: 73 | AB168: NBC | AC168: 1013 | AD168: Hotelería, restaurantes y servicios de banquetes | AE168: 1013 | AP168: TIGUM: Grupo de Investigacion en Telemedicina Universidad Militar | AQ168: 37 | BA168: COL0175225 | BB168: Efermedades Tropicales | BC168: =COUNTIF(BA$4:BA168,BA168) -> 1 | BD168: =ROW() -> 168 | BE168: 1
L169: =COUNTIF(N$56:N169,N169) -> 19 | M169: 12 | N169: Bibliografía | O169: C | P169: 114 | R169: -89 | AA169: 74 | AB169: NBC | AC169: 1014 | AD169: Deportes | AE169: 1014 | AP169: VOLTA - Grupo de Materiales, Corrosión, Degradación y Protección (GMCDP) | AQ169: 38 | BA169: COL0175225 | BB169: Enfermedades de Transmisión Sexual | BC169: =COUNTIF(BA$4:BA169,BA169) -> 2 | BD169: =ROW() -> 169 | BE169: 1
L170: =COUNTIF(N$56:N170,N170) -> 20 | M170: 12 | N170: Bibliografía | O170: C | P170: 115 | R170: -89 | AA170: 75 | AB170: NBC | AC170: 1015 | AD170: Viajes, turismo y actividades recreativas | AE170: 1015 | BA170: COL0175225 | BB170: Infecciones Asociadas al Cuidado de la Salud | BC170: =COUNTIF(BA$4:BA170,BA170) -> 3 | BD170: =ROW() -> 170 | BE170: 1
L171: =COUNTIF(N$56:N171,N171) -> 21 | M171: 12 | N171: Bibliografía | O171: C | P171: 116 | R171: -89 | AA171: 76 | AB171: NBC | AC171: 1021 | AD171: Saneamiento de la comunidad | AE171: 1021 | BA171: COL0069296 | BB171: Modelos de simulación | BC171: =COUNTIF(BA$4:BA171,BA171) -> 1 | BD171: =ROW() -> 171 | BE171: 1
L172: =COUNTIF(N$56:N172,N172) -> 22 | M172: 12 | N172: Bibliografía | O172: C | P172: 117 | R172: -89 | AA172: 77 | AB172: NBC | AC172: 1022 | AD172: Salud y protección laboral | AE172: 1022 | BA172: COL0152463 | BB172: CURRÍCULO Y EVALUACIÓN | BC172: =COUNTIF(BA$4:BA172,BA172) -> 1 | BD172: =ROW() -> 172 | BE172: 1
L173: =COUNTIF(N$56:N173,N173) -> 23 | M173: 12 | N173: Bibliografía | O173: C | P173: 118 | R173: -89 | AA173: 78 | AB173: NBC | AC173: 1031 | AD173: Educación militar y de defensa | AE173: 1031 | BA173: COL0152463 | BB173: DOCENCIA Y PEDAGOGÍA | BC173: =COUNTIF(BA$4:BA173,BA173) -> 2 | BD173: =ROW() -> 173 | BE173: 1
L174: =COUNTIF(N$56:N174,N174) -> 24 | M174: 12 | N174: Bibliografía | O174: C | P174: 119 | R174: -89 | AA174: 79 | AB174: NBC | AC174: 1032 | AD174: Protección de las personas y de la propiedad | AE174: 1032 | BA174: COL0152463 | BB174: INVESTIGACIÓN CLINICA | BC174: =COUNTIF(BA$4:BA174,BA174) -> 3 | BD174: =ROW() -> 174 | BE174: 1
L175: =COUNTIF(N$56:N175,N175) -> 25 | M175: 12 | N175: Bibliografía | O175: C | P175: 120 | R175: -89 | AA175: 80 | AB175: NBC | AC175: 1041 | AD175: Servicios de transporte | AE175: 1041 | BA175: COL0152463 | BB175: Proyección Social y contexto de formación en Salud Pública | BC175: =COUNTIF(BA$4:BA175,BA175) -> 4 | BD175: =ROW() -> 175 | BE175: 1
AA176: 1 | AB176: Nivel | AC176: 1 | AD176: Postdoctorado | AE176: =AC176 -> 1 | BA176: COL0096032 | BB176: Bioetica, Bioderecho, Biomedicina y Biotecnologia | BC176: =COUNTIF(BA$4:BA176,BA176) -> 1 | BD176: =ROW() -> 176 | BE176: 1
AA177: 2 | AB177: Nivel | AC177: 2 | AD177: Doctorado | AE177: =AC177 -> 2 | BA177: COL0096032 | BB177: Células Madre & Medicina Regenerativa | BC177: =COUNTIF(BA$4:BA177,BA177) -> 2 | BD177: =ROW() -> 177 | BE177: 1
AA178: 3 | AB178: Nivel | AC178: 3 | AD178: Maestría | AE178: 3 | BA178: COL0096032 | BB178: Genética Humana | BC178: =COUNTIF(BA$4:BA178,BA178) -> 3 | BD178: =ROW() -> 178 | BE178: 1
AA179: 4 | AB179: Nivel | AC179: 4 | AD179: Esp. universitaria | AE179: 4 | BA179: COL0136423 | BB179: Control óptimo estocástico | BC179: =COUNTIF(BA$4:BA179,BA179) -> 1 | BD179: =ROW() -> 179 | BE179: 1
AA180: 5 | AB180: Nivel | AC180: 5 | AD180: Esp. Técnica Profesional | AE180: 5 | BA180: COL0136423 | BB180: Estadística Multivariada paramétrica y no paramétrica. | BC180: =COUNTIF(BA$4:BA180,BA180) -> 2 | BD180: =ROW() -> 180 | BE180: 1
AA181: 6 | AB181: Nivel | AC181: 6 | AD181: Esp. Tecnológica | AE181: 6 | BA181: COL0136423 | BB181: Métodos estadísticos basados en grafos | BC181: =COUNTIF(BA$4:BA181,BA181) -> 3 | BD181: =ROW() -> 181 | BE181: 1
AA182: 7 | AB182: Nivel | AC182: 7 | AD182: Universitario | AE182: 7 | BA182: COL0136423 | BB182: Optimizacion Semidefinida | BC182: =COUNTIF(BA$4:BA182,BA182) -> 4 | BD182: =ROW() -> 182 | BE182: 1
AA183: 8 | AB183: Nivel | AC183: 8 | AD183: Tecnológico | AE183: 8 | BA183: COL0136423 | BB183: Optimización Numérica. Máquinas de Vectores de Soportes. | BC183: =COUNTIF(BA$4:BA183,BA183) -> 5 | BD183: =ROW() -> 183 | BE183: 1
AA184: 9 | AB184: Nivel | AC184: 9 | AD184: Técnico profesional | AE184: 9 | BA184: COL0067504 | BB184: Gestión Tecnológica | BC184: =COUNTIF(BA$4:BA184,BA184) -> 1 | BD184: =ROW() -> 184 | BE184: 1
AA185: 10 | AB185: Nivel | AC185: 10 | AD185: Estudiante pregrado | AE185: 10 | BA185: COL0067504 | BB185: Gestión del conocimiento | BC185: =COUNTIF(BA$4:BA185,BA185) -> 2 | BD185: =ROW() -> 185 | BE185: 1
AA186: 1 | AB186: A | AC186: 100 | AD186: Puede aplicar al maximo de presupuesto dependiendo los puntos comprometidos | BA186: COL0067504 | BB186: Los Estilos de enseñanza y Aprendizaje | BC186: =COUNTIF(BA$4:BA186,BA186) -> 3 | BD186: =ROW() -> 186 | BE186: 1
AA187: 8 | AB187: A1 | AC187: 100 | AD187: Puede aplicar al maximo de presupuesto dependiendo los puntos comprometidos | BA187: COL0067504 | BB187: Mercadeo Cuántico | BC187: =COUNTIF(BA$4:BA187,BA187) -> 4 | BD187: =ROW() -> 187 | BE187: 1
AA188: 9 | AB188: B | AC188: 100 | AD188: Puede aplicar al maximo de presupuesto dependiendo los puntos comprometidos | BA188: COL0067504 | BB188: Mineria Web | BC188: =COUNTIF(BA$4:BA188,BA188) -> 5 | BD188: =ROW() -> 188 | BE188: 1
AA189: 10 | AB189: C | AC189: 100 | AD189: Puede aplicar al maximo de presupuesto dependiendo los puntos comprometidos | BA189: COL0067504 | BB189: Salud Pública, Bioética e Ingeniería | BC189: =COUNTIF(BA$4:BA189,BA189) -> 6 | BD189: =ROW() -> 189 | BE189: 1
AA190: 11 | AB190: D | AC190: 50 | AD190: Puede aplicar hasta 50 millones de presupuesto dependiendo los puntos comprometidos | BA190: COL0049999 | BB190: Calidad y Gestión en la Educación | BC190: =COUNTIF(BA$4:BA190,BA190) -> 1 | BD190: =ROW() -> 190 | BE190: 1
AA191: 2 | AB191: R | AC191: 25 | AD191: Puede aplicar hasta 25 millones de presupuesto dependiendo los puntos comprometidos | BA191: COL0049999 | BB191: Gestión y Proyectos | BC191: =COUNTIF(BA$4:BA191,BA191) -> 2 | BD191: =ROW() -> 191 | BE191: 1
AA192: 2 | AB192: NR | AC192: 25 | AD192: Puede aplicar hasta 25 millones de presupuesto dependiendo los puntos comprometidos | BA192: COL0049999 | BB192: Innovación | BC192: =COUNTIF(BA$4:BA192,BA192) -> 3 | BD192: =ROW() -> 192 | BE192: 1
AA193: 12 | AB193: NA | AC193: 25 | AD193: Puede aplicar hasta 25 millones de presupuesto dependiendo los puntos comprometidos | BA193: COL0049999 | BB193: Productividad | BC193: =COUNTIF(BA$4:BA193,BA193) -> 4 | BD193: =ROW() -> 193 | BE193: 1
AA194: 1 | AB194: Nivel_Inst | AC194: 1 | AD194: Distrital | BA194: COL0049999 | BB194: Sostenibilidad y Medio Ambiente | BC194: =COUNTIF(BA$4:BA194,BA194) -> 5 | BD194: =ROW() -> 194 | BE194: 1
AA195: 2 | AB195: Nivel_Inst | AC195: 2 | AD195: Nacional | BA195: COL0049999 | BB195: Tecnología | BC195: =COUNTIF(BA$4:BA195,BA195) -> 6 | BD195: =ROW() -> 195 | BE195: 1
AA196: 3 | AB196: Nivel_Inst | AC196: 3 | AD196: Internacional | BA196: COL0126015 | BB196: INMUNODERMATOLOGIA | BC196: =COUNTIF(BA$4:BA196,BA196) -> 1 | BD196: =ROW() -> 196 | BE196: =COUNTIF($AQ$3:$AQ$95,BA196) -> 1
AA197: 1 | AB197: Clas Prod | AC197: GNC | AD197: Productos de Generación de Nuevo Conocimiento (GNC) | AE197: =AA197 -> 1 | BA197: COL0126015 | BB197: PSORIASIS | BC197: =COUNTIF(BA$4:BA197,BA197) -> 2 | BD197: =ROW() -> 197 | BE197: 1
AA198: 2 | AB198: Clas Prod | AC198: DTI | AD198: Productos resultado de actividades de desarrollo tecnológico e innovación (DTI) | AE198: =AA198 -> 2 | BA198: COL0138698 | BB198: BIOETICA | BC198: =COUNTIF(BA$4:BA198,BA198) -> 1 | BD198: =ROW() -> 198 | BE198: 1
AA199: 3 | AB199: Clas Prod | AC199: SAC | AD199: Socialización y Apropiación social del Conocimiento (SAC) | AE199: 3 | BA199: COL0138698 | BB199: CEREBROVASCULAR | BC199: =COUNTIF(BA$4:BA199,BA199) -> 2 | BD199: =ROW() -> 199 | BE199: 1
AA200: 4 | AB200: Clas Prod | AC200: FRH | AD200: Formación de Recurso Humano (FRH) | AE200: 4 | BA200: COL0138698 | BB200: DEMENCIAS | BC200: =COUNTIF(BA$4:BA200,BA200) -> 3 | BD200: =ROW() -> 200 | BE200: 1
... 135 more rows

Sheet General
H1: =IFERROR(VLOOKUP($C$7,Dt!AD81:AE82,2,0),"INV") -> INV | I1: =IFERROR(VLOOKUP($C$13,Dt!$AC$6:$AD$13,2,0),"NT") -> NT | X1: Número de Paginas del documento final , se puede ajustar.
B2: PRESENTACIÓN DE PROYECTOS DE INVESTIGACIÓN | H2: Fecha de Emisión: 2019/03/18 | I2: IN-IV-F-14 | S2: . | X2: 11 | AA2: NN | AB2: No. Grupo
H3: Revisión N°: 4 | I3: ="Página "&A1&" de "&Dt_TPG -> Página de 11 | S3: Documento de Prueba 06 Marzo 2018 | AA3: 44 | AB3: =VLOOKUP($AA3,Dt!$AN$3:$AR$179,3,0) -> ACCEDER
AA4: 10 | AB4: =VLOOKUP($AA4,Dt!$AN$3:$AR$179,3,0) -> Agrobiología de especies vegetales promisorias de clima frío
A5: 1.- | B5: Información general del proyecto. | I5: ="Vrs.- "&TEXT(DAY($U$5),"00")&"."&(TEXT(MONTH($U$5),"00"))&U7&"b" -> Vrs.- 03.05b | S5: Fecha Actualización | U5: =I63 -> 2022-05-03 | X5: Hoy es | AA5: 45 | AB5: =VLOOKUP($AA5,Dt!$AN$3:$AR$179,3,0) -> Agua y Energía - AyE
AA6: 34 | AB6: =VLOOKUP($AA6,Dt!$AN$3:$AR$179,3,0) -> BioethicsGroup
B7: Convocatoria: | C7: Investigación Científica | G7: Código o Radicado | X7: =NOW() -> 2022-05-04T14:54:41.550 | AA7: 67 | AB7: =VLOOKUP($AA7,Dt!$AN$3:$AR$179,3,0) -> BioGenEtica & BioDerecho
AA8: 53 | AB8: =VLOOKUP($AA8,Dt!$AN$3:$AR$179,3,0) -> BONE
B9: Formato: actualizado a 08 Abr 2022 | S9: =Cel_Fac -> NT | AA9: 52 | AB9: =VLOOKUP($AA9,Dt!$AN$3:$AR$179,3,0) -> CATCH
B10: Líder: | C10: Luis Alexander Chirivi | G10: Teléfonos : | X10: 2019-03-18 | AA10: 4 | AB10: =VLOOKUP($AA10,Dt!$AN$3:$AR$179,3,0) -> Control Biológico UMNG
B11: Correo: | G11: Sede: | AA11: 33 | AB11: =VLOOKUP($AA11,Dt!$AN$3:$AR$179,3,0) -> Cultura y Desarrollo Humano
B12: Este proyecto es continuación de un proyecto anterior | F12: No | G12: El proyecto tiene o ha tenido financiación | I12: No | AA12: 41 | AB12: =VLOOKUP($AA12,Dt!$AN$3:$AR$179,3,0) -> DAVINCI
B13: Facultad del Líder investigador | G13: Programa del Líder investigador | L13: Clasificación Grupo Máximo | AA13: 71 | AB13: =VLOOKUP($AA13,Dt!$AN$3:$AR$179,3,0) -> DIVERSITAS
B14: Palabras Clave | G14: Áreas Colciencias | X14: 42796 | AA14: 13 | AB14: =VLOOKUP($AA14,Dt!$AN$3:$AR$179,3,0) -> ECMU (Evaluacion en Competencias y Matemáticas Universitarias)
S15: 2 | AA15: 66 | AB15: =VLOOKUP($AA15,Dt!$AN$3:$AR$179,3,0) -> EDUMECIS
A16: 2.- | B16: =Q72 -> Información de Grupos de Investigación UMNG asociados al proyecto | AA16: 48 | AB16: =VLOOKUP($AA16,Dt!$AN$3:$AR$179,3,0) -> Energia alternativa, Centro Multidisciplinario de Investigación
AA17: 64 | AB17: =VLOOKUP($AA17,Dt!$AN$3:$AR$179,3,0) -> Epidemiología molecular de enfermedades endocrinas
B18: Grupo Principal | L18: =IFERROR(VLOOKUP($C18,Dt!$AP$3:$AQ$79,2,0),0) -> 0 | AA18: 70 | AB18: =VLOOKUP($AA18,Dt!$AN$3:$AR$179,3,0) -> Epidemiología y Salud Colectiva
B19: Enlace Minciencias: | C19: =IFERROR(VLOOKUP(L18,Dt!$AQ$3:$AS$79,3,0),"") ->  | I19: =IFERROR(VLOOKUP(L18,Dt!$AQ$3:$AS$79,2,0),"") ->  | L19: =COUNTIF($O$7:$O$9,I19) -> 3 | AA19: 7 | AB19: =VLOOKUP($AA19,Dt!$AN$3:$AR$179,3,0) -> Estadística, Control y Optimización
B20: Líneas | L20: =IFERROR("DT!"&VLOOKUP($C18,Dt!$AP$3:$AT$79,5,0),0) -> 0 | AA20: 42 | AB20: =VLOOKUP($AA20,Dt!$AN$3:$AR$179,3,0) -> Estructuras y sísmica
AA21: 29 | AB21: =VLOOKUP($AA21,Dt!$AN$3:$AR$179,3,0) -> Estudios Internacionales y Políticos
A22: =IFERROR(VLOOKUP(D22,Dt!$AP$3:$AU$79,5,0),"") ->  | B22: Grupo Aliado 1 | L22: =IFERROR(VLOOKUP($C22,Dt!$AP$3:$AQ$79,2,0),0) -> 0 | AA22: 6 | AB22: =VLOOKUP($AA22,Dt!$AN$3:$AR$179,3,0) -> Fitopatologia molecular
B23: =B19 -> Enlace Minciencias: | C23: =IFERROR(VLOOKUP(L22,Dt!$AQ$3:$AS$79,3,0),"") ->  | I23: =IFERROR(VLOOKUP(L22,Dt!$AQ$3:$AS$79,2,0),"") ->  | AA23: 1 | AB23: =VLOOKUP($AA23,Dt!$AN$3:$AR$179,3,0) -> Fitoplasmas y Virus
A24: =IFERROR(VLOOKUP($C24,Dt!$BB$3:$BD$286,3,0),"") ->  | B24: Líneas | L24: =IFERROR("DT!"&VLOOKUP($C22,Dt!$AP$3:$AT$79,5,0),0) -> 0 | AA24: 68 | AB24: =VLOOKUP($AA24,Dt!$AN$3:$AR$179,3,0) -> GAFRED
AA25: 47 | AB25: =VLOOKUP($AA25,Dt!$AN$3:$AR$179,3,0) -> GAV
B26: Grupo Aliado 2 | L26: =IFERROR(VLOOKUP($C26,Dt!$AP$3:$AQ$79,2,0),0) -> 0 | AA26: 28 | AB26: =VLOOKUP($AA26,Dt!$AN$3:$AR$179,3,0) -> GECS (Grupo de Estudios en Educación, Contabilidad y Sociedad)
B27: =B23 -> Enlace Minciencias: | C27: =IFERROR(VLOOKUP(L26,Dt!$AQ$3:$AS$79,3,0),"") ->  | I27: =IFERROR(VLOOKUP(L26,Dt!$AQ$3:$AS$79,2,0),"") ->  | AA27: 36 | AB27: =VLOOKUP($AA27,Dt!$AN$3:$AR$179,3,0) -> GEOTECNIA
B28: Líneas | L28: =IFERROR("DT!"&VLOOKUP($C26,Dt!$AP$3:$AT$79,5,0),0) -> 0 | AA28: 40 | AB28: =VLOOKUP($AA28,Dt!$AN$3:$AR$179,3,0) -> GIDAM
AA29: 49 | AB29: =VLOOKUP($AA29,Dt!$AN$3:$AR$179,3,0) -> GI-iTEC - Grupo de Investigación e innovación Tecnológica en Electrónica y Comunicaciones
A30: 3.- | B30: Instituciones Externas participantes. | H30: No. de Instituciones: --> | I30: 0 | AA30: 46 | AB30: =VLOOKUP($AA30,Dt!$AN$3:$AR$179,3,0) -> GISSIC: Grupo de Investigacion en Seguridad y Sistemas de Comunicaciones
C31: s | AA31: 51 | AB31: =VLOOKUP($AA31,Dt!$AN$3:$AR$179,3,0) -> GREST
B32: Nombre 1 | AA32: 16 | AB32: =VLOOKUP($AA32,Dt!$AN$3:$AR$179,3,0) -> Grupo de Derecho Privado
B33: Grupo 1 | H33: Clasificación | I33: NA | AA33: 15 | AB33: =VLOOKUP($AA33,Dt!$AN$3:$AR$179,3,0) -> Grupo de derecho público
B34: Investigadores | H34: Presupuesto en plan de compras: | AA34: 14 | AB34: =VLOOKUP($AA34,Dt!$AN$3:$AR$179,3,0) -> Grupo de Docencia e Investigación en Física
B35: Nivel o alcance institucional de la entidad externa es : | H35: =$M$57 -> . | AA35: 8 | AB35: =VLOOKUP($AA35,Dt!$AN$3:$AR$179,3,0) -> Grupo de Ecotoxicología, Evolución, Medio ambiente y conservación (E = mc2)
B36: =B19 -> Enlace Minciencias: | L36: =IFERROR(SEARCH(M36,C36,1),0) -> 0 | M36: http://scienti.colciencias.gov.co:8085 | AA36: 27 | AB36: =VLOOKUP($AA36,Dt!$AN$3:$AR$179,3,0) -> Grupo de Estudios Contemporáneos en Gestión y Organizaciones GECGO
AA37: 25 | AB37: =VLOOKUP($AA37,Dt!$AN$3:$AR$179,3,0) -> Grupo de Estudios en Ciencias Económicas - CIE
B38: Nombre 2 | AA38: 26 | AB38: =VLOOKUP($AA38,Dt!$AN$3:$AR$179,3,0) -> GRUPO DE ESTUDIOS SOBRE DESIGUALDADES SOCIALES
B39: Grupo 2 | H39: Clasificación | AA39: 69 | AB39: =VLOOKUP($AA39,Dt!$AN$3:$AR$179,3,0) -> Grupo de inmunología Clínica Aplicada (GICA)
B40: Investigadores | H40: Presupuesto en plan de compras: | AA40: 2 | AB40: =VLOOKUP($AA40,Dt!$AN$3:$AR$179,3,0) -> Grupo de investigación en Biodiversidad y ecología de abejas silvestres
B41: Nivel o alcance institucional de la entidad externa es : | H41: =IF(I40>0,$M$57,".") -> . | AA41: 59 | AB41: =VLOOKUP($AA41,Dt!$AN$3:$AR$179,3,0) -> Grupo de Investigación en Cirugía pediátrica y especialidades CIPEMIL
B42: =B36 -> Enlace Minciencias: | L42: =IFERROR(SEARCH(M42,C42,1),0) -> 0 | M42: http://scienti.colciencias.gov.co:8085 | AA42: 58 | AB42: =VLOOKUP($AA42,Dt!$AN$3:$AR$179,3,0) -> Grupo de Investigacion en Dermatologia HMC
AA43: 74 | AB43: =VLOOKUP($AA43,Dt!$AN$3:$AR$179,3,0) -> Grupo de Investigación en Enfermedades Infecciosas Hospital Militar Central
B44: Nombre3 | AA44: 9 | AB44: =VLOOKUP($AA44,Dt!$AN$3:$AR$179,3,0) -> Grupo de Investigación en Hidrobiología Aplicada (HIDROBIA)
B45: Grupo 3 | H45: Clasificación | AA45: 35 | AB45: =VLOOKUP($AA45,Dt!$AN$3:$AR$179,3,0) -> Grupo de Investigación en Multimedia -GIM-
B46: Investigadores | H46: Presupuesto en plan de compras: | AA46: 12 | AB46: =VLOOKUP($AA46,Dt!$AN$3:$AR$179,3,0) -> Grupo de investigación en química ambiental y tecnologías limpias - QUATELI
B47: Nivel o alcance institucional de la entidad externa es : | H47: =IF(I46>0,$M$57,".") -> . | AA47: 63 | AB47: =VLOOKUP($AA47,Dt!$AN$3:$AR$179,3,0) -> Grupo de Investigacion en Urologia HMC
B48: =B42 -> Enlace Minciencias: | L48: =IFERROR(SEARCH(M48,C48,1),0) -> 0 | M48: http://scienti.colciencias.gov.co:8085 | AA48: 73 | AB48: =VLOOKUP($AA48,Dt!$AN$3:$AR$179,3,0) -> Grupo de investigaciones sobre agentes radiológicos, biológicos y químicos
AA49: 5 | AB49: =VLOOKUP($AA49,Dt!$AN$3:$AR$179,3,0) -> Grupo de Micología y Fitopatologia
B50: Datos comprometidos. | AA50: 54 | AB50: =VLOOKUP($AA50,Dt!$AN$3:$AR$179,3,0) -> Grupo de Psoriasis e Inmunodermatologia
AA51: 62 | AB51: =VLOOKUP($AA51,Dt!$AN$3:$AR$179,3,0) -> Grupo de Rehabilitacion HOMIC-UMNG
B52: Productividad comprometida | D52: =IF(K52>0,"Error revice productos ",V_Max) -> 0 | F52: $ Vicein: | G52: =IF(D52>0,Presupuesto!F141,0) -> 0 | I52: ="Limite de "&Presupuesto!O2 &" millones." -> Limite de 15 millones. | K52: =IF(Productos!P54>0,1,0) -> 0 | AA52: 60 | AB52: =VLOOKUP($AA52,Dt!$AN$3:$AR$179,3,0) -> Grupo de Salud Oral y Cirugia Maxilofacial
AA53: 11 | AB53: =VLOOKUP($AA53,Dt!$AN$3:$AR$179,3,0) -> Grupo Integrado de Investigaciones en Química Bioorgánica (InQuiBio)
AA54: 57 | AB54: =VLOOKUP($AA54,Dt!$AN$3:$AR$179,3,0) -> GRUPO NEUROCIENCIAS HMC
B55: * Las áreas sombreadas de color azul no son editables | L55: =SUM(I34,I40,I46) -> 0 | M55: <-- Sumatoria Presupuesto de entidades externas en Pg. General | AA55: 32 | AB55: =VLOOKUP($AA55,Dt!$AN$3:$AR$179,3,0) -> HUMANITAS
L56: =Presupuesto!H141 -> 0 | M56: <-- Sumatoria Presupuesto de entidades externas en Pg. Presupuesto | AA56: 77 | AB56: =VLOOKUP($AA56,Dt!$AN$3:$AR$179,3,0) -> ICAAO: Inteligencia Computacional, Aprendizaje Automático y Optimización
B57: Observaciones o recomendaciones (no valida para calificación de Propuesta): | L57: =L55-L56 -> 0 | M57: =IF(L57=0,"."," Pendiente validar dif. $"&TEXT(L57,"###.###.###")) -> . | AA57: 24 | AB57: =VLOOKUP($AA57,Dt!$AN$3:$AR$179,3,0) -> INAMPE
AA58: 19 | AB58: =VLOOKUP($AA58,Dt!$AN$3:$AR$179,3,0) -> INCONDIS
AA59: 65 | AB59: =VLOOKUP($AA59,Dt!$AN$3:$AR$179,3,0) -> Ingeniería de Procesos y Tecnologías Sostenibles
AA60: 43 | AB60: =VLOOKUP($AA60,Dt!$AN$3:$AR$179,3,0) -> INGENIERÍA, GEOMÁTICA Y EDUCACIÓN (IGE)
B61: Calificación del formato | AA61: 61 | AB61: =VLOOKUP($AA61,Dt!$AN$3:$AR$179,3,0) -> Kokhlias.
AA62: 50 | AB62: =VLOOKUP($AA62,Dt!$AN$3:$AR$179,3,0) -> LA TRAMOYA
B63: Observaciones : Ajustes y actualizaciones realizadas al formato. | I63: =MAX(I65:I204) -> 2022-05-03 | L63: Pts. Prueba | M63: 10 | O63: =IF(N67>2,O67,"") & IF(N68>2,"; "&O68,"")& IF(N66>2,"; "&O66,"") ->  | AA63: 31 | AB63: =VLOOKUP($AA63,Dt!$AN$3:$AR$179,3,0) -> LIDERAZGO
AA64: 3 | AB64: =VLOOKUP($AA64,Dt!$AN$3:$AR$179,3,0) -> MATRIX
B65: No | C65: Actualización, ajustes y cambios. | I65: Fecha | M65: =I30 -> 0 | AA65: 21 | AB65: =VLOOKUP($AA65,Dt!$AN$3:$AR$179,3,0) -> Medios, Mediaciones y Procesos en Educación a Distancia
B66: =ROW()-63 -> 3 | C66: Publicacion Base | I66: 2022-02-16 | M66: 3 | N66: =LEN(O66) -> 0 | O66: =CLEAN(C44) ->  | AA66: 23 | AB66: =VLOOKUP($AA66,Dt!$AN$3:$AR$179,3,0) -> Modelos de simulación ICDIST
B67: =ROW()-63 -> 4 | C67: Ajustes revision de topes presupuestales., externos y limite de puntos. | I67: 2022-02-17 | M67: 2 | N67: =LEN(O67) -> 0 | O67: =CLEAN(C38) ->  | AA67: 72 | AB67: =VLOOKUP($AA67,Dt!$AN$3:$AR$179,3,0) -> Nanofab
B68: 5 | C68: Ajuste de clasificaciones de grupos con documento preliminar de la 894 2021 | I68: 2022-02-23 | M68: 1 | N68: =LEN(O68) -> 0 | O68: =CLEAN(C32) ->  | AA68: 55 | AB68: =VLOOKUP($AA68,Dt!$AN$3:$AR$179,3,0) -> ORTOPEDIA Y TRAUMATOLOGIA HMC UMNG
B69: 6 | C69: Ajuste de codigós de clasificación de los productos . | I69: 2022-02-28 | AA69: 20 | AB69: =VLOOKUP($AA69,Dt!$AN$3:$AR$179,3,0) -> "PYDES" Pedagogía y didáctica en la educación superior
B70: 7 | C70: Ajustes en productividad: Eliminados productos IDs: 115 a 118, 401 y 402 | I70: 2022-03-08 | AA70: 22 | AB70: =VLOOKUP($AA70,Dt!$AN$3:$AR$179,3,0) -> PIREO "Procesos de Integración, Regionalización y Estructuras Organizacionales"
B71: 8 | C71: Ajuste intervalo de meses para externos de 4 a 12 meses | I71: 2022-03-08 | AA71: 75 | AB71: =VLOOKUP($AA71,Dt!$AN$3:$AR$179,3,0) -> PROCESOS, OPERACIONES Y LOGISTICA (PROPYLOG)
B72: 9 | C72: Ajuste condición de salida de campo | I72: 2022-03-31 | N72: =$H$1 -> INV | Q72: =IF(Q73=1,Q74,IF(N72="IMP",Q75,Q74)) -> Información de Grupos de Investigación UMNG asociados al proyecto | AA72: 39 | AB72: =VLOOKUP($AA72,Dt!$AN$3:$AR$179,3,0) -> PRODUCCION, INNOVACION Y TECNOLOGIA
B73: 10 | C73: Ajuste de factor de 3.0 para auxiiar de pregrado | I73: 2022-03-31 | M73: A1 | N73: =COUNTIF($I$19:$I$27,M73) -> 0 | O73: =SUM(N73:N76) -> 0 | Q73: =IF(O73>0,1,0) -> 0 | AA73: 18 | AB73: =VLOOKUP($AA73,Dt!$AN$3:$AR$179,3,0) -> PROPPIO: Procesos organizacionales, programaticos y políticos para la promoción del desarrollo
B74: 11 | C74: Ajuste de nombres de los grupos de ECO | I74: 2022-04-08 | M74: A | N74: =COUNTIF($I$19:$I$27,M74) -> 0 | Q74: Información de Grupos de Investigación UMNG asociados al proyecto | AA74: 17 | AB74: =VLOOKUP($AA74,Dt!$AN$3:$AR$179,3,0) -> Red de estudios sociojurídicos comparados y políticas públicas
B75: 12 | C75: Ajuste de topes maximos en el presupuesto | I75: 2022-05-03 | M75: B | N75: =COUNTIF($I$19:$I$27,M75) -> 0 | Q75: Grupos de investigación, para IMP necesita un grupo clasificado en C por lo menos | AA75: 56 | AB75: =VLOOKUP($AA75,Dt!$AN$3:$AR$179,3,0) -> Salud y Comportamiento
B76: 13 | C76: 0 | M76: C | N76: =COUNTIF($I$19:$I$27,M76) -> 0 | AA76: 76 | AB76: =VLOOKUP($AA76,Dt!$AN$3:$AR$179,3,0) -> Sistemas de Infraestructura de Ingeniería Civil
B77: 14 | C77: 0 | M77: R | N77: 0 | AA77: 30 | AB77: =VLOOKUP($AA77,Dt!$AN$3:$AR$179,3,0) -> Sociedad, Estrategia y Seguridad
B78: 15 | C78: 0 | M78: NR | N78: 0 | Q78: =Dt!DE1 -> Error 031.- en : [General] Pendiente seleccionar Programa del lider del proyecto | AA78: 37 | AB78: =VLOOKUP($AA78,Dt!$AN$3:$AR$179,3,0) -> TIGUM: Grupo de Investigacion en Telemedicina Universidad Militar
B79: 16 | C79: 0 | M79: NA | N79: 0 | AA79: 38 | AB79: =VLOOKUP($AA79,Dt!$AN$3:$AR$179,3,0) -> VOLTA - Grupo de Materiales, Corrosión, Degradación y Protección (GMCDP)
B80: 17 | C80: 0
B81: 18 | C81: 0
B82: 19 | C82: 0
B83: 20 | C83: 0
B84: 21 | C84: 0
B85: =ROW()-49 -> 36
B86: =ROW()-49 -> 37

Sheet Resumen
A1: 2 | G1: *Pueden Ocultar las Filas que no se utilicen. | R1: https://www.ealde.es/niveles-riesgo-niveles-control/
C2: =General!B2 -> PRESENTACIÓN DE PROYECTOS DE INVESTIGACIÓN | D2: =General!$H$2 -> Fecha de Emisión: 2019/03/18 | E2: =General!$I$2 -> IN-IV-F-14 | G2: =SUM(G7:G19) -> 0 | H2: <=== N° palabras en total
D3: =General!$H$3 -> Revisión N°: 4 | E3: ="Página "&A1&" de "&Dt_TPG -> Página 2 de 11 | G3: Palabras | H3: Largo L
A5: 4.- | B5: # | C5: Resumen de la propuesta . | G5: =SUM(G6:G20) -> 0 | H5: =SUM(H6:H20) -> 0
B6: =VLOOKUP(NbHoja(),DT_Errores,3,0) -> Error : 015.- No tiene la productividad mínima requerida para la convcocatoria INV de 20 Puntos.
B7: =ROW()-6 -> 1 | G7: =IF(C7="",0,LEN(TRIM(C7))-LEN(SUBSTITUTE(TRIM(C7)," ",""))+1) -> 0 | H7: =LEN(C7) -> 0
B8: =ROW()-6 -> 2 | G8: =IF(C8="",0,LEN(TRIM(C8))-LEN(SUBSTITUTE(TRIM(C8)," ",""))+1) -> 0 | H8: =LEN(C8) -> 0
B9: 3 | G9: =IF(C9="",0,LEN(TRIM(C9))-LEN(SUBSTITUTE(TRIM(C9)," ",""))+1) -> 0 | H9: =LEN(C9) -> 0
B10: 4 | G10: 0 | H10: 0
B11: 5 | G11: 0 | H11: 0
B12: 6 | G12: 0 | H12: 0
B13: 7 | G13: 0 | H13: 0
B14: 8 | G14: 0 | H14: 0
B15: 9 | G15: 0 | H15: 0 | K15: =Fx_Nhjs() -> 2
B16: 10 | G16: 0 | H16: 0
B17: 11 | G17: 0 | H17: 0
B18: 12 | G18: 0 | H18: 0
B19: 13 | G19: =IF(C19="",0,LEN(TRIM(C19))-LEN(SUBSTITUTE(TRIM(C19)," ",""))+1) -> 0 | H19: =LEN(C19) -> 0
A23: 5.- | B23: # | C23: Planteamiento y justificación de la propuesta. | G23: =SUM(G24:G34) -> 0 | H23: <=== Palabras en total
G24: =IF(C24="",0,LEN(TRIM(C24))-LEN(SUBSTITUTE(TRIM(C24)," ",""))+1) -> 0
B25: =ROW()-19 -> 6 | G25: 0
B26: =ROW()-19 -> 7 | G26: 0
B27: 8 | G27: 0
B28: 9 | G28: 0
B29: 10 | G29: 0
B30: 11 | G30: 0
B31: 12 | G31: 0
B32: 13 | G32: 0
B33: 14 | G33: 0
B34: 15 | G34: 0
G35: 0 | K35: Si hay duas en riesgos (Ir al documento)
A36: 5.b- | B36: # | C36: Tipos y probabilidad de ocurrencia de riesgos. | G36: =SUM(G37:G316) -> 13 | H36: <=== Palabras en total | K36: http://www.umng.edu.co/gestion-de-riesgos-institucional
G37: 0
C38: Identificación general del riesgo . Max 100 palabras | G38: =IF(C40="",0,LEN(TRIM(C40))-LEN(SUBSTITUTE(TRIM(C40)," ",""))+1) -> 0 | K38: Identificacion | L38: Impacto | M38: Probabilidad
J39: 1 | L39: Catastrofico | M39: Casi seguro
J40: 2 | L40: Mayor | M40: Probable
C41: Probabilidad | D41: Probable | J41: 3 | L41: Moderado | M41: Posible
C42: Impacto | D42: Insignificante | J42: 4 | L42: Menor | M42: Improbable
C43: Acciones de control, detección, mitigación o corrección. | J43: 5 | L43: Insignificante | M43: Rara vez
J44: 6
J45: 7
J46: 8
G52: =IF(C52="",0,LEN(TRIM(C52))-LEN(SUBSTITUTE(TRIM(C52)," ",""))+1) -> 0
G53: =IF(C53="",0,LEN(TRIM(C53))-LEN(SUBSTITUTE(TRIM(C53)," ",""))+1) -> 0
G54: =IF(C54="",0,LEN(TRIM(C54))-LEN(SUBSTITUTE(TRIM(C54)," ",""))+1) -> 0
C55: *Pueden Ocultar las Filas que no se utilicen ( Favor no eliminar filas). | G55: =IF(C55="",0,LEN(TRIM(C55))-LEN(SUBSTITUTE(TRIM(C55)," ",""))+1) -> 13

Sheet Estado_del_arte
A1: 3 | G1: *Pueden Ocultar las Filas que no se utilicen.
C2: =General!B2 -> PRESENTACIÓN DE PROYECTOS DE INVESTIGACIÓN | D2: =General!$H$2 -> Fecha de Emisión: 2019/03/18 | E2: =General!$I$2 -> IN-IV-F-14
D3: =General!$H$3 -> Revisión N°: 4 | E3: ="Página "&A1&" de "&Dt_TPG -> Página 3 de 11 | G3: =SUM(G7:G3551) -> 46 | H3: <== Total de palabras
A5: 6.- | B5: # | C5: Estado del arte de la propuesta o antecedentes. | G5: Largo
B7: =ROW()-6 -> 1 | C7: Este es un título Inicial. | G7: =IF(C7="",0,LEN(TRIM(C7))-LEN(SUBSTITUTE(TRIM(C7)," ",""))+1) -> 5
B8: =ROW()-6 -> 2 | G8: =IF(C8="",0,LEN(TRIM(C8))-LEN(SUBSTITUTE(TRIM(C8)," ",""))+1) -> 0
B9: 3 | G9: 0
B10: 4 | G10: 0
B11: 5 | G11: 0
B12: 6 | G12: 0
B13: 7 | G13: 0
B14: 8 | G14: 0
B15: 9 | G15: 0
B16: 10 | G16: 0
B17: 11 | G17: 0
B18: 12 | G18: 0
B19: 13 | G19: 0
B20: 14 | G20: 0
B21: 15 | G21: 0
B22: 16 | G22: 0
B23: 17 | G23: 0
B24: 18 | G24: 0
B25: 19 | G25: 0
B26: 20 | G26: =IF(C26="",0,LEN(TRIM(C26))-LEN(SUBSTITUTE(TRIM(C26)," ",""))+1) -> 0
B27: 21 | G27: 0
B28: 22 | G28: 0
B29: 23 | G29: 0
B30: 24 | G30: 0
B31: 25 | G31: 0
B32: 26 | G32: 0
B33: 27 | G33: 0
B34: 28 | G34: 0
B35: 29 | G35: 0
B36: 30 | G36: 0
B37: 31 | G37: 0
B38: 32 | G38: 0
B39: 33 | G39: 0
B40: 34 | G40: 0
B41: 35 | G41: 0
B42: 36 | G42: 0
B43: 37 | G43: 0
B44: 38 | G44: 0
B45: 39 | G45: =IF(C45="",0,LEN(TRIM(C45))-LEN(SUBSTITUTE(TRIM(C45)," ",""))+1) -> 0
B46: 40 | G46: =IF(C46="",0,LEN(TRIM(C46))-LEN(SUBSTITUTE(TRIM(C46)," ",""))+1) -> 0
B47: 41 | G47: =IF(C47="",0,LEN(TRIM(C47))-LEN(SUBSTITUTE(TRIM(C47)," ",""))+1) -> 0
A49: 6.b- | B49: # | C49: Marco Teórico o conceptual | G49: Largo
B51: =ROW()-6 -> 45 | C51: Este es un título Inicial. | G51: =IF(C51="",0,LEN(TRIM(C51))-LEN(SUBSTITUTE(TRIM(C51)," ",""))+1) -> 5
B52: 46 | G52: =IF(C52="",0,LEN(TRIM(C52))-LEN(SUBSTITUTE(TRIM(C52)," ",""))+1) -> 0
B53: 47 | G53: =IF(C53="",0,LEN(TRIM(C53))-LEN(SUBSTITUTE(TRIM(C53)," ",""))+1) -> 0
B54: 48 | G54: =IF(C54="",0,LEN(TRIM(C54))-LEN(SUBSTITUTE(TRIM(C54)," ",""))+1) -> 0
B55: 49 | G55: =IF(C55="",0,LEN(TRIM(C55))-LEN(SUBSTITUTE(TRIM(C55)," ",""))+1) -> 0
B56: 50 | G56: 0
B57: 51 | G57: 0
B58: 52 | G58: 0
B59: 53 | G59: 0
B60: 54 | G60: 0
B61: 55 | G61: 0
B62: 56 | G62: 0
B63: 57 | G63: 0
B64: 58 | G64: 0
B65: 59 | G65: 0
A67: 6.c- | B67: # | C67: Descripción de prototipo (Aplica para proyectos de Investigación aplicada y desarrollo tecnológico) | G67: Largo
B69: =ROW()-ROW($B$68) -> 1 | C69: Nombre tecnológico y descripción del desarrollo Tecnológico | G69: =IF(C69="",0,LEN(TRIM(C69))-LEN(SUBSTITUTE(TRIM(C69)," ",""))+1) -> 7
B70: =ROW()-ROW($B$68) -> 2 | G70: 0
B71: 3 | G71: 0
B72: 4 | G72: 0
B73: 5 | G73: 0
B74: =ROW()-ROW($B$68) -> 6 | C74: Describa el actual nivel de madurez tecnológica. | G74: 7
B75: =ROW()-ROW($B$68) -> 7 | G75: 0
B76: 8 | G76: 0
B77: 9 | G77: 0
B78: 10 | G78: 0
B79: 11 | C79: Describa el nivel de madurez tecnológica a escalar. | G79: =IF(C79="",0,LEN(TRIM(C79))-LEN(SUBSTITUTE(TRIM(C79)," ",""))+1) -> 8
B80: 12 | G80: 0
B81: 13 | G81: 0
B82: 14 | G82: 0
B83: 15 | G83: =IF(C84="",0,LEN(TRIM(C84))-LEN(SUBSTITUTE(TRIM(C84)," ",""))+1) -> 14
B84: 16 | C84: Indique si su desarrollo tecnológico es susceptible o cuenta con protección mediante propiedad intelectual. | G84: =IF(C83="",0,LEN(TRIM(C83))-LEN(SUBSTITUTE(TRIM(C83)," ",""))+1) -> 0
B85: 17 | G85: =IF(C85="",0,LEN(TRIM(C85))-LEN(SUBSTITUTE(TRIM(C85)," ",""))+1) -> 0
B86: 18 | G86: =IF(C86="",0,LEN(TRIM(C86))-LEN(SUBSTITUTE(TRIM(C86)," ",""))+1) -> 0
B87: 19 | G87: =IF(C87="",0,LEN(TRIM(C87))-LEN(SUBSTITUTE(TRIM(C87)," ",""))+1) -> 0
B88: 20 | G88: =IF(C88="",0,LEN(TRIM(C88))-LEN(SUBSTITUTE(TRIM(C88)," ",""))+1) -> 0
B91: *Pueden Ocultar las Filas que no se utilicen ( Favor no eliminar filas).

Sheet Objetivos
A1: 4
B2: =General!B2 -> PRESENTACIÓN DE PROYECTOS DE INVESTIGACIÓN | D2: =General!$H$2 -> Fecha de Emisión: 2019/03/18 | E2: =General!$I$2 -> IN-IV-F-14
D3: =General!$H$3 -> Revisión N°: 4 | E3: ="Página "&A1&" de "&Dt_TPG -> Página 4 de 11 | G3: =COUNTIF(G8:G23,">" &1) -> 0 | H3: <== Total de palabras
A5: 7.- | B5: Objetivos de la propuesta. | G5: Largo
B7: *El especio del Item (0) Cero es para definir el objetivo general los demás corresponden a objetivos especificos
B8: =ROW()-8 -> 0 | G8: =LEN(C8) -> 0
B9: =ROW()-8 -> 1 | G9: =LEN(C9) -> 0
B10: 2 | G10: 0
B11: 3 | G11: 0
B12: 4 | G12: 0
B13: 5 | G13: 0
B14: 6 | G14: 0
B15: 7 | G15: 0
B16: 8 | G16: 0
B17: 9 | G17: =IF(C17="",0,LEN(TRIM(C17))-LEN(SUBSTITUTE(TRIM(C17)," ",""))+1) -> 0
B18: 10 | G18: 0
B19: 11 | G19: 0
B20: 12 | G20: 0
B21: 13 | G21: 0
B22: 14 | G22: 0
B23: 15 | G23: 0
J25: =VLOOKUP("Objetivos",DT_Errores,3,0) -> Error : 022.- Objetivo gereral pendiente de diligenciar
B31: *Pueden Ocultar las Filas que no se utilicen ( Favor no eliminar filas).

Sheet Metodología
A1: 5 | G1: *Pueden Ocultar las Filas que no se utilicen.
C2: =General!B2 -> PRESENTACIÓN DE PROYECTOS DE INVESTIGACIÓN | D2: =General!$H$2 -> Fecha de Emisión: 2019/03/18 | E2: =General!$I$2 -> IN-IV-F-14
D3: =General!$H$3 -> Revisión N°: 4 | E3: ="Página "&A1&" de "&Dt_TPG -> Página 5 de 11 | G3: =SUM(G7:G3501) -> 0 | H3: <== Total de palabras
A5: 8.- | B5: # | C5: Metodología de la propuesta. | G5: Largo
B7: =ROW()-6 -> 1 | G7: =IF(C7="",0,LEN(TRIM(C7))-LEN(SUBSTITUTE(TRIM(C7)," ",""))+1) -> 0
B8: =ROW()-6 -> 2 | G8: =IF(C8="",0,LEN(TRIM(C8))-LEN(SUBSTITUTE(TRIM(C8)," ",""))+1) -> 0
B9: 3 | G9: 0
B10: 4 | G10: 0
B11: 5 | G11: 0
B12: 6 | G12: 0
B13: 7 | G13: 0
B14: 8 | G14: 0
B15: 9 | G15: 0
B16: 10 | G16: 0
B17: 11 | G17: 0
B18: 12 | G18: 0
B19: 13 | G19: 0
B20: 14 | G20: 0
B21: 15 | G21: 0
B22: 16 | G22: =IF(C22="",0,LEN(TRIM(C22))-LEN(SUBSTITUTE(TRIM(C22)," ",""))+1) -> 0
B23: 17 | G23: 0
B24: 18 | G24: 0
B25: 19 | G25: 0
B26: 20 | G26: 0
B27: 21 | G27: 0
B28: 22 | G28: 0
B29: 23 | G29: 0
B30: 24 | G30: 0
B31: 25 | G31: 0
B32: 26 | G32: 0
B33: 27 | G33: 0
B34: 28 | G34: 0
B35: 29 | G35: 0
B41: *Pueden Ocultar las Filas que no se utilicen. No eliminar filas.

Sheet Etica
A1: 5 | G1: *Pueden Ocultar las Filas que no se utilicen.
C2: =General!B2 -> PRESENTACIÓN DE PROYECTOS DE INVESTIGACIÓN | D2: =General!$H$2 -> Fecha de Emisión: 2019/03/18 | E2: =General!$I$2 -> IN-IV-F-14 | J2: Detalles:
D3: =General!$H$3 -> Revisión N°: 4 | E3: ="Página "&A1&" de "&Dt_TPG -> Página 5 de 11 | G3: =SUM(G5:G3524) -> 445 | H3: <== Total de palabras
C5: =$Q$13 -> .
A6: 8b.- | B6: 0 | C6: Consideraciones e implicaciones éticas de la investigación, bioética e integridad científica | E6: ( Si / No ) | G6: Palabras | M6: Validaciones
B7: 1 | C7: Proyecto de investigación en CTeI que involucra seres humanos | E7: No | G7: =IF(C7="",0,LEN(TRIM(C7))-LEN(SUBSTITUTE(TRIM(C7)," ",""))+1) -> 9 | H7: =I7-J7 -> 0 | I7: =IF(OR(E7="No",E7=0),0,1) -> 0 | J7: =MAX(I8:I23) -> 0 | L7: 1 | M7: =VLOOKUP($L7,$B$6:$J$68,7,0) -> 0 | N7: CTeI que involucra seres humanos | P7: =LEN(N7) -> 33 | Q7: =IF(M7=0,"",N7&"; ") -> 
B8: 1.1 | C8: ¿Utiliza información exclusiva o reservada por parte de terceros y prevé su forma de acceso? | E8: No | G8: =IF(C8="",0,LEN(TRIM(C8))-LEN(SUBSTITUTE(TRIM(C8)," ",""))+1) -> 15 | I8: =IF(OR(E8="No",E8=0),0,1) -> 0 | L8: 2 | M8: 0 | N8: CTeI involucra animales | P8: 23
C9: =$J$2 -> Detalles: | G9: 1 | I9: =IF(OR(E9="No",E9=0),0,1) -> 0 | L9: 3 | M9: 0 | N9: CTeI involucra fuentes documentales | P9: 35
B10: 1.2 | C10: ¿Utiliza información exclusiva o reservada por parte de terceros y prevé su forma de acceso? | E10: No | G10: 15 | I10: 0 | L10: 4 | M10: 0 | N10: CTeI involucra el ambiente | P10: 26
C11: =$J$2 -> Detalles: | G11: 1 | I11: 0 | L11: 5 | M11: 0 | N11: Aspectos de Integridad científica | P11: 33
B12: 1.3 | C12: ¿Utiliza datos personales? | E12: No | G12: 3 | I12: 0 | L12: 6 | M12: 0 | N12: otras razones que ameritan la revisión | P12: 39
C13: =$J$2 -> Detalles: | G13: 1 | I13: 0 | M13: =LEN(N13) -> 0 | N13: =Q7&Q8&Q9&Q10&Q11&Q12 ->  | Q13: =IF(M13>0,"Error, revisar el ítem: "&N13,".") -> .
B14: 1.4 | C14: ¿utiliza información confidencial? | E14: No | G14: 3 | I14: 0
C15: =$J$2 -> Detalles: | G15: 1 | I15: 0
B16: 1.5 | C16: ¿Requiere consentimiento informado? | E16: No | G16: 3 | I16: 0
C17: =$J$2 -> Detalles: | G17: 1 | I17: 0
B18: 1.6 | C18: ¿indica un modelo de recopilación y conservación de información? | E18: No | G18: 9 | I18: 0
C19: =$J$2 -> Detalles: | G19: 1 | I19: 0
B20: 1.7 | C20: ¿Es una investigación con comunidades vulnerables (indígenas, afrodescendientes, menores o personal subordinado, entre otros)? | E20: No | G20: 14 | I20: 0
C21: =$J$2 -> Detalles: | G21: 1 | I21: 0
B22: 1.8 | C22: ¿Se evidencia conocimiento previo sobre aspectos políticos, económicos sociales y culturales de las comunidades indígenas? | E22: No | G22: 15 | I22: 0
C23: =$J$2 -> Detalles: | G23: 1 | I23: 0
B24: 1.9 | C24: ¿Realiza intervención a través cuestionarios, medicamentos, rutinas, modificación de actividades o estilo de vida? | G24: 14 | I24: 0
C25: =$J$2 -> Detalles: | G25: 1 | I25: 0
B26: 1.10 | C26: ¿incluye modelos de consentimiento informado, uso de datos personales u otro? | E26: No | G26: 11 | I26: 0
C27: =$J$2 -> Detalles: | G27: 1 | I27: 0
B28: 2 | C28: Proyecto de investigación en CTeI involucra animales | E28: No | G28: 7 | H28: =I28-J28 -> 0 | I28: 0 | J28: =MAX(I29:I40) -> 0
B29: 2.1 | C29: ¿Incluye un protocolo de investigación en animales? | E29: No | G29: 7 | I29: 0
C30: =$J$2 -> Detalles: | G30: 1 | I30: 0
B31: 2.2 | C31: ¿Incluye un protocolo de manipulación de recursos biológicos? | E31: No | G31: 8 | I31: 0
C32: =$J$2 -> Detalles: | G32: 1 | I32: 0
B33: 2.3 | C33: ¿Incluye un protocolo de manejo y disposición de sustancias peligrosas, agentes infecciosos y desechos? | E33: No | G33: 14 | I33: 0
C34: =$J$2 -> Detalles: | G34: 1 | I34: 0
B35: 2.4 | C35: ¿hay caracterización de los animales de experimentación criterios de selección de la especie? | E35: No | G35: 13 | I35: 0
C36: =$J$2 -> Detalles: | G36: 1 | I36: 0
B37: 2.5 | C37: ¿se prevé formación previa al equipo de laboratorio por parte del investigador sobre el cuidado permanente del animal y experimentación? | E37: No | G37: 20 | I37: 0
C38: =$J$2 -> Detalles: | G38: 1 | I38: 0
B39: 2.6 | C39: ¿se prevé declaración previa del origen y estado de los animales para experimentación? | E39: No | G39: 13 | I39: 0
C40: =$J$2 -> Detalles: | G40: 1 | I40: 0
B41: 3 | C41: El proyecto de investigación en CTeI involucra fuentes documentales | E41: No | G41: 9 | H41: =I41-J41 -> 0 | I41: 0 | J41: =MAX(I42:I47) -> 0
B42: 3.1 | C42: ¿hace referencia a la anonimización de datos? | E42: No | G42: 7 | I42: 0
C43: =$J$2 -> Detalles: | G43: 1 | I43: 0
B44: 3.2 | C44: ¿prevé conservación de datos de consulta? | E44: No | G44: 6 | I44: 0
C45: =$J$2 -> Detalles: | G45: 1 | I45: 0
B46: 3.3 | C46: ¿se identifica objetivamente que las bases de consulta de acceso abierto pueden ser calificadas de tal manera? | E46: No | G46: 17 | I46: 0
C47: =$J$2 -> Detalles: | G47: 1 | I47: 0
B48: 4 | C48: Proyecto de investigación en CTeI involucra el ambiente | E48: No | G48: 8 | H48: =I48-J48 -> 0 | I48: 0 | J48: =MAX(I49:I52) -> 0
B49: 4.1 | C49: ¿requiere permisos o licencias ambientales como recolección de especímenes, colecciones biológicas, manipulación o movilización de recursos bilógicas? | E49: No | G49: 17 | I49: 0
C50: =$J$2 -> Detalles: | G50: 1 | I50: 0
B51: 4.2 | C51: ¿requiere uso de recursos genéticos? | E51: No | G51: 5 | I51: 0
C52: =$J$2 -> Detalles: | G52: 1 | I52: 0
B53: 5 | C53: Aspectos de Integridad científica | E53: No | G53: 4 | H53: =I53-J53 -> 0 | I53: 0 | J53: =MAX(I54:I64) -> 0
B54: 5.1 | C54: ¿Podría darse un conflicto de interés no declarado entre quienes participan en el proyecto y/o las instituciones coejecutoras y/o las instancias de aprobación y seguimiento? | E54: No | G54: 25 | I54: 0
C55: =$J$2 -> Detalles: | G55: 1 | I55: 0
B56: 5.2 | C56: ¿Hay indicios de que se han fabricado o plagiado datos en la investigación? | E56: No | G56: 13 | I56: 0
C57: =$J$2 -> Detalles: | G57: 1 | I57: 0
B58: 5.3 | C58: ¿se presume que se incluye personal vinculado al proyecto que objetivamente podría no aportar técnica ni intelectualmente al proyecto? | E58: No | G58: 19 | I58: 0
C59: =$J$2 -> Detalles: | G59: 1 | I59: 0
B60: 5.4 | C60: ¿se estima que los recursos y tiempos de dedicación solicitados exceden lo necesario para financiación del proyecto o se prevé que los productos son escasos ante las capacidades y alcance de la propuesta? | E60: No | G60: 33 | I60: 0
C61: =$J$2 -> Detalles: | G61: 1 | I61: 0
B62: 5.5 | C62: ¿Podría darse un conflicto de interés no declarado entre quienes participan en el proyecto y/o las instituciones coejecutoras y/o las instancias de aprobación y seguimiento? | E62: No | G62: 25 | I62: 0
C63: =$J$2 -> Detalles: | G63: 1 | I63: 0
E64: No | G64: 0 | I64: 0
B65: 6 | C65: Existen otras razones que ameritan la revisión por parte del comité de ética de la investigación (indique cuales). | E65: No | G65: 18 | H65: =I65-J65 -> 0 | I65: 0 | J65: =SUM(I66:I68) -> 0
B66: 6.1 | C66: =$J$2 -> Detalles: | G66: 1 | I66: 0
C67: Especificaciones de ética de la investigación, bioética e integridad científica que deban ser ampliadas en detalle (indique cuales). | E67: No | G67: 18 | I67: 0
B68: 6.1 | C68: =$J$2 -> Detalles: | G68: =IF(C68="",0,LEN(TRIM(C68))-LEN(SUBSTITUTE(TRIM(C68)," ",""))+1) -> 1 | I68: 0
I69: 0
G70: =IF(C70="",0,LEN(TRIM(C70))-LEN(SUBSTITUTE(TRIM(C70)," ",""))+1) -> 0 | I70: 0
G71: =IF(C71="",0,LEN(TRIM(C71))-LEN(SUBSTITUTE(TRIM(C71)," ",""))+1) -> 0

Sheet Cronograma
A1: 6 | I1: *Pueden Ocultar las Filas que no se utilicen. | L1: =("* Actualmente tiene "&G7&" meses de ejecución no superar los "& G5&" meses.") -> * Actualmente tiene 0 meses de ejecución no superar los 12 meses.
B2: =General!B2 -> PRESENTACIÓN DE PROYECTOS DE INVESTIGACIÓN | D2: =General!$H$2 -> Fecha de Emisión: 2019/03/18 | E2: =General!$I$2 -> IN-IV-F-14
D3: =General!$H$3 -> Revisión N°: 4 | E3: ="Página "&A1&" de "&Dt_TPG -> Página 6 de 11
N4: 0
A5: 9.- | B5: Cronograma de actividades a desarrollar | E5: =Integrantes!J6 -> 12 | G5: =E5 -> 12 | H5: Meses Maximo | I5: Palabras | N5: 0
N6: 0
B7: No | C7: Descripción básica de la actividad | D7: Mes de Inicio | E7: Duración en mes | G7: =MAX(G8:G27) -> 0 | H7: Meses de ejecición actuales | I7: =SUM(I8:I27) -> 4 | J7: <== Total de palabras | N7: 0
B8: =ROW()-7 -> 1 | C8: zdsak | G8: =SUM(D8:E8) -> 0 | I8: =IF(C8="",0,LEN(TRIM(C8))-LEN(SUBSTITUTE(TRIM(C8)," ",""))+1) -> 1 | N8: 0
B9: =ROW()-7 -> 2 | C9: sadsa | G9: =SUM(D9:E9) -> 0 | I9: =IF(C9="",0,LEN(TRIM(C9))-LEN(SUBSTITUTE(TRIM(C9)," ",""))+1) -> 1 | N9: 0
B10: 3 | C10: sadsad dsada | G10: 0 | I10: 2 | N10: 0
B11: 4 | G11: 0 | I11: 0 | N11: 0
B12: 5 | G12: 0 | I12: 0 | N12: 0
B13: 6 | G13: 0 | I13: 0 | N13: 0
B14: 7 | G14: 0 | I14: 0 | N14: 0
B15: 8 | G15: 0 | I15: 0 | N15: 0
B16: 9 | G16: 0 | I16: 0 | N16: 0
B17: 10 | G17: 0 | I17: 0 | N17: 0
B18: 11 | G18: 0 | I18: 0 | N18: 0
B19: 12 | G19: 0 | I19: 0 | N19: 0
B20: 13 | G20: 0 | I20: 0 | N20: 0
B21: 14 | G21: 0 | I21: 0 | N21: 0
B22: 15 | G22: 0 | I22: 0 | N22: 0
B23: 16 | G23: 0 | I23: 0 | N23: 0
B24: 17 | G24: 0 | I24: 0 | N24: 0
B25: 18 | G25: 0 | I25: 0 | N25: 0
B26: 19 | G26: 0 | I26: 0 | N26: 0
B27: 20 | G27: 0 | I27: 0 | N27: 0
N28: 0
C29: =IF(G7>G5,L1,".") -> . | N29: 0
N30: 0
N31: 0
N32: 0
B33: *Pueden Ocultar las Filas que no se utilicen. No eliminen filas | N33: 0
N34: 0
N35: 0
N36: 0
N37: 0
N38: 0
N39: 0
N40: 0
N41: 0
N42: 0
N43: 0
N44: 0
N45: 0
N46: 0
N47: 0
N48: 0
N49: 0
N50: 0
N51: 0

Sheet Integrantes
A1: 8
B3: =Productos!B2 -> PRESENTACIÓN DE PROYECTOS DE INVESTIGACIÓN | F3: =General!$H$2 -> Fecha de Emisión: 2019/03/18 | G3: IN-IV-F-14 | M3: Ok | N3: Puntos | O3: IP Max | P3: IP Min | Q3: CO Max | R3: CO Min | S3: CR | W3: =VLOOKUP("Integrantes",DT_Errores,3,0) -> 
F4: =General!$H$3 -> Revisión N°: 4 | G4: ="Página "&A1&" de "&Dt_TPG -> Página 8 de 11 | H4: ="Página "&A2&" de "&Dt_TPG -> Página de 11 | J4: 20 | M4: 1 | N4: 0 | O4: =VLOOKUP($M$4,$M$8:$T$23,3,0) -> 8 | P4: =VLOOKUP($M$4,$M$8:$T$23,4,0) -> 3 | Q4: =VLOOKUP($M$4,$M$8:$T$23,5,0) -> 4 | R4: =VLOOKUP($M$4,$M$8:$T$23,6,0) -> 2 | S4: =VLOOKUP($M$4,$M$8:$T$23,2,0) -> 20
N5: 0
A6: 11.- | B6: Investigadores Integrantes del proyecto. | F6: =Cel_TP -> INV | G6: =Cel_Fac -> NT | H6: =V_Max -> 0 | J6: =IF(F6="INV",12,24) -> 12 | N6: 0 | W6: * Cuadro para tener relación entre Fincion y Tipo de Vinculo
N7: 0
B8: No | C8: Identificacion | D8: Nombres | E8: Apellidos | F8: Nivel Academico | G8: Mes | H8: Horas | J8: Max | K8: Min | M8: Ok | N8: 0 | O8: IP Max | P8: IP Min | Q8: CO Max | R8: CO Min | S8: =H6 -> 0 | W8: Funcion | X8: y | Y8: Vinculo | Z8: Mes | AA8: Fila | AB8: Hay | AC8: Hrs
B9: 1 | D9: Luis Alexander | E9: Chirivi | G9: =J6 -> 12 | J9: =O4 -> 8 | K9: =P4 -> 3 | L9: =IF(OR(H9>J9,H9<K9),1,0) -> 1 | M9: =IF(SUM(M10:M23)=0,1,IF(N9=S9,1,0)) -> 1 | N9: 20 | O9: 8 | P9: 3 | Q9: 4 | R9: 2 | S9: =INT(S8/20)*20 -> 0 | W9: Investigador Principal | X9: =$X$8&"9:"&$X$8&"10" -> y9:y10 | Y9: Doc. Carrera TC | Z9: =G9 -> 12 | AA9: =ROW() -> 9 | AB9: =COUNTIFS($D$9:$D$47,$W9,$E$9:$E$47,$Y9) -> 0 | AC9: =SUMIFS($S$30:$S$42,$T$30:$T$42,$W9,$U$30:$U$42,$Y9) -> 0
C10: Funcion : | D10: Investigador Principal | J10: =IFERROR(VLOOKUP($F10,V_IdNBC,2,0),0) -> 0 | L10: Doc. Carrera MT | M10: =IF(N10=S10,1,0) -> 0 | N10: =N9+20 -> 40 | O10: 12 | P10: 6 | Q10: 6 | R10: 3 | S10: =INT(S9/20)*20 -> 0 | W10: Investigador Principal | X10: =$X$8&"9:"&$X$8&"10" -> y9:y10 | Y10: Doc. Carrera MT | Z10: =Z9 -> 12 | AA10: =ROW() -> 10 | AB10: 0 | AC10: =SUMIFS($S$30:$S$42,$T$30:$T$42,$W10,$U$30:$U$42,$Y10) -> 0
C11: CvLac: | J11: =IF($D10=$W$20,20,IFERROR(VLOOKUP($E10,$Y$8:$Z$21,2,0),$G$9)) -> 12 | K11: =IF($D10=$W$11,IF($E10=$Y$13,10,12),0) -> 0 | M11: 0 | N11: =N10+20 -> 60 | O11: 16 | P11: 10 | Q11: 8 | R11: 5 | S11: 0 | W11: Coinvestigador | X11: =$X$8&"11:"&$X$8&"14" -> y11:y14 | Y11: Doc. Carrera TC | Z11: =Z10 -> 12 | AA11: =ROW() -> 11 | AB11: 0 | AC11: 0
C12: Contribuciones | M12: 0 | N12: 80 | O12: 20 | P12: 14 | Q12: 10 | R12: 7 | S12: 0 | W12: Coinvestigador | X12: =$X$8&"11:"&$X$8&"14" -> y11:y14 | Y12: Doc. Carrera MT | Z12: =Z11 -> 12 | AA12: =ROW() -> 12 | AB12: 0 | AC12: 0
B13: 2 | G13: 12 | J13: =IF($E14=$Y$16,IF($D14=$W$16,0,40),IF($D14="Coinvestigador",J$9/2,40)) -> 40 | K13: =IF(E14=$Y$14,0,IF($D14="Coinvestigador",$R$4,0)) -> 0 | L13: =IF(OR(H13>J13,H13<K13),1,0) -> 0 | M13: 0 | N13: 100 | O13: =O12 -> 20 | P13: =P12 -> 14 | Q13: =Q12 -> 10 | R13: =R12 -> 7 | S13: 0 | W13: Coinvestigador | X13: =$X$8&"11:"&$X$8&"14" -> y11:y14 | Y13: Doc. Ocasional | Z13: 10 | AA13: =ROW() -> 13 | AB13: 0 | AC13: 0
B14: =+B13 -> 2 | C14: Funcion : | J14: =IFERROR(VLOOKUP($F14,V_IdNBC,2,0),0) -> 0 | K14: =IF($D14=$K$10,"Ok","") -> Ok | M14: 0 | N14: 120 | O14: =O13 -> 20 | P14: 14 | Q14: 10 | R14: 7 | S14: 0 | W14: Coinvestigador | X14: =$X$8&"11:"&$X$8&"14" -> y11:y14 | Y14: Externo a la UMNG | Z14: =Z12 -> 12 | AA14: =ROW() -> 14 | AB14: 0 | AC14: 0
B15: =+B14 -> 2 | C15: CvLac: | J15: =IF($D14=$W$20,20,IFERROR(VLOOKUP($E14,$Y$8:$Z$21,2,0),$G$9)) -> 12 | K15: =IF($D14=$W$11,IF($E14=$Y$13,10,IF($E14=Y$14,4,12)),0) -> 0 | M15: 0 | N15: 140 | O15: 20 | P15: 14 | Q15: 10 | R15: 7 | S15: 0 | W15: Coinvestigador | X15: =$X$8&"11:"&$X$8&"14" -> y11:y14 | Z15: =Z13 -> 10 | AA15: =ROW() -> 15 | AB15: =COUNTIFS($D$9:$D$47,$W15)-SUM(AB11:AB14) -> 0 | AC15: 0
C16: =C12 -> Contribuciones | M16: 0 | N16: 160 | O16: 20 | P16: 14 | Q16: 10 | R16: 7 | S16: 0 | W16: Asesor | X16: =$X$8&AA16&":"&$X$8&AA16 -> y16:y16 | Y16: Externo a la UMNG | Z16: =Z14 -> 12 | AA16: =ROW() -> 16 | AB16: 0 | AC16: 0
B17: =B13+1 -> 3 | J17: =IF($E18=$Y$16,IF($D18=$W$16,0,40),IF($D18="Coinvestigador",J$9/2,40)) -> 40 | K17: =IF(E18=$Y$14,0,IF($D18="Coinvestigador",$R$4,0)) -> 0 | L17: =IF(OR(H17>J17,H17<K17),1,0) -> 0 | M17: 0 | N17: 180 | O17: 20 | P17: 14 | Q17: 10 | R17: 7 | S17: 0 | W17: Asistente OPS | X17: y17:y17 | Y17: OPS - Prestación Servicios | Z17: 10 | AA17: =ROW() -> 17 | AB17: 0 | AC17: 0
B18: =+B17 -> 3 | C18: Funcion : | J18: =IFERROR(VLOOKUP($F18,V_IdNBC,2,0),0) -> 0 | K18: =IF($D18=$K$10,"Ok","") -> Ok | M18: 0 | N18: 200 | O18: 20 | P18: 14 | Q18: 10 | R18: 7 | S18: 0 | W18: Auxiliar de Investigación. | X18: y18:y18 | Y18: Estímulo a estudiante | Z18: 10 | AA18: =ROW() -> 18 | AB18: 0 | AC18: 0
B19: =+B18 -> 3 | C19: CvLac: | J19: =IF($D18=$W$20,20,IFERROR(VLOOKUP($E18,$Y$8:$Z$21,2,0),$G$9)) -> 12 | K19: =IF($D18=$W$11,IF($E18=$Y$13,10,IF($E18=Y$14,4,12)),0) -> 0 | M19: 0 | N19: =N18+20 -> 220 | O19: 20 | P19: 14 | Q19: 10 | R19: 7 | S19: =INT(S18/20)*20 -> 0 | W19: Joven Investigador | X19: y19:y19 | Y19: OPS - Prestación Servicios | Z19: 10 | AA19: =ROW() -> 19 | AB19: 0 | AC19: 0
C20: =C16 -> Contribuciones | M20: 0 | N20: 240 | O20: 20 | P20: 14 | Q20: 10 | R20: 7 | S20: =INT(S19/20)*20 -> 0 | W20: Asistente Graduado | X20: y20:y20 | Y20: Estímulo a estudiante | Z20: 10 | AA20: =ROW() -> 20 | AB20: 0 | AC20: 0
B21: =B17+1 -> 4 | J21: =IF($E22=$Y$16,IF($D22=$W$16,0,40),IF($D22="Coinvestigador",J$9/2,40)) -> 40 | K21: =IF(E22=$Y$14,0,IF($D22="Coinvestigador",$R$4,0)) -> 0 | L21: =IF(OR(H21>J21,H21<K21),1,0) -> 0 | M21: 0 | N21: 260 | O21: 20 | P21: 14 | Q21: 10 | R21: 7 | S21: =INT(S20/20)*20 -> 0 | W21: Estudiante | X21: y21:y21 | Y21: Auxiliar de Investigación | Z21: 10 | AA21: =ROW() -> 21 | AB21: 0 | AC21: 0
B22: =+B21 -> 4 | C22: Funcion : | J22: =IFERROR(VLOOKUP($F22,V_IdNBC,2,0),0) -> 0 | K22: =IF($D22=$K$10,"Ok","") -> Ok | M22: 0 | N22: 280 | O22: 20 | P22: 14 | Q22: 10 | R22: 7 | S22: =INT(S21/20)*20 -> 0
B23: =+B22 -> 4 | C23: CvLac: | J23: =IF($D22=$W$20,20,IFERROR(VLOOKUP($E22,$Y$8:$Z$21,2,0),$G$9)) -> 12 | K23: =IF($D22=$W$11,IF($E22=$Y$13,10,IF($E22=Y$14,4,12)),0) -> 0 | M23: 0 | N23: 300 | O23: 20 | P23: 14 | Q23: 10 | R23: 7 | S23: =INT(S22/20)*20 -> 0
C24: =C20 -> Contribuciones | W24: Coinvestigador | AB24: =SUM(AB11:AB13,AB15) -> 0
B25: =B21+1 -> 5 | J25: =IF($E26=$Y$16,IF($D26=$W$16,0,40),IF($D26="Coinvestigador",J$9/2,40)) -> 40 | K25: =IF(E26=$Y$14,0,IF($D26="Coinvestigador",$R$4,0)) -> 0 | L25: =IF(OR(H25>J25,H25<K25),1,0) -> 0 | M25: =IF(OR(I25>K25,I25<L25),1,0) -> 0 | N25: 1 | O25: 1 | P25: 1 | Q25: 1 | R25: 0 | S25: 0
B26: =+B25 -> 5 | C26: Funcion : | J26: =IFERROR(VLOOKUP($F26,V_IdNBC,2,0),0) -> 0 | K26: =IF($D26=$K$10,"Ok","") -> Ok
B27: =+B26 -> 5 | C27: CvLac: | J27: =IF($D26=$W$20,20,IFERROR(VLOOKUP($E26,$Y$8:$Z$21,2,0),$G$9)) -> 12 | K27: =IF($D26=$W$11,IF($E26=$Y$13,10,IF($E26=Y$14,4,12)),0) -> 0 | M27: Validacion de registros
C28: =C24 -> Contribuciones
B29: =B25+1 -> 6 | J29: =IF($E30=$Y$16,IF($D30=$W$16,0,40),IF($D30="Coinvestigador",J$9/2,40)) -> 40 | K29: =IF(E30=$Y$14,0,IF($D30="Coinvestigador",$R$4,0)) -> 0 | M29: 5 | N29: C | O29: D | P29: E | Q29: F | R29: G | S29: H | T29: D | U29: E | V29: F | W29: D | X29: D | Y29: =SUM(Y31:Y42) -> 0
B30: =+B29 -> 6 | C30: Funcion : | J30: =IFERROR(VLOOKUP($F30,V_IdNBC,2,0),0) -> 0 | K30: =IF($D30=$K$10,"Ok","") -> Ok | N30: =C8 -> Identificacion | O30: =D8 -> Nombres | P30: Apellidos | Q30: Nivel Academico | R30: Mes | S30: Horas | T30: Tipo | U30: Vinculo | V30: NBC | W30: Cvlac | X30: contribucion | Y30: Validacion hrs Externos
B31: =+B30 -> 6 | C31: CvLac: | J31: =IF($D30=$W$20,20,IFERROR(VLOOKUP($E30,$Y$8:$Z$21,2,0),$G$9)) -> 12 | K31: =IF($D30=$W$11,IF($E30=$Y$13,10,IF($E30=Y$14,4,12)),0) -> 0 | M31: 1 | N31: =CLEAN(INDIRECT(N$29&($M31*4)+$M$29,1)) ->  | O31: =CLEAN(INDIRECT(O$29&($M31*4)+$M$29,1)) -> Luis Alexander | P31: =CLEAN(INDIRECT(P$29&($M31*4)+$M$29,1)) -> Chirivi | Q31: =CLEAN(INDIRECT(Q$29&($M31*4)+$M$29,1)) ->  | R31: =CLEAN(ABS(INDIRECT(R$29&($M31*4)+$M$29,1))) -> 12 | S31: =ABS(INDIRECT(S$29&($M31*4)+$M$29,1)) -> 0 | T31: =CLEAN(INDIRECT(T$29&($M31*4)+$M$29+1,1)) -> Investigador Principal | U31: =CLEAN(INDIRECT(U$29&($M31*4)+$M$29+1,1)) ->  | V31: =CLEAN(INDIRECT(V$29&($M31*4)+$M$29+1,1)) ->  | W31: =CLEAN(INDIRECT(W$29&($M31*4)+$M$29+2,1)) ->  | X31: =CLEAN(INDIRECT(X$29&($M31*4)+$M$29+3,1)) ->  | Y31: =IF(AND($T31=$W$14,$U31=$Y$14,$S31<5),1,0) -> 0
C32: =C28 -> Contribuciones | M32: 2 | N32: =CLEAN(INDIRECT(N$29&($M32*4)+$M$29,1)) ->  | O32: =CLEAN(INDIRECT(O$29&($M32*4)+$M$29,1)) ->  | P32: =CLEAN(INDIRECT(P$29&($M32*4)+$M$29,1)) ->  | Q32: =CLEAN(INDIRECT(Q$29&($M32*4)+$M$29,1)) ->  | R32: =CLEAN(ABS(INDIRECT(R$29&($M32*4)+$M$29,1))) -> 12 | S32: =ABS(INDIRECT(S$29&($M32*4)+$M$29,1)) -> 0 | T32: =CLEAN(INDIRECT(T$29&($M32*4)+$M$29+1,1)) ->  | U32: =CLEAN(INDIRECT(U$29&($M32*4)+$M$29+1,1)) ->  | V32: =CLEAN(INDIRECT(V$29&($M32*4)+$M$29+1,1)) ->  | W32: =CLEAN(INDIRECT(W$29&($M32*4)+$M$29+2,1)) ->  | X32: =CLEAN(INDIRECT(X$29&($M32*4)+$M$29+3,1)) ->  | Y32: =IF(AND($T32=$W$14,$U32=$Y$14,$S32<=4),1,0) -> 0
B33: =B29+1 -> 7 | J33: =IF($E34=$Y$16,IF($D34=$W$16,0,40),IF($D34="Coinvestigador",J$9/2,40)) -> 40 | K33: =IF(E34=$Y$14,0,IF($D34="Coinvestigador",$R$4,0)) -> 0 | M33: 3 | N33: =CLEAN(INDIRECT(N$29&($M33*4)+$M$29,1)) ->  | O33: =CLEAN(INDIRECT(O$29&($M33*4)+$M$29,1)) ->  | P33: =CLEAN(INDIRECT(P$29&($M33*4)+$M$29,1)) ->  | Q33: =CLEAN(INDIRECT(Q$29&($M33*4)+$M$29,1)) ->  | R33: =CLEAN(ABS(INDIRECT(R$29&($M33*4)+$M$29,1))) -> 0 | S33: =ABS(INDIRECT(S$29&($M33*4)+$M$29,1)) -> 0 | T33: =CLEAN(INDIRECT(T$29&($M33*4)+$M$29+1,1)) ->  | U33: =CLEAN(INDIRECT(U$29&($M33*4)+$M$29+1,1)) ->  | V33: =CLEAN(INDIRECT(V$29&($M33*4)+$M$29+1,1)) ->  | W33: =CLEAN(INDIRECT(W$29&($M33*4)+$M$29+2,1)) ->  | X33: =CLEAN(INDIRECT(X$29&($M33*4)+$M$29+3,1)) ->  | Y33: =IF(AND($T33=$W$14,$U33=$Y$14,$S33<=4),1,0) -> 0
B34: =+B33 -> 7 | C34: Funcion : | J34: =IFERROR(VLOOKUP($F34,V_IdNBC,2,0),0) -> 0 | K34: =IF($D34=$K$10,"Ok","") -> Ok | M34: 4 | N34: =CLEAN(INDIRECT(N$29&($M34*4)+$M$29,1)) ->  | O34: =CLEAN(INDIRECT(O$29&($M34*4)+$M$29,1)) ->  | P34: =CLEAN(INDIRECT(P$29&($M34*4)+$M$29,1)) ->  | Q34: =CLEAN(INDIRECT(Q$29&($M34*4)+$M$29,1)) ->  | R34: =CLEAN(ABS(INDIRECT(R$29&($M34*4)+$M$29,1))) -> 0 | S34: =ABS(INDIRECT(S$29&($M34*4)+$M$29,1)) -> 0 | T34: =CLEAN(INDIRECT(T$29&($M34*4)+$M$29+1,1)) ->  | U34: =CLEAN(INDIRECT(U$29&($M34*4)+$M$29+1,1)) ->  | V34: =CLEAN(INDIRECT(V$29&($M34*4)+$M$29+1,1)) ->  | W34: =CLEAN(INDIRECT(W$29&($M34*4)+$M$29+2,1)) ->  | X34: =CLEAN(INDIRECT(X$29&($M34*4)+$M$29+3,1)) ->  | Y34: =IF(AND($T34=$W$14,$U34=$Y$14,$S34<5),1,0) -> 0
B35: =+B34 -> 7 | C35: CvLac: | J35: =IF($D34=$W$20,20,IFERROR(VLOOKUP($E34,$Y$8:$Z$21,2,0),$G$9)) -> 12 | K35: =IF($D34=$W$11,IF($E34=$Y$13,10,IF($E34=Y$14,4,12)),0) -> 0 | M35: 5 | N35: =CLEAN(INDIRECT(N$29&($M35*4)+$M$29,1)) ->  | O35: =CLEAN(INDIRECT(O$29&($M35*4)+$M$29,1)) ->  | P35: =CLEAN(INDIRECT(P$29&($M35*4)+$M$29,1)) ->  | Q35: =CLEAN(INDIRECT(Q$29&($M35*4)+$M$29,1)) ->  | R35: =CLEAN(ABS(INDIRECT(R$29&($M35*4)+$M$29,1))) -> 0 | S35: =ABS(INDIRECT(S$29&($M35*4)+$M$29,1)) -> 0 | T35: =CLEAN(INDIRECT(T$29&($M35*4)+$M$29+1,1)) ->  | U35: =CLEAN(INDIRECT(U$29&($M35*4)+$M$29+1,1)) ->  | V35: =CLEAN(INDIRECT(V$29&($M35*4)+$M$29+1,1)) ->  | W35: =CLEAN(INDIRECT(W$29&($M35*4)+$M$29+2,1)) ->  | X35: =CLEAN(INDIRECT(X$29&($M35*4)+$M$29+3,1)) ->  | Y35: 0
C36: =C32 -> Contribuciones | M36: 6 | N36: =CLEAN(INDIRECT(N$29&($M36*4)+$M$29,1)) ->  | O36: =CLEAN(INDIRECT(O$29&($M36*4)+$M$29,1)) ->  | P36: =CLEAN(INDIRECT(P$29&($M36*4)+$M$29,1)) ->  | Q36: =CLEAN(INDIRECT(Q$29&($M36*4)+$M$29,1)) ->  | R36: =CLEAN(ABS(INDIRECT(R$29&($M36*4)+$M$29,1))) -> 0 | S36: =ABS(INDIRECT(S$29&($M36*4)+$M$29,1)) -> 0 | T36: =CLEAN(INDIRECT(T$29&($M36*4)+$M$29+1,1)) ->  | U36: =CLEAN(INDIRECT(U$29&($M36*4)+$M$29+1,1)) ->  | V36: =CLEAN(INDIRECT(V$29&($M36*4)+$M$29+1,1)) ->  | W36: =CLEAN(INDIRECT(W$29&($M36*4)+$M$29+2,1)) ->  | X36: =CLEAN(INDIRECT(X$29&($M36*4)+$M$29+3,1)) ->  | Y36: 0
B37: =B33+1 -> 8 | J37: =IF($E38=$Y$16,IF($D38=$W$16,0,40),IF($D38="Coinvestigador",J$9/2,40)) -> 40 | K37: =IF(E38=$Y$14,0,IF($D38="Coinvestigador",$R$4,0)) -> 0 | M37: 7 | N37: =CLEAN(INDIRECT(N$29&($M37*4)+$M$29,1)) ->  | O37: =CLEAN(INDIRECT(O$29&($M37*4)+$M$29,1)) ->  | P37: =CLEAN(INDIRECT(P$29&($M37*4)+$M$29,1)) ->  | Q37: =CLEAN(INDIRECT(Q$29&($M37*4)+$M$29,1)) ->  | R37: =CLEAN(ABS(INDIRECT(R$29&($M37*4)+$M$29,1))) -> 0 | S37: =ABS(INDIRECT(S$29&($M37*4)+$M$29,1)) -> 0 | T37: =CLEAN(INDIRECT(T$29&($M37*4)+$M$29+1,1)) ->  | U37: =CLEAN(INDIRECT(U$29&($M37*4)+$M$29+1,1)) ->  | V37: =CLEAN(INDIRECT(V$29&($M37*4)+$M$29+1,1)) ->  | W37: =CLEAN(INDIRECT(W$29&($M37*4)+$M$29+2,1)) ->  | X37: =CLEAN(INDIRECT(X$29&($M37*4)+$M$29+3,1)) ->  | Y37: 0
B38: =+B37 -> 8 | C38: Funcion : | J38: =IFERROR(VLOOKUP($F38,V_IdNBC,2,0),0) -> 0 | K38: =IF($D38=$K$10,"Ok","") -> Ok | M38: 8 | N38: =CLEAN(INDIRECT(N$29&($M38*4)+$M$29,1)) ->  | O38: =CLEAN(INDIRECT(O$29&($M38*4)+$M$29,1)) ->  | P38: =CLEAN(INDIRECT(P$29&($M38*4)+$M$29,1)) ->  | Q38: =CLEAN(INDIRECT(Q$29&($M38*4)+$M$29,1)) ->  | R38: =CLEAN(ABS(INDIRECT(R$29&($M38*4)+$M$29,1))) -> 0 | S38: =ABS(INDIRECT(S$29&($M38*4)+$M$29,1)) -> 0 | T38: =CLEAN(INDIRECT(T$29&($M38*4)+$M$29+1,1)) ->  | U38: =CLEAN(INDIRECT(U$29&($M38*4)+$M$29+1,1)) ->  | V38: =CLEAN(INDIRECT(V$29&($M38*4)+$M$29+1,1)) ->  | W38: =CLEAN(INDIRECT(W$29&($M38*4)+$M$29+2,1)) ->  | X38: =CLEAN(INDIRECT(X$29&($M38*4)+$M$29+3,1)) ->  | Y38: 0
B39: =+B38 -> 8 | C39: CvLac: | J39: =IF($D38=$W$20,20,IFERROR(VLOOKUP($E38,$Y$8:$Z$21,2,0),$G$9)) -> 12 | K39: =IF($D38=$W$11,IF($E38=$Y$13,10,IF($E38=Y$14,4,12)),0) -> 0 | M39: 9 | N39: =CLEAN(INDIRECT(N$29&($M39*4)+$M$29,1)) ->  | O39: =CLEAN(INDIRECT(O$29&($M39*4)+$M$29,1)) ->  | P39: =CLEAN(INDIRECT(P$29&($M39*4)+$M$29,1)) ->  | Q39: =CLEAN(INDIRECT(Q$29&($M39*4)+$M$29,1)) ->  | R39: =CLEAN(ABS(INDIRECT(R$29&($M39*4)+$M$29,1))) -> 0 | S39: =ABS(INDIRECT(S$29&($M39*4)+$M$29,1)) -> 0 | T39: =CLEAN(INDIRECT(T$29&($M39*4)+$M$29+1,1)) ->  | U39: =CLEAN(INDIRECT(U$29&($M39*4)+$M$29+1,1)) ->  | V39: =CLEAN(INDIRECT(V$29&($M39*4)+$M$29+1,1)) ->  | W39: =CLEAN(INDIRECT(W$29&($M39*4)+$M$29+2,1)) ->  | X39: =CLEAN(INDIRECT(X$29&($M39*4)+$M$29+3,1)) ->  | Y39: 0
C40: =C36 -> Contribuciones | M40: 10 | N40: =CLEAN(INDIRECT(N$29&($M40*4)+$M$29,1)) ->  | O40: =CLEAN(INDIRECT(O$29&($M40*4)+$M$29,1)) ->  | P40: =CLEAN(INDIRECT(P$29&($M40*4)+$M$29,1)) ->  | Q40: =CLEAN(INDIRECT(Q$29&($M40*4)+$M$29,1)) ->  | R40: =CLEAN(ABS(INDIRECT(R$29&($M40*4)+$M$29,1))) -> 0 | S40: =ABS(INDIRECT(S$29&($M40*4)+$M$29,1)) -> 0 | T40: =CLEAN(INDIRECT(T$29&($M40*4)+$M$29+1,1)) ->  | U40: =CLEAN(INDIRECT(U$29&($M40*4)+$M$29+1,1)) ->  | V40: =CLEAN(INDIRECT(V$29&($M40*4)+$M$29+1,1)) ->  | W40: =CLEAN(INDIRECT(W$29&($M40*4)+$M$29+2,1)) ->  | X40: =CLEAN(INDIRECT(X$29&($M40*4)+$M$29+3,1)) ->  | Y40: 0
B41: =B37+1 -> 9 | J41: =IF($E42=$Y$16,IF($D42=$W$16,0,40),IF($D42="Coinvestigador",J$9/2,40)) -> 40 | K41: =IF(E42=$Y$14,0,IF($D42="Coinvestigador",$R$4,0)) -> 0 | M41: 11 | N41: =CLEAN(INDIRECT(N$29&($M41*4)+$M$29,1)) ->  | O41: =CLEAN(INDIRECT(O$29&($M41*4)+$M$29,1)) ->  | P41: =CLEAN(INDIRECT(P$29&($M41*4)+$M$29,1)) ->  | Q41: =CLEAN(INDIRECT(Q$29&($M41*4)+$M$29,1)) ->  | R41: =CLEAN(ABS(INDIRECT(R$29&($M41*4)+$M$29,1))) -> 0 | S41: =ABS(INDIRECT(S$29&($M41*4)+$M$29,1)) -> 0 | T41: =CLEAN(INDIRECT(T$29&($M41*4)+$M$29+1,1)) ->  | U41: =CLEAN(INDIRECT(U$29&($M41*4)+$M$29+1,1)) ->  | V41: =CLEAN(INDIRECT(V$29&($M41*4)+$M$29+1,1)) ->  | W41: =CLEAN(INDIRECT(W$29&($M41*4)+$M$29+2,1)) ->  | X41: =CLEAN(INDIRECT(X$29&($M41*4)+$M$29+3,1)) ->  | Y41: 0
B42: =+B41 -> 9 | C42: Funcion : | J42: =IFERROR(VLOOKUP($F42,V_IdNBC,2,0),0) -> 0 | K42: =IF($D42=$K$10,"Ok","") -> Ok | M42: 12 | N42: =CLEAN(INDIRECT(N$29&($M42*4)+$M$29,1)) ->  | O42: =CLEAN(INDIRECT(O$29&($M42*4)+$M$29,1)) ->  | P42: =CLEAN(INDIRECT(P$29&($M42*4)+$M$29,1)) ->  | Q42: =CLEAN(INDIRECT(Q$29&($M42*4)+$M$29,1)) ->  | R42: =CLEAN(ABS(INDIRECT(R$29&($M42*4)+$M$29,1))) -> 0 | S42: =ABS(INDIRECT(S$29&($M42*4)+$M$29,1)) -> 0 | T42: =CLEAN(INDIRECT(T$29&($M42*4)+$M$29+1,1)) ->  | U42: =CLEAN(INDIRECT(U$29&($M42*4)+$M$29+1,1)) ->  | V42: =CLEAN(INDIRECT(V$29&($M42*4)+$M$29+1,1)) ->  | W42: =CLEAN(INDIRECT(W$29&($M42*4)+$M$29+2,1)) ->  | X42: =CLEAN(INDIRECT(X$29&($M42*4)+$M$29+3,1)) ->  | Y42: 0
B43: =+B42 -> 9 | C43: CvLac: | J43: =IF($D42=$W$20,20,IFERROR(VLOOKUP($E42,$Y$8:$Z$21,2,0),$G$9)) -> 12 | K43: =IF($D42=$W$11,IF($E42=$Y$13,10,IF($E42=Y$14,4,12)),0) -> 0 | N43: =CLEAN(INDIRECT(N$29&($M43*4)+$M$29,1)) ->  | O43: =CLEAN(INDIRECT(O$29&($M43*4)+$M$29,1)) ->  | P43: =CLEAN(INDIRECT(P$29&($M43*4)+$M$29,1)) ->  | Q43: =CLEAN(INDIRECT(Q$29&($M43*4)+$M$29,1)) ->  | R43: =CLEAN(INDIRECT(R$29&($M43*4)+$M$29,1)) -> 
C44: =C40 -> Contribuciones
B45: =B41+1 -> 10 | J45: =IF($E46=$Y$16,IF($D46=$W$16,0,40),IF($D46="Coinvestigador",J$9/2,40)) -> 40 | K45: =IF(E46=$Y$14,0,IF($D46="Coinvestigador",$R$4,0)) -> 0
B46: =+B45 -> 10 | C46: Funcion : | J46: =IFERROR(VLOOKUP($F46,V_IdNBC,2,0),0) -> 0 | K46: =IF($D46=$K$10,"Ok","") -> Ok | S46: =SUMIF($T$30:$T$42,$T46,$S$30:$S$42) -> 0 | T46: Investigador Principal
B47: =+B46 -> 10 | C47: CvLac: | J47: =IF($D46=$W$20,20,IFERROR(VLOOKUP($E46,$Y$8:$Z$21,2,0),$G$9)) -> 12 | K47: =IF($D46=$W$11,IF($E46=$Y$13,10,IF($E46=Y$14,4,12)),0) -> 0 | S47: =SUMIF($T$30:$T$42,$T47,$S$30:$S$42) -> 0 | T47: Coinvestigador
C48: =C44 -> Contribuciones | S48: 0 | T48: Asesor
S49: 0 | T49: Asistente OPS
S50: 0 | T50: Auxiliar de Investigación.
S51: 0 | T51: Joven Investigador
S52: 0 | T52: Asistente Graduado
S53: 0 | T53: Estudiante
S55: =SUM(S46:S53) -> 0 | T55: integrantes

Sheet Productos
A1: 7 | Q1: =Presupuesto!O6 -> 15000000
B2: =Cronograma!B2 -> PRESENTACIÓN DE PROYECTOS DE INVESTIGACIÓN | G2: =General!$H$2 -> Fecha de Emisión: 2019/03/18 | H2: =General!$I$2 -> IN-IV-F-14 | O2: =VLOOKUP("Productos",DT_Errores,3,0) -> Error : 015.- No tiene la productividad mínima requerida para la convcocatoria INV de 20 Puntos.
G3: =General!$H$3 -> Revisión N°: 4 | H3: ="Página "&A1&" de "&Dt_TPG -> Página 7 de 11 | I3: =IF(H5="INV",4,5) -> 4 | K3: N | M3: Abreviatura | N3: IdClase | O3: INV | P3: IMP | Q3: Clase | R3: Tipo de Productos | S3: Indicadores | T3: o | U3: Ok | V3: IdClase
G4: =IF(H5="INV",3,4) -> 3 | K4: 1 | L4: =ABS(LEFT(M4,3)) -> 101 | M4: =IFERROR(V4&"- "&VLOOKUP($K4,Dt_prod2,5,0),"-") -> 101- Artículo en revista en Cuartil 1 (Q1) del SJR (Scimago) o del JCR (Clarivate). | N4: =IFERROR(VLOOKUP(ABS(LEFT(L4)),Dt_ClasProd,3,0),"-") -> GNC | O4: =IFERROR(VLOOKUP($K4,Dt_prod2,7,0),"-") -> 40 | P4: =IFERROR(VLOOKUP($K4,Dt_prod2,8,0),"-") -> 0 | Q4: =IFERROR(Z4&"- "&VLOOKUP($K4,Dt_prod2,3,0),"-") -> - Productos de Generación de Nuevo Conocimiento (GNC) | R4: =IFERROR(VLOOKUP($K4,Dt_prod2,4,0),"-") -> Artículos en Revistas Científicas no incluidas en las listas de revistas depredadoras (ejemplo Beall-list) | S4: =IFERROR(VLOOKUP($K4,Dt_prod2,6,0),"-") -> Copia del sometimiento y copia del artículo enviado a la revista | T4: 0 | U4: =SUMIFS($F$8:$F$28,$I$8:$I$28,L4) -> 0 | V4: =IFERROR(VLOOKUP($K4,Dt_prod2,2,0),0) -> 101
A5: 10.- | B5: Productividad comprometida | F5: Tipo de proyecto: | H5: =General!$H$1 -> INV | K5: 2 | L5: =ABS(LEFT(M5,3)) -> 102 | M5: 102- Artículo en revista en Cuartil 2 (Q2) del SJR (Scimago) o del JCR (Clarivate). | N5: GNC | O5: 30 | P5: 0 | Q5: - Productos de Generación de Nuevo Conocimiento (GNC) | R5: Artículos en Revistas Científicas no incluidas en las listas de revistas depredadoras (ejemplo Beall-list) | S5: Copia del sometimiento y copia del artículo enviado a la revista | T5: 0 | U5: 0 | V5: 102
C6: Selección de topes comprometidos | K6: 3 | L6: 103 | M6: 103- Artículo en revista en Cuartil 3 (Q3) del SJR (Scimago) o del JCR (Clarivate) o clasificada en B en Publindex. | N6: GNC | O6: 20 | P6: 0 | Q6: - Productos de Generación de Nuevo Conocimiento (GNC) | R6: Artículos en Revistas Científicas no incluidas en las listas de revistas depredadoras (ejemplo Beall-list) | S6: Copia del sometimiento y copia del artículo enviado a la revista | T6: 0 | U6: 0 | V6: 103
B7: N° | C7: Resultado/Producto esperado | D7: Descripción o detalles del producto esperado | E7: Indicador | F7: Cantidad | G7: Total de puntos | H7: Beneficiario | K7: 4 | L7: 104 | M7: 104- Artículo en revista en Cuartil 4 (Q4) del SJR (Scopus) o del JCR (Web of Science) o clasificada en C en Publindex. | N7: GNC | O7: 10 | P7: 0 | Q7: - Productos de Generación de Nuevo Conocimiento (GNC) | R7: Artículos en Revistas Científicas no incluidas en las listas de revistas depredadoras (ejemplo Beall-list) | S7: Copia del sometimiento y copia del artículo enviado a la revista | T7: 0 | U7: 0 | V7: 104
B8: =ROW()-7 -> 1 | E8: =IFERROR(CLEAN(VLOOKUP($I8,$L$3:$V$51,8,0)),"") ->  | F8: 1 | G8: =IFERROR($F8*VLOOKUP(ABS(LEFT($C8,3)),$L$3:$V$51,$I$3,0),0) -> 0 | I8: =IFERROR(ABS(LEFT(C8,3)),0) -> 0 | K8: 5 | L8: 105 | M8: 105- Artículo D de acuerdo con las especificaciones del Documento conceptual de la Convocatoria 833 de 2018 de Minciencias. | N8: GNC | O8: 7 | P8: 0 | Q8: - Productos de Generación de Nuevo Conocimiento (GNC) | R8: Artículos en Revistas Científicas no incluidas en las listas de revistas depredadoras (ejemplo Beall-list) | S8: Copia del sometimiento y copia del artículo enviado a la revista | T8: 0 | U8: 0 | V8: 105
B9: =ROW()-7 -> 2 | F9: 1 | G9: 0 | I9: =IFERROR(ABS(LEFT(C9,3)),0) -> 0 | K9: 6 | L9: 109 | M9: 109- Libro resultado de investigación en colección indexada en Scopus Books o indizado en el Book Citation Index (Clarivate) | N9: GNC | O9: 60 | P9: 0 | Q9: - Productos de Generación de Nuevo Conocimiento (GNC) | R9: Libro de Investigación | S9: Copia del sometimiento ante editorial y copia completa del proyecto del libro. | T9: 0 | U9: 0 | V9: 109
B10: 3 | F10: 1 | G10: 0 | I10: 0 | K10: 7 | L10: 110 | M10: 110- Libro resultado de investigación sometido por la Editorial Neogranadina o libro resultado de investigación que cumpla con lo especificado por Minciencias en el Documento Conceptual de la Convocatoria 833 de 2018. | N10: GNC | O10: 30 | P10: 0 | Q10: - Productos de Generación de Nuevo Conocimiento (GNC) | R10: Libro de Investigación | S10: Copia del sometimiento ante editorial y copia completa del proyecto del libro. | T10: 0 | U10: 0 | V10: 110
B11: 4 | F11: 1 | G11: 0 | I11: 0 | K11: 8 | L11: 111 | M11: 111- Capítulo incluido en libro resultado de investigación dentro de una colección indexada Scopus Books o indizado en el Book Citation Index (Clarivate) | N11: GNC | O11: 20 | P11: 0 | Q11: - Productos de Generación de Nuevo Conocimiento (GNC) | R11: Capítulo de Libro de Investigación | S11: Copia del sometimiento ante editorial Neogranadina o editorial externa (copia del proyecto editorial de libro en el que se incluiría el capítulo y del aval de la Editorial sobre ese proyecto) y copia del capítulo de libro enviado a la editorial | T11: 0 | U11: 0 | V11: 111
B12: 5 | F12: 1 | G12: 0 | I12: 0 | K12: 9 | L12: 112 | M12: 112- Capítulo en libro de la Editorial Neogranadina o un capítulo en libro resultado de investigación que cumpla con lo especificado por Minciencias en el Documento Conceptual de la Convocatoria 833 de 2018. | N12: GNC | O12: 20 | P12: 0 | Q12: - Productos de Generación de Nuevo Conocimiento (GNC) | R12: Capítulo de Libro de Investigación | S12: Copia del sometimiento ante editorial Neogranadina o editorial externa (copia del proyecto editorial de libro en el que se incluiría el capítulo y del aval de la Editorial sobre ese proyecto) y copia del capítulo de libro enviado a la editorial | T12: 0 | U12: 0 | V12: 112
B13: 6 | F13: 1 | G13: 0 | I13: 0 | K13: 10 | L13: 113 | M13: 113- Publicación en gaceta de variedades vegetales protegidas o equivalente con estado de admisión respaldada por un concepto favorable de potencial de mercado o con valor real o potencial de contribución a la seguridad alimentaria. | N13: GNC | O13: 60 | P13: 0 | Q13: - Productos de Generación de Nuevo Conocimiento (GNC) | R13: Variedad vegetal o nueva raza animal | S13: Documento en el que se describa la variedad vegetal obtenida con nombre, tipo de ciclo (corto o largo), fecha, cód. de trazabilidad y autores debidamente registrados según Res. De vinculación vigente. Publicación en gaceta o equivalente, con estado de admisión de la solicitud de certificado de obtentor del ICA | T13: 0 | U13: 0 | V13: 113
B14: 7 | F14: 1 | G14: 0 | I14: 0 | K14: 11 | L14: 114 | M14: 114- Nota Científica Impresa o electrónica sometida en revista indexada del SJR (Scimago) o del JCR (Clarivate) que cumpla con lo especificado por Minciencias en el Documento Conceptual de la Convocatoria 833 de 2018 | N14: GNC | O14: 10 | P14: 0 | Q14: - Productos de Generación de Nuevo Conocimiento (GNC) | R14: Nota científica | S14: Copia del sometimiento y copia de la nota científica enviada a la revista | T14: 0 | U14: 0 | V14: 114
B15: 8 | F15: 1 | G15: 0 | I15: 0 | K15: 16 | L15: 201 | M15: 201- Software aprobado para registro ante la DNDA, de acuerdo con procedimientos establecidos por la UMNG. | N15: DTI | O15: 10 | P15: 0 | Q15: - Productos resultado de actividades de desarrollo tecnológico e innovación (DTI) | R15: Software | S15: Soporte logico registre el aval para el software que incluya : Manual técnico, Manual de usuario todos con la inclucion código de trazabilidad, | T15: 0 | U15: 0 | V15: 201
B16: 9 | F16: 1 | G16: 0 | I16: 0 | K16: 17 | L16: 202 | M16: 202- Esquema de trazado de circuito integrado registrado ante la SIC a través de acto administrativo que resuelva la concesión favorable. | N16: DTI | O16: 10 | P16: 0 | Q16: - Productos resultado de actividades de desarrollo tecnológico e innovación (DTI) | R16: Esquema trazado | S16: Documento en el que se describa el esquema de trazado de circuito integrado obtenido con nombre, autor, fecha, cód. de trazabilidad y autores debidamente registrados según Res. vigente, Acto administrativo de la Superintendencia de Industria y Comercio que resuelva la concesión favorable. | T16: 0 | U16: 0 | V16: 202
B17: 10 | F17: 1 | G17: 0 | I17: 0 | K17: 18 | L17: 203 | M17: 203- Regulaciones, normas, reglamentos o legislaciones implementadas internacionalmente, acorde con parámetros de Minciencias. | N17: DTI | O17: 20 | P17: 0 | Q17: - Productos resultado de actividades de desarrollo tecnológico e innovación (DTI) | R17: Normas Internacionales | S17: "Documento en el que se describa la regulación, norma, reglamento o legislación+CR10 obtenido con nombre, autor, fecha, cód. de trazabilidad y autores debidamente registrados según Res. vigente" ,"Certificado de la entidad o institución que emitió el producto, indicando la participación en su construcción de todos o de alguno de los integrantes del proyecto, título, país, ciudad, fecha de publicación / implementación, tipo de regulación, ámbito. | T17: 0 | U17: 0 | V17: 203
B18: 11 | F18: 1 | G18: 0 | I18: 0 | K18: 19 | L18: 204 | M18: 204- Regulaciones, normas, reglamentos o legislaciones implementadas nacionalmente (no institucional), acorde con parámetros de Minciencias. | N18: DTI | O18: 10 | P18: 0 | Q18: - Productos resultado de actividades de desarrollo tecnológico e innovación (DTI) | R18: Normas Nacionales | S18: "Documento en el que se describa la regulación, norma, reglamento o legislación+CR10 obtenido con nombre, autor, fecha, cód. de trazabilidad y autores debidamente registrados según Res. vigente" ,"Certificado de la entidad o institución que emitió el producto, indicando la participación en su construcción de todos o de alguno de los integrantes del proyecto, título, país, ciudad, fecha de publicación / implementación, tipo de regulación, ámbito. | T18: 0 | U18: 0 | V18: 204
B19: 12 | F19: 1 | G19: 0 | I19: 0 | K19: 20 | L19: 205 | M19: 205- Nuevo registro científico - Incluido en sistemas de información científica con las especificaciones del Documento conceptual de la Convocatoria 833 de 2018 de Minciencias. | N19: DTI | O19: 15 | P19: 0 | Q19: - Productos resultado de actividades de desarrollo tecnológico e innovación (DTI) | R19: Nuevo registro cientifico | S19: Copia de la Inclusión del nuevo registro científico en el sistema de información científico, matriz con la relación de conjunto de metadatos publicado, y URL de acceso. | T19: 0 | U19: 0 | V19: 205
B20: 13 | F20: 1 | G20: 0 | I20: 0 | K20: 21 | L20: 207 | M20: 207- Productos o procesos tecnológicos usualmente no patentables (Prototipo) - Estado de desarrollo TRL4 - Validación a nivel de laboratorio. | N20: DTI | O20: 10 | P20: 0 | Q20: - Productos resultado de actividades de desarrollo tecnológico e innovación (DTI) | R20: Prototipo TRL4 | S20: Prototipo madurado en mínimo TRL 4 Validado por DDTI o Ente externo especializado y acompañado de: 1. Manual de funcionamiento según el formato establecido por VICEIN. 2.Registro fotográfico de los componentes del prototipo. 3.Registro fílmico sobre funcionamiento del prototipo.4.Soportes de pruebas y validación (según aplique) | T20: 0 | U20: 0 | V20: 207
B21: 14 | F21: 1 | G21: 0 | I21: 0 | K21: 22 | L21: 208 | M21: 208- Productos o procesos tecnológicos (Prototipo) - Estado de desarrollo TRL5 - validación de componentes en entorno relevante. | N21: DTI | O21: 13 | P21: 0 | Q21: - Productos resultado de actividades de desarrollo tecnológico e innovación (DTI) | R21: Prototipo TRL5 | S21: Prototipo madurado en mínimo un nivel en la escala TRL comprometida o esperada, Validado por DDTI o Ente externo especializado y acompañado de: 1. Manual de funcionamiento según el formato establecido por VICEIN. 2.Registro fotográfico de los componentes del prototipo. 3.Registro fílmico sobre funcionamiento del prototipo. 4.Soportes de pruebas y validación (según aplique). | T21: 0 | U21: 0 | V21: 208
B22: 15 | F22: 1 | G22: 0 | I22: 0 | K22: 23 | L22: 209 | M22: 209- Productos o procesos tecnológicos (Prototipo) - Estado de desarrollo TRL6 - Validación de sistema o subsistema en entorno relevante | N22: DTI | O22: 16 | P22: 0 | Q22: - Productos resultado de actividades de desarrollo tecnológico e innovación (DTI) | R22: Prototipo TRL6 | S22: Prototipo madurado en mínimo un nivel en la escala TRL comprometida o esperada, Validado por DDTI o Ente externo especializado y acompañado de: 1. Manual de funcionamiento según el formato establecido por VICEIN. 2.Registro fotográfico de los componentes del prototipo. 3.Registro fílmico sobre funcionamiento del prototipo. 4.Soportes de pruebas y validación (según aplique). | T22: 0 | U22: 0 | V22: 209
B23: 16 | F23: 1 | G23: 0 | I23: 0 | K23: 24 | L23: 210 | M23: 210- Productos o procesos tecnológicos (Prototipo) - Estado de desarrollo TRL7 - Validación en entorno real. | N23: DTI | O23: 19 | P23: 0 | Q23: - Productos resultado de actividades de desarrollo tecnológico e innovación (DTI) | R23: Prototipo TRL7 | S23: Prototipo madurado en mínimo un nivel en la escala TRL comprometida o esperada, Validado por DDTI o Ente externo especializado y acompañado de: 1. Manual de funcionamiento según el formato establecido por VICEIN. 2.Registro fotográfico de los componentes del prototipo. 3.Registro fílmico sobre funcionamiento del prototipo. 4.Soportes de pruebas y validación (según aplique). | T23: 0 | U23: 0 | V23: 210
B24: 17 | F24: 1 | G24: 0 | I24: 0 | K24: 25 | L24: 211 | M24: 211- Productos o procesos tecnológicos (Prototipo) - Estado de desarrollo TRL8 - Validación completa y certificacion en entorno real. | N24: DTI | O24: 22 | P24: 0 | Q24: - Productos resultado de actividades de desarrollo tecnológico e innovación (DTI) | R24: Prototipo TRL8 | S24: Prototipo madurado en mínimo un nivel en la escala TRL comprometida o esperada, Validado por DDTI o Ente externo especializado y acompañado de: 1. Manual de funcionamiento según el formato establecido por VICEIN. 2.Registro fotográfico de los componentes del prototipo. 3.Registro fílmico sobre funcionamiento del prototipo. 4.Soportes de pruebas y validación (según aplique). | T24: 0 | U24: 0 | V24: 211
B25: 18 | F25: 1 | G25: 0 | I25: 0 | K25: 26 | L25: 212 | M25: 212- Productos o procesos tecnológicos (Prototipo) - Estado de desarrollo TRL9 - Prueba exitosa en entorno real. | N25: DTI | O25: 25 | P25: 0 | Q25: - Productos resultado de actividades de desarrollo tecnológico e innovación (DTI) | R25: Prototipo TRL9 | S25: Prototipo madurado en mínimo un nivel en la escala TRL comprometida o esperada, Validado por DDTI o Ente externo especializado y acompañado de: 1. Manual de funcionamiento según el formato establecido por VICEIN. 2.Registro fotográfico de los componentes del prototipo. 3.Registro fílmico sobre funcionamiento del prototipo. 4.Soportes de pruebas y validación (según aplique). | T25: 0 | U25: 0 | V25: 212
B26: 19 | F26: 1 | G26: 0 | I26: 0 | K26: 27 | L26: 301 | M26: 301- Ponencia en evento Internacional de acuerdo con los requisitos de la resolución vigente de movilidad. | N26: SAC | O26: 10 | P26: 0 | Q26: - Producción resultado de actividades de apropiación social del conocimiento (ASC) | R26: Circulación de conocimiento especializado | S26: Certificado de ponente, trabajo presentado en el evento que será publicado en memorias con ISSN o ISBN, cód. de trazabilidad y autores debidamente registrados según Res. De movilidad Vigente. | T26: 0 | U26: 0 | V26: 301
B27: 20 | F27: 1 | G27: 0 | I27: 0 | K27: 28 | L27: 302 | M27: 302- Ponencia en evento nacional de acuerdo con los requisitos de la resolución vigente de movilidad. | N27: SAC | O27: 5 | P27: 0 | Q27: - Producción resultado de actividades de apropiación social del conocimiento (ASC) | R27: Circulación de conocimiento especializado | S27: Certificado de ponente, trabajo presentado en el evento que será publicado en memorias con ISSN o ISBN, cód. de trazabilidad y autores debidamente registrados según Res. De movilidad Vigente. | T27: 0 | U27: 0 | V27: 302
K28: 29 | L28: 303 | M28: 303- Participación ciudadana en CTeI acorde con parámetros del modelo de medición de grupos de investigación- Minciencias** (Tabla XIV ANEXO 1) | N28: SAC | O28: 5 | P28: 0 | Q28: - Producción resultado de actividades de apropiación social del conocimiento (ASC) | R28: Participación ciudadana en CTeI | S28: Constancia de participación emitida por la comunidad o comunidades indicando que fueron incluidos en el proyecto/espacio/evento de CTI, con título del proyecto o nombre del espacio/evento, fecha de inicio, investigadores participantes, cód. de trazabilidad, nombre de la comunidad o comunidades participantes y otras instituciones o entidades vinculadas al proyecto/ espacio/evento de CTI. | T28: 0 | U28: 0 | V28: 303
B29: T | C29: ="En el caso de aprobacion se liquidara el proyecto con "&V_Max&" Pts." -> En el caso de aprobacion se liquidara el proyecto con 0 Pts. | F29: =SUM(F7:F27) -> 20 | G29: =INT(SUM(G7:G27)) -> 0 | K29: 30 | L29: 304 | M29: 304- Conjunto de información molecular que haya sido publicado en revista científica especializada y en una base de datos o repositorio de acceso público acorde con los parámetros del modelo de medición de grupos de investigación - Minciencias** (Tabla XVII ANEXO 1) | N29: SAC | O29: 10 | P29: 0 | Q29: - Producción resultado de actividades de apropiación social del conocimiento (ASC) | R29: Nueva secuencia genética | S29: Nombre de la secuencia genética, fecha, mes y lugar de obtención, base de datos científica en la cual está incluida la nueva secuencia genética (nombre y url), e institución certificadora de la nueva secuencia genética, código de trazabilidad y autores debidamente registrados según la resolución para vinculación de personal vigente. | T29: 0 | U29: 0 | V29: 304
K30: 33 | L30: 403 | M30: 403- Joven investigador vinculado por mínimo ocho meses según los criterios de la Resolución vigente sobre vinculación de personal a los proyectos de investigación financiados o cofinanciados por la UMNG en los programas de CTeI. | N30: FRH | O30: 10 | P30: 0 | Q30: - Formación de Recurso Humano (FRH) | R30: Jóven Investigador | S30: Contrato OPS , informe de actividades final. | T30: 0 | U30: 0 | V30: 403
K31: 34 | L31: 404 | M31: 404- Dirección de Trabajo de grado de estudiantes en programas de pregrado de la UMNG, con temáticas asociadas a línea de investigación a la que pertenece el proyecto. | N31: FRH | O31: 5 | P31: 0 | Q31: - Formación de Recurso Humano (FRH) | R31: Dirección o codirección de Trabajo de pregrado | S31: Copia del acta sustentación del proyecto de grado | T31: 0 | U31: 0 | V31: 404
B32: N | C32: Sigla | D32: Clase | H32: No | K32: 35 | L32: 405 | M32: 405- Tutoría de un proyecto de iniciación científica de estudiantes de la UMNG, con temáticas asociadas a línea de investigación a la que pertenece el proyecto. | N32: FRH | O32: 5 | P32: 0 | Q32: - Formación de Recurso Humano (FRH) | R32: Tutoría de un proyecto de iniciación científica | S32: Informe final y acta del Comité de investigaciones con el aval del cierre del PIC | T32: 0 | U32: 0 | V32: 405
A33: GNC | B33: 1 | C33: Productos de Generación de Nuevo Conocimiento (GNC) | H33: =SUMIFS($U$3:$U$51,$N$3:$N$51,$A33) -> 0 | K33: 36 | L33: 501 | M33: 501- Nueva propuesta conducente al ingreso de recursos externos en efectivo a la UMNG, superiores a la contrapartida en especie comprometida por la UMNG | N33: GI | O33: 30 | P33: 0 | Q33: - Gestión de la Investigación (GI) | R33: Presentación de nuevo proyecto Externo Nacional | S33: Carta de aval institucional, registro de sometimiento a la convocatoria externa o a la entidad financiadora o coordinadora de la convocatoria y listado de elegibles en el que está incluida la propuesta. | T33: 0 | U33: 0 | V33: 501
A34: FRH | B34: 2 | C34: Formación de Recurso Humano (FRH) | H34: =SUMIFS($U$3:$U$51,$N$3:$N$51,$A34) -> 0 | K34: 37 | L34: 502 | M34: 502- Nueva propuesta conducente a ingreso a la UMNG de recursos externos nacionales en efectivo, superiores a la contrapartida en especie comprometida por la UMNG por un valor mayor o igual a 350 SMMLV. | N34: GI | O34: 20 | P34: 0 | Q34: - Gestión de la Investigación (GI) | R34: Presentación de nuevo proyecto Externo Nacional 350 | S34: Carta de aval institucional, registro de sometimiento a la convocatoria externa o a la entidad financiadora o coordinadora de la convocatoria y listado de elegibles en el que está incluida la propuesta. | T34: 0 | U34: 0 | V34: 502
A35: SAC | B35: 3 | C35: Socialización y Apropiación social del Conocimiento (SAC) | H35: =SUMIFS($U$3:$U$51,$N$3:$N$51,$A35) -> 0 | K35: 38 | L35: 503 | M35: 503- Nueva propuesta conducente a ingreso a la UMNG de recursos externos Internacionales en efectivo, superiores a la contrapartida en especie comprometida por la UMNG por un valor mayor o igual a 350 SMMLV. | N35: GI | O35: 30 | P35: 0 | Q35: - Gestión de la Investigación (GI) | R35: Presentación de nuevo proyecto Externo internacional 350 | S35: Carta de aval Institucional, registro de sometimiento a la convocatoria externa o a la entidad financiadora o coordinadora de la convocatoria y listado de elegibles en el que está incluida la propuesta. | T35: 0 | U35: 0 | V35: 503
A36: DTI | B36: 4 | C36: Productos resultado de actividades de desarrollo tecnológico e innovación (DTI) | H36: 0 | K36: 39 | L36: 504 | M36: 504- Ejecución del proyecto, sometido a la presente convocatoria, en la modalidad de cooperación a través de convenio especial de cooperación o instrumento contractual equivalente, con instituciones de carácter nacional que cumplan con el criterio de evaluación de colaboración externa, enunciado en los presentes términos de referencia. | N36: GI | O36: 5 | P36: 0 | Q36: - Gestión de la Investigación (GI) | R36: Proyecto ejecutado con cooperación nacional. | S36: Convenio perfeccionado, actas de inicio y presupuestal firmadas. | T36: 0 | U36: 0 | V36: 504
A37: GI | B37: 5 | C37: Gestión de Investigación (GI) | H37: 0 | K37: 40 | L37: =ABS(LEFT(M37,3)) -> 505 | M37: 505- Ejecución del proyecto, sometido a la presente convocatoria, en la modalidad de cooperación a través de convenio especial de cooperación o instrumento contractual equivalente, con instituciones de carácter internacional en la que mínimo una de ellas tiene domicilio en el exterior y que cumplan con el criterio de evaluación de colaboración externa, enunciado en los presentes términos de referencia. | N37: GI | O37: 20 | P37: 0 | Q37: - Gestión de la Investigación (GI) | R37: Proyecto ejecutado con cooperación internacional | S37: Convenio perfeccionado con todas las instituciones participantes de la alianza, actas de inicio y presupuestal firmadas. | T37: 0 | U37: 0 | V37: 505
H38: =SUM(H33:H37) -> 0 | K38: 41 | L38: 506 | M38: 506- Nuevo proyecto financiado con recursos externos internacionales desembolsados al Fondo Especial de Investigaciones. | N38: GI | O38: 40 | P38: 0 | Q38: - Gestión de la Investigación (GI) | R38: Nuevo Proyecto cooperación internacional | S38: Convenio o contrato perfeccionado, actas de inicio y presupuestal firmadas. | T38: 0 | U38: 0 | V38: 506
K39: 42 | L39: 507 | M39: 507- Nuevo proyecto financiado con recursos externos nacionales desembolsados al Fondo Especial de Investigaciones. | N39: GI | O39: 30 | P39: 0 | Q39: - Gestión de la Investigación (GI) | R39: Nuevo Proyecto cooperación nacional | S39: Convenio o contrato perfeccionado, actas de inicio y presupuestal firmadas. | T39: 0 | U39: 0 | V39: 507
K40: 43 | L40: 508 | M40: 508- Comercialización de activos de propiedad intelectual, generados en proyectos de Investigación, alto impacto, innovación o cofinanciados con recursos externos registrados en la Vicerrectoría de Investigaciones, mediante mecanismos de transferencia tecnológica conforme los parámetros establecidos por la Vicerrectoría de Investigaciones (licenciamiento, spin off, start up, joint venture). | N40: GI | O40: 70 | P40: 0 | Q40: - Gestión de la Investigación (GI) | R40: comercialización de propiedad Intelectual | S40: Instrumento contractual perfeccionado tipo licenciamiento, joint Venture o denominación equivalente. Institución de spin off o startup de acuerdo previa validación de aspectos jurídicos, potencial y validación de mercado y propuesta de valor. | T40: 0 | U40: 0 | V40: 508
K41: 44 | L41: 509 | M41: 509- Mejoramiento del nivel de madurez tecnológica identificada por la División de Desarrollo tecnológico asociado a la valoración de la tecnología (vigilancia tecnológica e inteligencia competitiva, diagnósticos de propiedad intelectual, modelos de negocio u otros) | N41: GI | O41: 30 | P41: 0 | Q41: - Gestión de la Investigación (GI) | R41: Mejoramiento TRL | S41: prototipo madurado en mínimo un nivel en la escala TRL comprometida o esperada, acompañado de: 1. Manual de funcionamiento según el formato establecido por VICEIN. 2.Registro fotográfico de los componentes del prototipo. 3.Registro fílmico sobre funcionamiento del prototipo.4.Soportes de pruebas y validación (según aplique).Adicionalmente, acompañado de estudio de vigilancia tecnológica e inteligencia competitiva. | T41: 0 | U41: 0 | V41: 509
K42: 45 | L42: =ABS(LEFT(M42,3)) -> 510 | M42: 510- Transferencia de conocimiento científico especializado y novedoso, no disponible en el estado del arte, a actores externos de la Universidad mediada por acuerdos cesión o licenciamiento, las cuales pueden tener por objeto la formación de personas para incrementar sus capacidades investigadoras, innovadoras o de producción; actividades de innovación, generación de resultados económicos o; valor social. | N42: GI | O42: 50 | P42: 0 | Q42: - Gestión de la Investigación (GI) | R42: Transferencia de conocimiento | S42: Contrato de licenciamiento o cesión perfeccionado, así como el acta de implementación u hoja de ruta de las actividades de transferencia. | T42: 0 | U42: 0 | V42: 510
K43: 0 | L43: =IFERROR(ABS(LEFT(M43,3)),"") ->  | M43: - | N43: - | O43: - | P43: - | Q43: - | R43: - | S43: - | T43: 0 | U43: =SUMIFS($F$8:$F$28,$I$8:$I$28,L43) -> 0 | V43: 0
K44: 0 | L44: =IFERROR(ABS(LEFT(M44,3)),"") ->  | M44: - | N44: - | O44: - | P44: - | Q44: - | R44: - | S44: - | T44: 0 | U44: =SUMIFS($F$8:$F$28,$I$8:$I$28,L44) -> 0 | V44: 0
K45: 0 | M45: - | N45: - | O45: - | P45: - | Q45: - | R45: - | S45: - | T45: 0 | U45: 0 | V45: 0
K46: 0 | M46: - | N46: - | O46: - | P46: - | Q46: - | R46: - | S46: - | T46: 0 | U46: 0 | V46: 0
K47: 0 | M47: - | N47: - | O47: - | P47: - | Q47: - | R47: - | S47: - | T47: 0 | U47: 0 | V47: 0
K48: 0 | M48: - | N48: - | O48: - | P48: - | Q48: - | R48: - | S48: - | T48: 0 | U48: 0 | V48: 0
K49: 0 | M49: - | N49: - | O49: - | P49: - | Q49: - | R49: - | S49: - | T49: 0 | U49: 0 | V49: 0
K50: 0 | M50: - | N50: - | O50: - | P50: - | Q50: - | R50: - | S50: - | T50: 0 | U50: 0 | V50: 0
K51: 0 | M51: - | N51: - | O51: - | P51: - | Q51: - | R51: - | S51: - | T51: 0 | U51: 0 | V51: 0

Sheet Presupuesto
A1: 9 | S1: Tabla de Topes | V1: Validación | W1: =IF(P2="INV",2,3) -> 2 | Y1: Productividad Vs Presupuesto
M2: 1.-> Limite presupuestal | N2: =IF(MIN(N6:P6)<1, 15000000,MIN(N6:P6)) -> 15000000 | O2: =N2/M6 -> 15 | P2: =H10 -> INV | R2: Clasif | S2: INV | T2: IMP | V2: =General!I19 ->  | W2: =IFERROR(VLOOKUP($V2,$R$2:$T$9,W$1,0),0) -> 0 | Y2: =INT(W8/10)*10 -> 0 | Z2: Pts | AA2: $$$$
B3: =Integrantes!B3 -> PRESENTACIÓN DE PROYECTOS DE INVESTIGACIÓN | H3: =General!$H$2 -> Fecha de Emisión: 2019/03/18 | I3: =General!$I$2 -> IN-IV-F-14 | N3: Limite Grupo | O3: Limite Producto | P3: Limite Convo | R3: A | S3: 70 | T3: 0 | V3: =General!I23 ->  | W3: =IFERROR(VLOOKUP($V3,$R$2:$T$9,W$1,0),0) -> 0 | Y3: =IF($Y$2>Z3,0,1) -> 1 | Z3: 39 | AA3: 15
H4: =General!$H$3 -> Revisión N°: 4 | I4: ="Página "&$A$1&" de "&Dt_TPG -> Página 9 de 11 | M4: Mayor Grupo | N4: =MAX($W$2:$W$5) -> 0 | O4: =VLOOKUP(1,$Y$2:$AA$10,3,0) -> 15 | P4: =IF(H10="IMP",200,70) -> 70 | R4: A1 | S4: 70 | T4: 0 | V4: =General!I27 ->  | W4: 0 | Y4: =IF($Y$2>Z4,0,1) -> 1 | Z4: 49 | AA4: 30
R5: B | S5: 60 | T5: 0 | W5: 0 | Y5: 1 | Z5: 59 | AA5: 50
M6: 1000000 | N6: =N4*M6 -> 0 | O6: =M6*O4 -> 15000000 | P6: =M6*P4 -> 70000000 | R6: C | S6: 50 | T6: 0 | Y6: 1 | Z6: 79 | AA6: 60
B7: T | C7: Título de la Propuesta : | D7: =General!B9 -> Formato: actualizado a 08 Abr 2022 | R7: R | S7: 30 | T7: 0 | Y7: 1 | Z7: 80 | AA7: 70
B8: L | C8: Líder responsable | D8: =General!C10 -> Luis Alexander Chirivi | G8: Código VICEIN: | H8: =CLEAN(General!H7) ->  | R8: NR | S8: 15 | T8: 0 | V8: Pts | W8: =V_Max -> 0 | Y8: =IF($Y$2<Z8,0,1) -> 0 | Z8: 90 | AA8: 70
R9: NA | S9: 0 | T9: 0
A10: 12.- | B10: Presupuesto rubro personal asocidado a la propuesta | G10: =V_Max -> 0 | H10: =Cel_TP -> INV | I10: =Gp_Max -> 0
I11: 1,67…
B12: a. | C12: Personal de planta o ocasional que integra al proyecto de investigación. | H12: Valores de Contrapartida.
A13: =ROW() -> 13 | B13: N° | C13: Sueldo Neto | D13: Factor | E13: Tipo de Vinculo UMNG | F13: Numero de meses | G13: Número Horas / Semanal | H13: Valor Final | I13: Identificación | J13: 4 | L13: *tabla de consolidacion por año para proyectos IMP
B14: =ROW()-$A$13 -> 1 | D14: =I11 -> 1,67… | E14: =INDIRECT($I$24&"E"&$J14+1,1) -> 0 | F14: =INDIRECT($I$24&"G"&$J14,1) -> 12 | G14: =INDIRECT($I$24&"H"&$J14,1) -> 0 | H14: =IFERROR(INT(((C14*F14)/40)*G14*$I$11),0) -> 0 | I14: =INDIRECT($I$24&"C"&$J14,1) -> 0 | J14: 9 | L14: 0 | M14: Tipo Vinculo UMNG | N14: Año1 | O14: Año2 | Q14: Validación Presupuestal
B15: =ROW()-$A$13 -> 2 | D15: =D14 -> 1,67… | E15: 0 | F15: 12 | G15: 0 | H15: =IFERROR(INT(((C15*F15)/40)*G15*$I$11),0) -> 0 | I15: 0 | J15: =J14+$J$13 -> 13 | L15: 1 | M15: Doc. Carrera TC | N15: =(SUMIF($E$14:$E$23,$M15,$H$14:$H$23)/2) -> 0 | O15: =N15 -> 0 | Q15: ="Validación de "&M38 -> Validación de (Au.) -Auxiliar Pregrado | S15: Ajustado por adenda no 2
B16: 3 | D16: =D15 -> 1,67… | E16: 0 | F16: 0 | G16: 0 | H16: 0 | I16: 0 | J16: =J15+$J$13 -> 17 | L16: 2 | M16: Doc. Carrera MT | N16: =(SUMIF($E$14:$E$23,$M16,$H$14:$H$23)/2) -> 0 | O16: =N16 -> 0 | Q16: Parte | R16: Cntidad | S16: por uno solo | T16: Debe ser | U16: Error de Asistente
B17: 4 | D17: 1,67… | E17: 0 | F17: 0 | G17: 0 | H17: 0 | I17: 0 | J17: 21 | L17: 3 | M17: Doc. Ocasional | N17: =SUMIF($E$14:$E$23,$M17,$H$14:$H$23) -> 0 | O17: 0 | Q17: No de AU Preg | R17: =COUNTIF($E$29:$E$44,$M$38) -> 0 | T17: 1 | U17: 0 | X17: 25 | Y17: 0.1 | AA17: 0.05
B18: 5 | D18: 1,67… | E18: 0 | F18: 0 | G18: 0 | H18: 0 | I18: 0 | J18: 25 | L18: 1 | M18: Contrapartida Facultad IMP: | N18: =SUM(N15:N17) -> 0 | O18: =SUM(O15:O17) -> 0 | Q18: No Horas | R18: =SUMIF($E$29:$E$43,$M$38,G29:G43) -> 0 | S18: =IFERROR(R18/R17,0) -> 0 | T18: 20 | U18: =IF(S18<=T18,0,1) -> 0 | X18: 50 | Y18: 0.1 | AA18: 0.1
B19: 6 | D19: 1,67… | E19: 0 | F19: 0 | G19: 0 | H19: 0 | I19: 0 | J19: 29 | L19: 2 | M19: Contrapartida Facultad INV: | N19: =SUM(N15:O17) -> 0 | Q19: No Meses | R19: =SUMIF($E$29:$E$43,$M$38,F29:F43) -> 0 | S19: =IFERROR(R19/R17,0) -> 0 | T19: 6 | U19: =IF(S19=T19,0,1) -> 1 | X19: 75 | Y19: 0.1 | AA19: 0.15
B20: 7 | D20: 1,67… | E20: 0 | F20: 0 | G20: 0 | H20: 0 | I20: 0 | J20: 33 | T20: Si es Mas de 1 tiene problema en Auxiliar de pregrado --->> | U20: =SUM(U17:U19) -> 1 | X20: 100 | Y20: 0.1 | AA20: 0.15
B21: 8 | D21: 1,67… | E21: 0 | F21: 0 | G21: 0 | H21: 0 | I21: 0 | J21: 37 | Q21: Estiimulo a estudiantes | S21: =INT(N2/1000000) -> 15 | T21: =SUM(R36:R40) -> 0 | U21: =T21/N2 -> 0 | X21: 250 | Y21: 0.1 | AA21: 0.15
B22: 9 | D22: 1,67… | E22: 0 | F22: 0 | G22: 0 | H22: 0 | I22: 0 | J22: 41 | Q22: Limite inferior de estimulo a estudiantes | T22: =(S21*1000000)*U22 -> 1350000 | U22: 0.09
B23: 10 | D23: 1,67… | E23: 0 | F23: 0 | G23: 0 | H23: 0 | I23: 0 | J23: 45 | T23: =ABS(T22-T21) -> 1350000
C24: Sumatoria del calculo de personal de planta "Valor contrapartida Facultades":Diligenciado VICEIN | H24: =IFERROR(INT(SUBTOTAL(109,H14:H23)),0) -> 0 | I24: Integrantes! | M24: Incremento al salario
M25: 0 | P25: =(J26/6)/6 -> 0
B26: b. | C26: Asistentes externos o temporales contratados OPS y Estimulo Estudiantes. | K26: =IFERROR(VLOOKUP($E26,Dt_OPS,3,0)/10,0) -> 0 | M26: Valor SMLV | N26: Max Mes
B27: > | C27: Salario Mínimo Legal Vigente (SMIV) : | F27: 1000000 | M27: =F27*(1+M25) -> 1000000 | N27: =INT(Integrantes!J6/10)*10 -> 10
A29: =ROW() -> 29 | B29: No | C29: Valor mensual | D29: Factor Salarial | E29: Tipo de vinculación | F29: ="Numero de meses" -> Numero de meses | G29: Número Horas / Semanal | H29: Valor total | I29: Valores de entidades externas | J29: Máximos | K29: (Au.) | L29: No | M29: Tipo | N29: Valor total del contrato (10 mes) | O29: SMMLV por 10 Meses | P29: Valor mes contrato | Q29: Hay | R29: Hay en $ | V29: Valor mes contrato | X29: Va desde hasta | Y29: Salarios Minimos | AA29: Figuras | AB29: arranca desde | AC29: Maximo Factor
B30: =ROW()-$A$29 -> 1 | C30: =IFERROR(H30/F30,0) -> 0 | D30: =IFERROR(VLOOKUP($E30,Dt_OPS,3,0)/10,0) -> 0 | F30: 10 | G30: No Aplica | H30: =INT(IF($E30=$M$38,J30,$F$27*D30*F30)) -> 0 | J30: =IF($E30=$M$38,K30,IFERROR(VLOOKUP($E30,$M$29:$O$40,2,0),0)*IF($H$10="IMP",2,1)) -> 0 | K30: =IFERROR(IF(FIND($K$29,$E30,1)=1,VLOOKUP($E30,$M$38:$AC$40,2,0),0),0)/IF($E30=$M$38,10,1) -> 0 | L30: 1 | M30: (A.I.) -Técnico | N30: =$M$27*O30 -> 10000000 | O30: 10 | P30: =N30/10 -> 1000000 | Q30: =COUNTIF($E$29:$E$44,$M30) -> 0 | R30: =SUMIF($E$30:$E$44,$M30,$H$30:$H$44) -> 0 | V30: 1475434 | X30: ="Y"&ROW() -> Y30 | Y30: 6 | AA30: =E30 -> 0 | AB30: =IFERROR(VLOOKUP($AA30,$M$29:$S$40,7,0)/10,0) -> 0 | AC30: =IFERROR(VLOOKUP($AA30,$M$29:$R$40,3,0)/IF($AA30=$M$38,6,10),0) -> 0
B31: =ROW()-$A$29 -> 2 | C31: =IFERROR(H31/F31,0) -> 0 | D31: 0 | F31: 10 | G31: No Aplica | H31: =INT(IF($E31=$M$38,J31,$F$27*D31*F31)) -> 0 | J31: =IF($E31=$M$38,K31,IFERROR(VLOOKUP($E31,$M$29:$O$40,2,0),0)*IF($H$10="IMP",2,1)) -> 0 | K31: =IFERROR(IF(FIND($K$29,$E31,1)=1,VLOOKUP($E31,$M$38:$AC$40,2,0),0),0)/IF($E31=$M$38,10,1) -> 0 | L31: 2 | M31: (A.I.) -Profesional | N31: 15000000 | O31: 15 | P31: 1500000 | Q31: 0 | R31: 0 | V31: 2582009.5 | X31: ="Y"&ROW() -> Y31 | Y31: =Y30-0.5 -> 5.5 | AA31: =E31 -> 0 | AB31: =IFERROR(VLOOKUP($AA31,$M$29:$S$40,7,0)/10,0) -> 0 | AC31: =IFERROR(VLOOKUP($AA31,$M$29:$R$40,3,0)/IF($AA31=$M$38,6,10),0) -> 0
B32: 3 | C32: 0 | D32: 0 | F32: 10 | G32: No Aplica | H32: 0 | J32: 0 | K32: 0 | L32: 3 | M32: (A.I.) -Profesional especilizado | N32: 18000000 | O32: 18 | P32: 1800000 | Q32: 0 | R32: 0 | V32: 2950868 | X32: Y32 | Y32: =Y31-0.5 -> 5 | AA32: 0 | AB32: 0 | AC32: 0
B33: 4 | C33: 0 | D33: 0 | F33: 10 | G33: No Aplica | H33: 0 | J33: 0 | K33: 0 | L33: 4 | M33: (A.I.) -Profesional magister | N33: 20000000 | O33: 20 | P33: 2000000 | Q33: 0 | R33: 0 | V33: 3319726.5 | X33: Y33 | Y33: 4.5 | AA33: 0 | AB33: 0 | AC33: 0
B34: 5 | C34: 0 | D34: 0 | F34: 10 | G34: No Aplica | H34: 0 | J34: 0 | K34: 0 | L34: 5 | M34: (A.I.) -Profesional doctorado | N34: 30000000 | O34: 30 | P34: 3000000 | Q34: 0 | R34: 0 | V34: 4057443.5 | X34: Y34 | Y34: 4 | AA34: 0 | AB34: 0 | AC34: 0
B35: 6 | C35: 0 | D35: 0 | F35: 10 | G35: No Aplica | H35: 0 | J35: 0 | K35: 0 | L35: 6 | M35: (J.I) -Joven investigador | N35: 20000000 | O35: 20 | P35: 2000000 | Q35: 0 | R35: 0 | V35: 2582009.5 | X35: Y35 | Y35: 3.5 | AA35: 0 | AB35: 0 | AC35: 0
B36: 7 | C36: 0 | D36: 0 | F36: 10 | G36: No Aplica | H36: 0 | J36: 0 | K36: 0 | L36: 7 | M36: (A.G) -Asistente graduado Mg. | N36: 25000000 | O36: 25 | P36: 2500000 | Q36: 0 | R36: 0 | V36: 3688585 | X36: Y36 | Y36: 3 | AA36: 0 | AB36: 0 | AC36: 0
B37: 8 | C37: 0 | D37: 0 | F37: 10 | G37: No Aplica | H37: 0 | J37: 0 | K37: 0 | L37: 8 | M37: (A.G) -Asistente graduado Dr. | N37: 45000000 | O37: 45 | P37: 4500000 | Q37: 0 | R37: 0 | V37: 5164019 | X37: Y37 | Y37: 2.5 | AA37: 0 | AB37: 0 | AC37: 0
B38: 9 | C38: 0 | D38: 0 | F38: 10 | G38: No Aplica | H38: 0 | J38: 0 | K38: 0 | L38: 9 | M38: (Au.) -Auxiliar Pregrado | N38: 30000000 | O38: 30 | P38: =F27*3 -> 3000000 | Q38: 0 | R38: 0 | V38: NA | X38: Y38 | Y38: 2 | AA38: 0 | AB38: 0 | AC38: 0
B39: 10 | C39: 0 | D39: 0 | F39: 10 | G39: No Aplica | H39: 0 | J39: 0 | K39: 0 | L39: 10 | M39: (Au.) -Auxiliar Postgrado Mg. | N39: 15000000 | O39: 15 | P39: =N39/5 -> 3000000 | Q39: 0 | R39: 0 | V39: NA | X39: Y39 | Y39: 1.5 | AA39: =E39 -> 0 | AB39: 0 | AC39: 0
B40: 11 | C40: 0 | D40: 0 | F40: 10 | G40: No Aplica | H40: 0 | J40: 0 | K40: 0 | L40: 11 | M40: (Au.) -Auxiliar Postgrado Dr. | N40: 25000000 | O40: 25 | P40: =N40/5 -> 5000000 | Q40: 0 | R40: 0 | V40: NA | X40: Y40 | Y40: 1 | AA40: =E40 -> 0 | AB40: 0 | AC40: 0
B41: 12 | C41: 0 | D41: 0 | F41: 10 | G41: No Aplica | H41: 0 | J41: 0 | K41: 0 | N41: Salario 12 meses | X41: Y41 | Y41: 0.5 | AA41: =E41 -> 0 | AB41: 0 | AC41: 0
B42: 13 | C42: 0 | D42: 0 | F42: 10 | G42: No Aplica | H42: 0 | J42: 0 | K42: 0 | AA42: =E42 -> 0 | AB42: 0 | AC42: 0
B43: 14 | C43: 0 | D43: 0 | F43: 0 | G43: No Aplica | H43: 0 | J43: 0 | K43: 0 | M43: Joven investigador Colciencias | N43: =M27*3*12 -> 36000000 | AA43: =E43 -> 0 | AB43: 0 | AC43: 0
B44: =14-COUNTIF(E30:E43,"") -> 0 | C44: Sumatoria del cálculo de OPS "Valor financiado Vicein" en rubro de (Personal): | G44: =IF(H44>N2,"Esta superando el total de presupuesto","") ->  | H44: =IFERROR(INT(SUM(H30:H43)),0) -> 0 | I44: 0 | J44: =IFERROR(VLOOKUP($E44,$M$29:$O$40,2,0),0)*IF($H$10="IMP",2,1) -> 0
M45: =VLOOKUP("Presupuesto",DT_Errores,3,0) -> Error : 004.- No cumple mínimo exigido para el rubro de estímulo a estudiantes. Pendiente asignar al rubro $ 1.350.000
A46: 13.- | B46: Presupuesto detalle de Plan de compras general .- La siguiente tabla debe diligenciarse manualmente ya que no arrastra informacion de otros campos
B48: =IFERROR("Nota : "&VLOOKUP(I10,Dt_Limite,3,0)," ") ->  | N48: Total Solicitado :===> | P48: =IF(G87=0,P50,G87) -> 15000000
L49: Consulte sobre los items
A50: =ROW() -> 50 | B50: No | C50: Rubro / Destino | D50: Año de Vigencia | E50: Descripción (Entidad- | G50: Finaciación Vicein $ | H50: =G94 -> $ Contrapartida Facultad | I50: Contrapartida Otros $ | L50: No | M50: Nombre Rubro | N50: Rubro | O50: Limite% | P50: =N2 -> 15000000 | Q50: Solicitado $Vicein | R50: Limites de topes
B51: =ROW()-$A$50 -> 1 | C51: Personal | D51: 1 | E51: Contrapartida definida por VICEIN (No Habilitado) | G51: 0 | H51: =IF(H10="INV",N19,N18) -> 0 | L51: =ROW()-50 -> 1 | M51: Personal | N51: 611401 | O51: 1 | P51: =SUMIF($C$50:$C$86,$M51,$G$50:$G$86) -> 0 | Q51: =P51/$P$50 -> 0 | R51: =($P$50/100)*O51*100 -> 15000000
B52: =ROW()-$A$50 -> 2 | D52: 1 | L52: =ROW()-50 -> 2 | M52: Equipos | N52: 632 | O52: 0.15 | P52: 0 | Q52: =P52/$P$48 -> 0 | R52: =($P$48/100)*O52*100 -> 2250000
B53: 3 | D53: 1 | L53: 3 | M53: Equipos en proceso | N53: 632 | O53: 1 | P53: 0 | Q53: 0 | R53: 15000000
B54: 4 | D54: 1 | L54: 4 | M54: Software | N54: 612102 | O54: 1 | P54: 0 | Q54: 0 | R54: 15000000
B55: 5 | D55: 1 | L55: 5 | M55: Materiales | N55: 612101 | O55: 1 | P55: 0 | Q55: 0 | R55: 15000000
B56: 6 | D56: 1 | L56: 6 | M56: Materiales (Papelería) | N56: 612101 | O56: 0.01 | P56: 0 | Q56: =P56/$P$48 -> 0 | R56: =($P$48/100)*O56*100 -> 150000
B57: 7 | D57: 1 | L57: 7 | M57: Salidas de Campo | N57: 612104 | O57: 0.1 | P57: 0 | Q57: =P57/$P$48 -> 0 | R57: 1500000
B58: 8 | D58: 1 | L58: 8 | M58: Servicios Técnicos | N58: 612103 | O58: 1 | P58: 0 | Q58: 0 | R58: 15000000
B59: 9 | D59: 1 | L59: 9 | M59: Recursos Biblograficos | N59: 633 | O59: 1 | P59: 0 | Q59: 0 | R59: 15000000
B60: 10 | D60: 1 | L60: 10 | M60: Estímulo a estudiantes Pregrado | N60: Pendiente | O60: 1 | P60: 0 | Q60: =P60/$P$48 -> 0 | R60: =($P$48/100)*O60*100 -> 15000000
B61: 11 | D61: 1 | L61: 11 | M61: Estímulo a estudiantes Posgrado | N61: Pendiente | O61: 1 | P61: 0 | Q61: 0 | R61: 15000000
B62: 12 | D62: 1 | L62: 12 | M62: Movilidad | N62: 635020 | O62: 0.05 | P62: 0 | Q62: =P62/$P$48 -> 0 | R62: =($P$48/100)*O62*100 -> 750000
B63: 13 | D63: 1 | L63: 13 | M63: Licencias por suscripción | N63: Pendiente | O63: 1 | P63: 0 | Q63: 0 | R63: 15000000
B64: 14 | D64: 1 | L64: 14 | M64: Viajes | Q64: 0
B65: 15 | D65: 1 | L65: 15 | M65: Mantenimiento | Q65: 0
B66: 16 | D66: 1 | L66: 16 | M66: Administración | Q66: 0
B67: 17 | D67: 1 | L67: 17 | M67: Construcciones | Q67: 0
B68: 18 | D68: 1 | L68: 18 | M68: Otros Gastos | Q68: 0
B69: 19 | D69: 1 | M69: Si cambio
B70: 20 | D70: 1
B71: 21 | D71: 1
B72: 22 | D72: 1
B73: 23 | D73: 1 | L73: Cuadro de Validaciones Prespuestales
B74: 24 | D74: 1 | L74: c | M74: Descripcion | N74: Descrip 2 | O74: Detalles | P74: Valor 1 | Q74: Valor 2
B75: 25 | D75: 1 | L75: 1A | M75: Personal de estimulo a estudiantes | O75: Sumatoria :=> | P75: =SUM(P60:P61) -> 0 | Q75: =P75/P76 -> 0
B76: 26 | D76: 1 | L76: 1B | M76: Personal de estimulo a estudiantes | O76: Minimo por tope | P76: =N2*0.09 -> 1350000 | Q76: =P76-P75 -> 1350000
B77: 27 | D77: 1 | L77: 2a | M77: Diferencias personal OPS o Contratos y plan compras | O77: se debe cargar todo | P77: =INT(H44) -> 0 | Q77: =INT(SUM(P51,P60:P61)) -> 0 | R77: =P77-Q77 -> 0
B78: 28 | D78: 1 | L78: 3a | M78: Maximo en Equipos | P78: =P52-R52 -> -2250000 | Q78: =Q52 -> 0
B79: 29 | D79: 1 | L79: 4a | M79: Maximo en Papaleria | P79: =P56-R56 -> -150000 | Q79: =Q56 -> 0
B80: 30 | D80: 1 | L80: 5a | M80: Maximo en salida de campo | P80: =P57-R57 -> -1500000 | Q80: =Q57 -> 0
B81: 31 | D81: 1 | L81: 6a | M81: Maximo en Movilidad | P81: =P62-R62 -> -750000 | Q81: =Q62 -> 0
B82: 32 | D82: 1 | L82: 7a | M82: Diferencia entre Pregrado - y Postgrado | P82: =SUM(R39:R40) -> 0 | Q82: =P61 -> 0
B83: 33 | D83: 1
B84: 34 | D84: 1
B85: 35 | D85: 1
C87: Sumatoria general de plan de compras : | F87: =SUM(G87:I87) -> 0 | G87: =SUM(G88:G89) -> 0 | H87: =SUM(H88:H89) -> 0 | I87: =SUM(I88:I89) -> 0
D88: 1 | E88: ="Total Presupuesto Año 1 "&IF(H10="IMP","IMP","")&":" -> Total Presupuesto Año 1 : | G88: =IF(Cel_TP="IMP",SUMIF($D$51:$D$86,$D88,G$51:G$86),SUM(G$51:G$86))-S74 -> 0 | H88: =SUMIF($D$51:$D$86,$D88,H$51:H$86) -> 0 | I88: =SUMIF($D$51:$D$86,$D88,I$51:I$86) -> 0
D89: 2 | E89: Total Presupuesto Año 2 (IMP) : | G89: =IF(H10="INV",0,SUMIF($D$51:$D$86,$D89,G$51:G$86)) -> 0 | H89: =IF(H10="INV",0,SUMIF($D$51:$D$86,$D89,H$51:H$86)) -> 0 | I89: =IF(H10="INV",0,SUMIF($D$51:$D$86,$D89,I$51:I$86)) -> 0
C90: Firma :_______________ | E90: =IF(G90>0,"Presupuesto por definir."," Error - Supero el presupuesto en : ") -> Presupuesto por definir. | G90: =E141-G87 -> 15000000
D91: =IF(H10="INV",1,2) -> 1 | E91: Límite de presupuesto VICEIN por año : | G91: =IFERROR(IF($H$10="IMP",$P$6/2,$N$2),"0") -> 15000000
B94: No | C94: Rubro | D94: % | E94: Porcentaje | F94: $ Financiación solicitada a VICEIN | G94: $ Contrapartida Facultad | H94: $ Contrapartida Externa | I94: $ Total Rubro | J94: 0
B95: 1 | C95: =C97 -> Personal | D95: =IFERROR(F95/F97,0) -> 0 | E95: =D95 -> 0 | F95: =SUMIFS(G$50:G$86,$C$50:$C$86,$C95,$D$50:$D$86,$J95) -> 0 | G95: 0 | H95: 0 | I95: =SUM(F95:H95) -> 0 | J95: 1 | K95: =IFERROR(VLOOKUP($B93,$L$50:$Q$68,4,0),0) -> 0
B96: 1 | C96: =C97 -> Personal | D96: =IFERROR(F95/F97,0) -> 0 | E96: 0 | F96: 0 | G96: 0 | H96: 0 | I96: 0 | J96: 2 | T96: =SUM(I141) -> 0 | U96: =S96-T96 -> 0
B97: 1 | C97: =M51 -> Personal | D97: =IFERROR(VLOOKUP($B97,Dt_TblaPresu,6,0),0) -> 0 | E97: 0 | F97: =SUM(F95:F96) -> 0 | G97: =SUM(G95:G96) -> 0 | H97: =SUM(H95:H96) -> 0 | I97: 0 | J97: 3 | K97: =IFERROR(VLOOKUP($B95,$L$50:$Q$68,4,0),0) -> 1
B98: =B95+1 -> 2 | C98: =C100 -> Equipos | D98: =IFERROR(F98/F100,0) -> 0 | E98: 0 | F98: =SUMIFS(G$50:G$86,$C$50:$C$86,$C98,$D$50:$D$86,$J98) -> 0 | G98: 0 | H98: 0 | I98: 0 | J98: =J95 -> 1 | K98: =IFERROR(VLOOKUP($B96,$L$50:$Q$68,4,0),0) -> 1
B99: =B96+1 -> 2 | C99: =C100 -> Equipos | D99: =IFERROR(F98/F100,0) -> 0 | E99: 0 | F99: 0 | G99: 0 | H99: 0 | I99: 0 | J99: =J96 -> 2 | K99: 1
B100: 2 | C100: =M52 -> Equipos | D100: =IFERROR(VLOOKUP($B100,$L$50:$Q$68,6,0),0) -> 0 | E100: 0 | F100: =SUM(F98:F99) -> 0 | G100: =SUM(G98:G99) -> 0 | H100: =SUM(H98:H99) -> 0 | I100: 0 | J100: =J97 -> 3 | K100: 0.15
B101: 3 | C101: =C103 -> Equipos en proceso | D101: =IFERROR(F101/F103,0) -> 0 | E101: 0 | F101: =SUMIFS(G$50:G$86,$C$50:$C$86,$C101,$D$50:$D$86,$J101) -> 0 | G101: 0 | H101: 0 | I101: 0 | J101: 1 | K101: 0.15
B102: 3 | C102: =C103 -> Equipos en proceso | D102: =IFERROR(F101/F103,0) -> 0 | E102: 0 | F102: 0 | G102: 0 | H102: 0 | I102: 0 | J102: 2 | K102: 0.15
B103: 3 | C103: =M53 -> Equipos en proceso | D103: =IFERROR(VLOOKUP($B103,$L$50:$Q$68,6,0),0) -> 0 | E103: 0 | F103: =SUM(F101:F102) -> 0 | G103: =SUM(G101:G102) -> 0 | H103: =SUM(H101:H102) -> 0 | I103: 0 | J103: 3 | K103: 1
B104: 4 | C104: =C106 -> Software | D104: =IFERROR(F104/F106,0) -> 0 | E104: 0 | F104: =SUMIFS(G$50:G$86,$C$50:$C$86,$C104,$D$50:$D$86,$J104) -> 0 | G104: 0 | H104: 0 | I104: 0 | J104: 1 | K104: 1
B105: 4 | C105: =C106 -> Software | D105: =IFERROR(F104/F106,0) -> 0 | E105: 0 | F105: 0 | G105: 0 | H105: 0 | I105: 0 | J105: 2 | K105: 1
B106: 4 | C106: =M54 -> Software | D106: =IFERROR(VLOOKUP($B106,$L$50:$Q$68,6,0),0) -> 0 | E106: 0 | F106: =SUM(F104:F105) -> 0 | G106: =SUM(G104:G105) -> 0 | H106: =SUM(H104:H105) -> 0 | I106: 0 | J106: 3 | K106: 1
B107: 5 | C107: =C109 -> Materiales | D107: =IFERROR(F107/F109,0) -> 0 | E107: 0 | F107: =SUMIFS(G$50:G$86,$C$50:$C$86,$C107,$D$50:$D$86,$J107) -> 0 | G107: 0 | H107: 0 | I107: 0 | J107: 1 | K107: 1
B108: 5 | C108: =C109 -> Materiales | D108: =IFERROR(F107/F109,0) -> 0 | E108: 0 | F108: 0 | G108: 0 | H108: 0 | I108: 0 | J108: 2 | K108: 1
B109: 5 | C109: =M55 -> Materiales | D109: =IFERROR(VLOOKUP($B109,$L$50:$Q$68,6,0),0) -> 0 | E109: 0 | F109: =SUM(F107:F108) -> 0 | G109: =SUM(G107:G108) -> 0 | H109: =SUM(H107:H108) -> 0 | I109: 0 | J109: 3 | K109: 1
B110: 6 | C110: =C112 -> Materiales (Papelería) | D110: =IFERROR(F110/F112,0) -> 0 | E110: 0 | F110: =SUMIFS(G$50:G$86,$C$50:$C$86,$C110,$D$50:$D$86,$J110) -> 0 | G110: 0 | H110: 0 | I110: 0 | J110: 1 | K110: 1
B111: 6 | C111: =C112 -> Materiales (Papelería) | D111: =IFERROR(F110/F112,0) -> 0 | E111: 0 | F111: 0 | G111: 0 | H111: 0 | I111: 0 | J111: 2 | K111: 1
B112: 6 | C112: =M56 -> Materiales (Papelería) | D112: =IFERROR(VLOOKUP($B112,$L$50:$Q$68,6,0),0) -> 0 | E112: 0 | F112: =SUM(F110:F111) -> 0 | G112: =SUM(G110:G111) -> 0 | H112: =SUM(H110:H111) -> 0 | I112: 0 | J112: 3 | K112: 0.01
B113: 7 | C113: =C115 -> Salidas de Campo | D113: =IFERROR(F113/F115,0) -> 0 | E113: 0 | F113: =SUMIFS(G$50:G$86,$C$50:$C$86,$C113,$D$50:$D$86,$J113) -> 0 | G113: 0 | H113: 0 | I113: 0 | J113: 1 | K113: 0.01
B114: 7 | C114: =C115 -> Salidas de Campo | D114: =IFERROR(F113/F115,0) -> 0 | E114: 0 | F114: 0 | G114: 0 | H114: 0 | I114: 0 | J114: 2 | K114: 0.01
B115: 7 | C115: =M57 -> Salidas de Campo | D115: =IFERROR(VLOOKUP($B115,$L$50:$Q$68,6,0),0) -> 0 | E115: 0 | F115: =SUM(F113:F114) -> 0 | G115: =SUM(G113:G114) -> 0 | H115: =SUM(H113:H114) -> 0 | I115: 0 | J115: 3 | K115: 0.1
B116: 8 | C116: =C118 -> Servicios Técnicos | D116: =IFERROR(F116/F118,0) -> 0 | E116: 0 | F116: =SUMIFS(G$50:G$86,$C$50:$C$86,$C116,$D$50:$D$86,$J116) -> 0 | G116: 0 | H116: 0 | I116: 0 | J116: 1 | K116: 0.1
B117: 8 | C117: =C118 -> Servicios Técnicos | D117: =IFERROR(F116/F118,0) -> 0 | E117: 0 | F117: 0 | G117: 0 | H117: 0 | I117: 0 | J117: 2 | K117: 0.1 | M117: La siguiente tabla de plan de compras debe diligenciarse manualmente ya que no arrastra informacion de otros campos exceptuando la parte de contrapartida
B118: 8 | C118: =M58 -> Servicios Técnicos | D118: =IFERROR(VLOOKUP($B118,$L$50:$Q$68,6,0),0) -> 0 | E118: 0 | F118: =SUM(F116:F117) -> 0 | G118: =SUM(G116:G117) -> 0 | H118: =SUM(H116:H117) -> 0 | I118: 0 | J118: 3 | K118: 1
B119: 9 | C119: =C121 -> Recursos Biblograficos | D119: =IFERROR(F119/F121,0) -> 0 | E119: 0 | F119: =SUMIFS(G$50:G$86,$C$50:$C$86,$C119,$D$50:$D$86,$J119) -> 0 | G119: 0 | H119: 0 | I119: 0 | J119: 1 | K119: 1
B120: 9 | C120: =C121 -> Recursos Biblograficos | D120: =IFERROR(F119/F121,0) -> 0 | E120: 0 | F120: 0 | G120: 0 | H120: 0 | I120: 0 | J120: 2 | K120: 1
B121: 9 | C121: =M59 -> Recursos Biblograficos | D121: =IFERROR(VLOOKUP($B121,$L$50:$Q$68,6,0),0) -> 0 | E121: 0 | F121: =SUM(F119:F120) -> 0 | G121: =SUM(G119:G120) -> 0 | H121: =SUM(H119:H120) -> 0 | I121: 0 | J121: 3 | K121: 1
B122: 10 | C122: =C124 -> Estímulo a estudiantes Pregrado | D122: =IFERROR(F122/F124,0) -> 0 | E122: =D122 -> 0 | F122: =SUMIFS(G$50:G$86,$C$50:$C$86,$C122,$D$50:$D$86,$J122) -> 0 | G122: 0 | H122: 0 | I122: =SUM(F122:H122) -> 0 | J122: =J119 -> 1 | K122: 1
B123: 10 | C123: =C124 -> Estímulo a estudiantes Pregrado | D123: =IFERROR(F122/F124,0) -> 0 | E123: 0 | F123: 0 | G123: 0 | H123: 0 | I123: =SUM(F123:H123) -> 0 | J123: 2 | K123: 1
B124: 10 | C124: =M60 -> Estímulo a estudiantes Pregrado | D124: =IFERROR(VLOOKUP($B122,$L$50:$Q$68,6,0),0) -> 0 | E124: =D124 -> 0 | F124: =SUM(F122:F123) -> 0 | G124: =SUM(G122:G123) -> 0 | H124: =SUM(H122:H123) -> 0 | I124: =SUM(F124:H124) -> 0 | J124: 3 | K124: 1
B125: 11 | C125: =C127 -> Estímulo a estudiantes Posgrado | D125: =IFERROR(F125/F127,0) -> 0 | E125: 0 | F125: =SUMIFS(G$50:G$86,$C$50:$C$86,$C125,$D$50:$D$86,$J125) -> 0 | G125: 0 | H125: 0 | I125: 0 | J125: 1 | K125: 1
B126: 11 | C126: =C127 -> Estímulo a estudiantes Posgrado | D126: =IFERROR(F125/F127,0) -> 0 | E126: 0 | F126: 0 | G126: 0 | H126: 0 | I126: 0 | J126: 2 | K126: 1
B127: 11 | C127: =M61 -> Estímulo a estudiantes Posgrado | D127: =IFERROR(VLOOKUP($B125,$L$50:$Q$68,6,0),0) -> 0 | E127: =D127 -> 0 | F127: =SUM(F125:F126) -> 0 | G127: =SUM(G125:G126) -> 0 | H127: =SUM(H125:H126) -> 0 | I127: 0 | J127: 3 | K127: 1
B128: 12 | C128: =C130 -> Movilidad | D128: =IFERROR(VLOOKUP($B126,$L$50:$Q$68,6,0),0) -> 0 | E128: 0 | F128: =SUMIFS(G$50:G$86,$C$50:$C$86,$C128,$D$50:$D$86,$J128) -> 0 | G128: 0 | H128: 0 | I128: =SUM(F128:H128) -> 0 | J128: =J119 -> 1 | K128: 1
B129: 11 | C129: =C130 -> Movilidad | D129: 0 | E129: 0 | F129: 0 | G129: 0 | H129: 0 | I129: =SUM(F129:H129) -> 0 | J129: 2 | K129: 1
B130: 11 | C130: =M62 -> Movilidad | D130: 0 | E130: =D130 -> 0 | F130: =SUM(F128:F129) -> 0 | G130: =SUM(G128:G129) -> 0 | H130: =SUM(H128:H129) -> 0 | I130: =SUM(F130:H130) -> 0 | J130: 3 | K130: 0.05
B131: 13 | C131: =C133 -> Licencias por suscripción | D131: 0 | E131: 0 | F131: =SUMIFS(G$50:G$86,$C$50:$C$86,$C131,$D$50:$D$86,$J131) -> 0 | G131: 0 | H131: 0 | I131: 0 | J131: 1 | K131: 1
B132: 12 | C132: =C133 -> Licencias por suscripción | D132: 0 | E132: 0 | F132: 0 | G132: 0 | H132: 0 | I132: 0 | J132: 2 | K132: 1
B133: 12 | C133: =M63 -> Licencias por suscripción | D133: 0 | E133: 0 | F133: =SUM(F131:F132) -> 0 | G133: =SUM(G131:G132) -> 0 | H133: =SUM(H131:H132) -> 0 | I133: 0 | J133: 3 | K133: 1
B134: 13 | C134: Viajes | F134: =SUMIFS(G$50:G$86,$C$50:$C$86,$C134,$D$50:$D$86,$J134) -> 0 | G134: =SUMIFS(H$50:H$86,$C$50:$C$86,$C134) -> 0 | H134: =SUMIFS(I$50:I$86,$C$50:$C$86,$C134) -> 0 | I134: 0 | J134: =J133 -> 3
B135: 14 | C135: Mantenimiento | F135: =SUMIFS(G$50:G$86,$C$50:$C$86,$C135,$D$50:$D$86,$J135) -> 0 | G135: =SUMIFS(H$50:H$86,$C$50:$C$86,$C135) -> 0 | H135: 0 | I135: 0 | J135: =J134 -> 3
B136: 15 | C136: Administración | F136: =SUMIFS(G$50:G$86,$C$50:$C$86,$C136,$D$50:$D$86,$J136) -> 0 | G136: 0 | H136: 0 | I136: 0 | J136: =J135 -> 3
B137: 16 | C137: Construcciones | F137: =SUMIFS(G$50:G$86,$C$50:$C$86,$C137,$D$50:$D$86,$J137) -> 0 | G137: 0 | H137: 0 | I137: 0 | J137: =J136 -> 3
B138: 17 | C138: Otros Gastos | F138: =SUMIFS(G$50:G$86,$C$50:$C$86,$C138,$D$50:$D$86,$J138) -> 0 | G138: 0 | H138: 0 | I138: 0 | J138: =J137 -> 3
B139: T1 | C139: $ Total General (Año 1) | F139: =SUMIFS(F$95:F$138,$J$95:$J$138,$J139) -> 0 | G139: =SUMIFS(G$95:G$138,$J$95:$J$138,$J139)+SUM(G134:G138) -> 0 | H139: =SUMIFS(H$95:H$138,$J$95:$J$138,$J139) -> 0 | I139: 0 | J139: 1
B140: T2 | C140: $ Total General (Año 2) | F140: =SUMIFS(F$95:F$138,$J$95:$J$138,$J140) -> 0 | G140: =SUMIFS(G$95:G$138,$J$95:$J$138,$J140) -> 0 | H140: =SUMIFS(H$95:H$138,$J$95:$J$138,$J140) -> 0 | I140: 0 | J140: 2
B141: T3 | C141: ="TotalesPlan compras - (máximo):" -> TotalesPlan compras - (máximo): | E141: =N2 -> 15000000 | F141: =SUMIFS(F$95:F$138,$J$95:$J$138,$J141) -> 0 | G141: =SUMIFS(G$95:G$138,$J$95:$J$138,$J141) -> 0 | H141: =SUMIFS(H$95:H$138,$J$95:$J$138,$J141) -> 0 | I141: 0 | J141: 3
B143: Nombre Institución Externa : | E143: =IF(General!I30>0,CLEAN(K143)," ") ->  | J143: =General!I30 -> 0 | K143: =General!O63 -> 
D145: Propuesta: | E145: =D7 -> Formato: actualizado a 08 Abr 2022
C147: Firma de responsable
C152: *Pueden Ocultar las Filas que no se utilicen ( Favor no eliminar filas).
C153: ** en el caso de necesitar mas filas en el plan de compras (Comunicarse con la VICEIN para que se pueda realizar el ajuste)

Sheet Bibliografía
A1: 12 | G1: *Pueden Ocultar las Filas que no se utilicen.
C2: =General!B2 -> PRESENTACIÓN DE PROYECTOS DE INVESTIGACIÓN | D2: =General!$H$2 -> Fecha de Emisión: 2019/03/18 | E2: =General!$I$2 -> IN-IV-F-14
D3: =General!$H$3 -> Revisión N°: 4 | E3: ="Página "&$A$1&" de "&Dt_TPG -> Página 12 de 11 | G3: =SUM(G7:G3500) -> 0 | H3: <== Total de palabras
A5: 15.- | B5: # | C5: Bibliografía de la propuesta. | G5: Largo
B7: =ROW()-6 -> 1 | G7: =IF(C7="",0,LEN(TRIM(C7))-LEN(SUBSTITUTE(TRIM(C7)," ",""))+1) -> 0
B8: =ROW()-6 -> 2 | G8: =IF(C8="",0,LEN(TRIM(C8))-LEN(SUBSTITUTE(TRIM(C8)," ",""))+1) -> 0
B9: 3 | G9: 0
B10: 4 | G10: 0
B11: 5 | G11: 0
B12: 6 | G12: 0
B13: 7 | G13: 0
B14: 8 | G14: 0
B15: 9 | G15: 0
B16: 10 | G16: 0
B17: 11 | G17: 0
B18: 12 | G18: 0
B19: 13 | G19: 0
B20: 14 | G20: 0
B21: 15 | G21: 0
B22: 16 | G22: 0
B23: 17 | G23: 0
B24: 18 | G24: 0
B25: 19 | G25: 0
B26: 20 | G26: 0
B27: 21 | G27: 0
B28: 22 | G28: 0
B29: 23 | G29: 0
B30: 24 | G30: 0
B31: 25 | G31: 0
B32: 26 | G32: 0
B33: 27 | G33: 0
B34: 28 | G34: 0
B35: 29 | G35: 0
B39: *Pueden Ocultar las Filas que no se utilicen ( Favor no eliminar filas).

Sheet Impactos
A1: 10 | I1: *Pueden Ocultar las Filas que no se utilicen.
C2: =General!B2 -> PRESENTACIÓN DE PROYECTOS DE INVESTIGACIÓN | F2: =General!$H$2 -> Fecha de Emisión: 2019/03/18 | G2: =General!$I$2 -> IN-IV-F-14 | J2: Palabras Minimas
F3: =General!$H$3 -> Revisión N°: 4 | G3: ="Página "&$A$1&" de "&Dt_TPG -> Página 10 de 11 | I3: =SUM(I7:I3502) -> 48 | J3: <== Total de palabras | M3: Tipo de Impacto (Objetivos de Desarrollo Sostenible): Link Presione | O3: =COUNTIF(N17:N25,0) -> 9
A5: 14.- | B5: # | C5: Impactos asociados a la propuesta. | I5: Largo
M6: Esplicaciones
B7: N° | C7: Describa en detalle el impacto a desarrollar en el proyecto | I7: =IF(C7="",0,LEN(TRIM(C7))-LEN(SUBSTITUTE(TRIM(C7)," ",""))+1) -> 10
B8: =ROW()-7 -> 1 | C8: Impacto principal | E8: Principal objetivo de desarrollo sostenible: | I8: =IF(C8="",0,LEN(TRIM(C8))-LEN(SUBSTITUTE(TRIM(C8)," ",""))+1) -> 2 | M8: Transferencia e intercambio de conocimiento | N8: Promover el desarrollo de iniciativas de extensión y transferencia del conocimiento científico y tecnológico que permitan su efectiva integración a contextos locales y sociales específicos, contribuyendo a su desarrollo.
B9: =ROW()-7 -> 2 | C9: Alcance | E9: Lineas de apropiación social | I9: =IF(E9="",0,LEN(TRIM(E9))-LEN(SUBSTITUTE(TRIM(E9)," ",""))+1) -> 4 | M9: Gestión del conocimiento para la apropiación | N9: Incentivar el desarrollo de mecanismos de formación y medición para construir conocimiento acerca de las diversas formas en que el conocimiento científico tecnológico es apropiado en la sociedad colombiana, por los diversos grupos e individuos que la componen
B10: =ROW()-7 -> 3 | C10: =IFERROR(M13,".") -> . | I10: =IF(C10="",0,LEN(TRIM(C10))-LEN(SUBSTITUTE(TRIM(C10)," ",""))+1) -> 1 | M10: Participación ciudadana en CTeI | N10: Fomentar la participación ciudadana en la construcción de política pública en CTI, fortaleciendo las capacidades de la sociedad para tomar decisiones que contribuyan a la resolución de conflictos que involucran conocimientos científico-tecnológicos.
M11: Comunicación del conocimiento | N11: Favorecer el desarrollo de proyectos de comunicación reflexivos y contextualizados para la comprensión, el diálogo y la formación de opinión sobre las relaciones ciencia, tecnología, innovación y sociedad.
B12: . | C12: Evaluación de nivel adaptibilidad social del impacto SRL (Societal Readiness Levels )
B13: =ROW()-9 -> 4 | C13: Estado actual del SRL | I13: =IF(C13="",0,LEN(TRIM(C13))-LEN(SUBSTITUTE(TRIM(C13)," ",""))+1) -> 4 | K13: =IFERROR(ABS(RIGHT(LEFT(E13,6),2)),-1) -> -1 | M13: =IFERROR("Tener en cuenta :"& VLOOKUP($F$9,M6:P11,2,0),".") -> .
B14: =ROW()-9 -> 5 | C14: SRL Comprometido al finalizar el proyecto | I14: =IF(C14="",0,LEN(TRIM(C14))-LEN(SUBSTITUTE(TRIM(C14)," ",""))+1) -> 6 | K14: =IFERROR(ABS(RIGHT(LEFT(E14,6),2)),0) -> 0
I15: =IF(C15="",0,LEN(TRIM(C15))-LEN(SUBSTITUTE(TRIM(C15)," ",""))+1) -> 0 | K15: =IFERROR(IF(K13<K14,"","No esta bien definido la selección de los SRL. Por favor confirmar."),"") ->  | M15: Validacion de diligenciamiento de Imapctos
B16: =ROW()-8 -> 8 | C16: Evolución del impacto alcanzado como resultado de proyectos anteriores | I16: =IF(C16="",0,LEN(TRIM(C16))-LEN(SUBSTITUTE(TRIM(C16)," ",""))+1) -> 9 | N16: =VLOOKUP($O$16,$L$17:$O$30,2,0) -> Impacto principal | O16: =MAX(O17:O30) -> 10
B17: 9 | I17: =IF(C17="",0,LEN(TRIM(C17))-LEN(SUBSTITUTE(TRIM(C17)," ",""))+1) -> 0 | L17: 10 | M17: =IF(N17=0,C8,"") -> Impacto principal | N17: =LEN(D8) -> 0 | O17: =IF(N17=0,L17,0) -> 10
B18: 10 | C18: Descripción de los Beneficiario(s) del impacto del proyecto | I18: 8 | L18: =L17-1 -> 9 | M18: =IF(N18=0,C9,"") -> Alcance | N18: =LEN(D9) -> 0 | O18: =IF(N18=0,L18,0) -> 9
B19: 11 | I19: 0 | L19: =L18-1 -> 8 | M19: =IF(N19=0,E8,"") -> Principal objetivo de desarrollo sostenible: | N19: =LEN(F8) -> 0 | O19: 8
B20: 12 | C20: Descripción del impacto esperado. | I20: 4 | L20: 7 | M20: =IF(N20=0,E9,"") -> Lineas de apropiación social | N20: =LEN(F9) -> 0 | O20: 7
B21: 13 | I21: 0 | L21: 6 | M21: =IF(N21=0,C16,"") -> Evolución del impacto alcanzado como resultado de proyectos anteriores | N21: =LEN(C17) -> 0 | O21: 6
B22: 14 | I22: 0 | L22: 5 | M22: =IF(N22=0,C18,"") -> Descripción de los Beneficiario(s) del impacto del proyecto | N22: =LEN(C19) -> 0 | O22: 5
B23: 15 | I23: 0 | L23: 4 | M23: =IF(N23=0,C20,"") -> Descripción del impacto esperado. | N23: =LEN(C21) -> 0 | O23: 4
B24: 16 | I24: 0 | L24: 3 | M24: =IF(N24=0,C13,"") -> Estado actual del SRL | N24: =LEN(E13) -> 0 | O24: =IF(N24=0,L24,0) -> 3
L25: 2 | M25: =IF(N25=0,C14,"") -> SRL Comprometido al finalizar el proyecto | N25: =LEN(E14) -> 0 | O25: 2
M27: =VLOOKUP("Impactos",DT_Errores,3,0) -> Error : 021.- No se a diligenciado la hoja [Impactos]
C30: *Pueden Ocultar las Filas que no se utilicen ( Favor no eliminar filas).

Sheet Declaración
A1: 13 | G1: *Pueden Ocultar las Filas que no se utilicen.
C2: =General!B2 -> PRESENTACIÓN DE PROYECTOS DE INVESTIGACIÓN | D2: =General!$H$2 -> Fecha de Emisión: 2019/03/18 | E2: =General!$I$2 -> IN-IV-F-14
D3: =General!$H$3 -> Revisión N°: 4 | E3: ="Página "&$A$1&" de "&Dt_TPG -> Página 13 de 11 | G3: =SUM(G10:G3510) -> 0 | H3: <== Total de palabras
A5: 15.- | B5: # | C5: Decaración la propuesta. | G5: Largo
C7: ="Título Proyecto: "& General!B9 -> Título Proyecto: Formato: actualizado a 08 Abr 2022
C8: ="Lider del proyecto: "&General!C10 -> Lider del proyecto: Luis Alexander Chirivi
C10: a. Los investigadores y coinvestigadores declaran con la presentación de las propuestas que la información suministrada es veraz y puede ser verificable por la Universidad Militar Nueva Granada en cualquier momento. Ante cualquier inconsistencia la Vicerrectoría de Investigaciones podrá rechazar la propuesta y, de ser el caso, implicaría la pérdida de la financiación del proyecto. Sin perjuicio de los procesos disciplinarios asociados. | J10: a. Los investigadores y coinvestigadores declaran con la presentación de las propuestas que la información suministrada es veraz y puede ser verificable por la Universidad Militar Nueva Granada en cualquier momento. Ante cualquier inconsistencia la Vicerrectoría de Investigaciones podrá rechazar la propuesta y, de ser el caso, implicaría la pérdida de la financiación del proyecto. Sin perjuicio de los procesos disciplinarios asociados.
C11: b. La presentación de las propuestas a la convocatoria constituye la aceptación de los términos establecidos y sus anexos, en cuanto a características, condiciones y requisitos. | J11: b. La presentación de las propuestas a la convocatoria constituye la aceptación de los términos establecidos y sus anexos, en cuanto a características, condiciones y requisitos.
C12: c. La presentación de la propuesta constituye la aceptación, expresa e irrevocable de los investigadores y coinvestigadores, que conocen los lineamientos y condiciones de los términos de referencia, así como, que se someten a lo establecido durante las fases de la convocatoria, de legalización, ejecución y liquidación. | J12: c. La presentación de la propuesta constituye la aceptación, expresa e irrevocable de los investigadores y coinvestigadores, que conocen los lineamientos y condiciones de los términos de referencia, así como, que se someten a lo establecido durante las fases de la convocatoria, de legalización, ejecución y liquidación.
C13: d. Se aceptarán únicamente las propuestas que participen a través del procedimiento establecido y los plazos previstos en la presente convocatoria. | J13: d. Se aceptarán únicamente las propuestas que participen a través del procedimiento establecido y los plazos previstos en la presente convocatoria.
C14: e. La propuesta participante no podrá haber sido financiada previamente por la Universidad Militar Nueva Granada ni por otra fuente de financiación pública o privada. | J14: e. La propuesta participante no podrá haber sido financiada previamente por la Universidad Militar Nueva Granada ni por otra fuente de financiación pública o privada.
C15: f. La propuesta participante no podrá ser financiada simultáneamente por otra convocatoria interna o con recursos de otras entidades del Estado o agencias públicas internacionales. | J15: f. La propuesta participante no podrá ser financiada simultáneamente por otra convocatoria interna o con recursos de otras entidades del Estado o agencias públicas internacionales.
C16: g. Los participantes garantizarán que el desarrollo del proyecto se llevará a cabo de acuerdo con los protocolos y normas establecidas por la ley colombiana, y que no representa ningún riesgo para la sociedad, la salud o el ambiente. | J16: g. Los participantes garantizarán que el desarrollo del proyecto se llevará a cabo de acuerdo con los protocolos y normas establecidas por la ley colombiana, y que no representa ningún riesgo para la sociedad, la salud o el ambiente.
C17: h. Los participantes deben asegurar que cuentan o que obtendrán los permisos y licencias respectivas para el cumplimiento de la normatividad colombiana vigente en relación con el objeto y desarrollo de la propuesta. | J17: h. Los participantes deben asegurar que cuentan o que obtendrán los permisos y licencias respectivas para el cumplimiento de la normatividad colombiana vigente en relación con el objeto y desarrollo de la propuesta.
C19: El investigador principal y coinvestigadores del proyecto firman aceptando esta declaración :
C30: Firma y fecha : _________________________________
B49: *Pueden Ocultar las Filas que no se utilicen ( Favor no eliminar filas).
